{"text_format":"1","workbook":"xlsx","n_sheets":5,"sheets":["PAYMENT MASTER","ITEM MASTER","MENU MASTER","FOOD TYPE MASTER","工作表1"],"not_rendered":{"charts":0,"images":0,"macros":1,"external_links":0,"defined_names":67,"comments":0,"pivot_tables":0},"unopened":[],"bounds":{"document_bytes":16777216,"sheet_cells":100000,"rows_first":2000,"rows_last":500,"rows_between":2000,"halvings":0,"cell_chars":16384,"cell_head_chars":4096},"cells_cut":0,"cells_raw":0,"read":"whole","date_system":"1900"}

{"sheet":"PAYMENT MASTER","index":0,"n_rows":23,"n_cols":5,"rows_kept":23,"cut":false,"hidden":false,"merged":[]}
[null,"基本付款扣減設定"]
[null,null,null,"VNB","WOW"]
[null,null,"Based on","Rate","Rate"]
[null,"VISA","By Total",2.1999999999999999E-2,2.1999999999999999E-2]
[null,null,"By Order",0,0]
[null,"MASTER","By Total",2.1999999999999999E-2,2.1999999999999999E-2]
[null,null,"By Order",0,0]
[null,"銀聯","By Total",2.1999999999999999E-2,2.1999999999999999E-2]
[null,null,"By Order",0,0]
[null,"八達通","By Total",1.2999999999999999E-2,1.2999999999999999E-2]
[null,null,"By Order",298,298]
[null,"支付寶","By Total",0.01,1.2E-2]
[null,null,"By Order",0,0]
[null,"WECHAT","By Total",0.01,0.01]
[null,null,"By Order",0,0]
[null,"戶戶送","By Total",0.33,0.33]
[null," ","By Order",0,0]
[null,"FOOD PANDA","By Total",0.33,0.33]
[null,null,"By Order",0,0]
[null,"UBEREATS","By Total",0.35,0.35]
[null,null,"By Order",0,0]
[null,"THE GULU","By Total",0.35,0.35]
[null,null,"By Order",0,0]

{"sheet":"ITEM MASTER","index":1,"n_rows":1166,"n_cols":13,"rows_kept":1166,"cut":false,"hidden":false,"merged":[]}
["產品對照表"]
["餐牌設定",null,null,null,"統計設定"]
["菜品編號","食品名","食品類別","字號","主類別","副類別","次類別","產品名稱","食材分類"]
["D01438","(6)鮮蝦雲吞河","早餐","品味","中式","中式粉麵飯","中式河","鮮蝦雲吞河","海鮮"]
["D01433","(下)212雞絲扎肉河","下午茶餐","品味","越式","越式粉麵飯","越式河","雞絲扎肉河","雞"]
["D01432","(下)214.幹炒牛河","下午茶餐","品味","中式","中式粉麵飯","中式河","乾炒牛河","牛"]
["D01431","(下)219.揚州炒飯","下午茶餐","品味","中式","中式粉麵飯","中式飯","揚州炒飯","粉麵飯"]
["D02052","(下)A.豬扒炒河","下午茶餐","品味","中式","中式粉麵飯","中式河","豬扒炒河","豬"]
["D02053","(下)B.田園菜粒炒飯","下午茶餐","品味","中式","中式粉麵飯","中式飯","田園菜粒炒飯","菜"]
["D02054","(下)C.豬肚絲拼豬肉丸湯河","下午茶餐","品味","越式","越式粉麵飯","越式河","豬肚絲豬肉丸湯河","豬"]
["D02055","(下)D.牛肉拼豬手湯河","下午茶餐","品味","中式","中式粉麵飯","中式河","牛肉拼豬手湯河","雜肉"]
["D02056","(下)E.蝦餅湯檬","下午茶餐","品味","越式","檬","湯檬","蝦餅湯檬","海鮮"]
["D02057","(下)F.雪菜肉碎豬肉丸米線","下午茶餐","品味","中式","中式粉麵飯","中式米線","雪菜肉碎豬肉丸米線","豬"]
["D02058","(下)G.豉油雞湯河粉","下午茶餐","品味","中式","中式粉麵飯","中式河","豉油雞湯河粉","雞"]
["D02104","(下)H.午餐肉肉碎飯","下午茶餐","品味","西式","西式粉麵飯","西式粉麵飯菜式","午餐肉肉碎飯","豬"]
["D01435","(下)牙車快","下午茶小食","品味","越式","越式素菜","越式素菜菜式","牙車快","菜"]
["D01525","1 水煮斑球","厨师推介","和味","中式","中式小菜","中式小菜菜式","水煮斑球","海鮮"]
["D02099","1.冬陰公三寶米線","午市套餐","品味","越式","越式粉麵飯","越式其他","冬陰功三寶米線","雜肉"]
["D02099","1.冬陰公三寶湯河","午市套餐","品味","越式","越式粉麵飯","越式河","冬陰功湯三寶湯河","雜肉"]
["D02099","1.冬陰公湯河","午市套餐","品味","越式","越式粉麵飯","越式河","冬陰功湯河","雜肉"]
["D01603","1.冬陰功三寶米線","精選午餐","和味","越式","越式粉麵飯","越式其他","冬陰功三寶米線","雜肉"]
["D01603","1.冬陰功三寶湯河","精選午餐","和味","越式","越式粉麵飯","越式河","冬陰功湯三寶湯河","雜肉"]
["D01603","1.冬陰功湯三寶湯河","精選午餐","和味","越式","越式粉麵飯","越式河","冬陰功湯三寶湯河","雜肉"]
["D01603","1.冬陰功湯河","精選午餐","和味","越式","越式粉麵飯","越式河","冬陰功湯河","雜肉"]
["D02099","1.冬蔭公湯三寶湯河","午市套餐","品味","越式","越式粉麵飯","越式河","冬陰功湯三寶湯河","雜肉"]
["D01603","1.鮮茄三寶米線","精選午餐","和味","越式","越式粉麵飯","越式其他","鮮茄三寶米線","雜肉"]
["D02099","1.鮮茄三寶米線","午市套餐","品味","越式","越式粉麵飯","越式其他","鮮茄三寶米線","雜肉"]
["D01603","1.鮮茄三寶湯河","精選午餐","和味","越式","越式粉麵飯","越式河","鮮茄三寶湯河","雜肉"]
["D02099","1.鮮茄三寶湯河","午市套餐","品味","越式","越式粉麵飯","越式河","鮮茄三寶湯河","雜肉"]
["D01569","101)迷你春卷撈檬",null,"品味","越式","檬","撈檬","迷你春卷撈檬","菜"]
["D01571","104)云吞河",null,"品味","中式","中式粉麵飯","中式河","鮮蝦雲吞河","海鮮"]
["D01575","108)乾炒雑菜河粉",null,"品味","中式","中式粉麵飯","中式河","乾炒雑菜河粉","菜"]
["D01536","109)燒鵝髀飯",null,"品味","中式","燒味","燒味飯","明爐燒鵝髀飯","鵝"]
["D01544","121)香茅雞扒煎蛋飯",null,"品味","越式","越式粉麵飯","越式飯","香茅雞扒煎蛋飯","雞"]
["D01552","128)香茅豬扒飯",null,"品味","越式","越式粉麵飯","越式飯","香茅豬扒飯","豬"]
["D01554","130)豬頸肉飯",null,"品味","越式","越式粉麵飯","越式飯","豬頸肉飯","豬"]
["D01558","134)欖菜薑米蛋白炒飯",null,"品味","中式","中式粉麵飯","中式飯","欖菜薑米炒飯","菜"]
["D01526","2 海皇粉絲雑菜煲","厨师推介","和味","中式","中式小菜","中式小菜菜式","海皇粉絲雑菜煲","海鮮"]
["D01890","2.越式三拼飯","午市套餐","品味","越式","越式粉麵飯","越式飯","越式三拼飯","雜肉"]
["D01604","2.越式三拼飯(蝦餅，雞翼，煎蛋)","精選午餐","和味","越式","越式粉麵飯","越式飯","越式三拼飯","雜肉"]
["D01604","2.蝦餅肉碎飯","精選午餐","和味","越式","越式粉麵飯","越式飯","蝦餅肉碎飯","雜肉"]
["D01890","2.蝦餅肉碎飯","午市套餐","品味","越式","越式粉麵飯","越式飯","蝦餅肉碎飯","雜肉"]
["D01604","2.蝦餅拼餐肉飯","精選午餐","和味","越式","越式粉麵飯","越式飯","蝦餅拼餐肉飯","雜肉"]
["D01890","2.蝦餅拼餐肉飯","午市套餐","品味","越式","越式粉麵飯","越式飯","蝦餅拼餐肉飯","雜肉"]
["D01604","2.餐肉肉碎飯","精選午餐","和味","越式","越式粉麵飯","越式飯","餐肉肉碎飯","豬"]
["D01890","2.餐肉肉碎飯","午市套餐","品味","越式","越式粉麵飯","越式飯","餐肉肉碎飯","豬"]
["D02116","206.海蜇燻蹄飯","下午茶餐","品味","中式","燒味","燒味飯","海蜇燻蹄飯","雜肉"]
["D02129","208.鮮茄豬肉丸扎肉湯檬","下午茶餐","和味","越式","檬","湯檬","鮮茄豬肉丸扎肉湯檬","豬"]
["D02130","211.越式三寶湯河(牛肉.雞絲.扎肉(","下午茶餐","和味","越式","越式粉麵飯","越式河","越式三寶湯河","雜肉"]
["D00253","221)酸辣無骨鳳爪(小)","下午茶小食","品味","中式","中式頭盤","中式頭盤菜式","酸辣無骨鳯爪","雞"]
["D02170","222)紅燒乳鴿","下午茶小食","品味","中式","燒味","淨燒味","紅燒乳鴿","鴿"]
["D02134","222.紅燒乳鴿",null,"和味","中式","燒味","淨燒味","紅燒乳鴿","鴿"]
["D02171","223)馬拉盞炒通菜(小)","下午茶小食","品味","越式","越式素菜","越式素菜菜式","馬拉盞炒通菜","菜"]
["D02135","223.馬拉盞炒通菜(小)","下午茶小食","和味","越式","越式素菜","越式素菜菜式","馬拉盞炒通菜","菜"]
["D02172","224)涼伴豬耳絲(小)","下午茶小食","品味","中式","中式頭盤","中式頭盤菜式","涼伴豬耳絲","豬"]
["D02173","225)涼伴豬肚絲(小)",null,"品味","中式","中式頭盤","中式頭盤菜式","涼伴豬肚絲","豬"]
["D02137","225.涼拌豬肚絲","下午茶小食","和味","中式","中式頭盤","中式頭盤菜式","涼伴豬肚絲","豬"]
["D00246","226)手拍青瓜(小)","下午茶小食","品味","中式","中式頭盤","中式頭盤菜式","手拍青瓜","菜"]
["D02138","226.手拍青瓜(小)","下午茶小食","和味","中式","中式頭盤","中式頭盤菜式","手拍青瓜","菜"]
["D00245","227)蔥油海蜇(小)","下午茶小食","品味","中式","中式頭盤","中式頭盤菜式","蔥油海蜇","海鮮"]
["D02169","228)迷你春卷(4pcs)","下午茶小食","品味","越式","越式小菜","越式小菜菜式","迷你春卷","菜"]
["D02139","228.迷你春卷(4","下午茶小食","和味","越式","越式小菜","越式小菜菜式","迷你春卷","菜"]
["D00247","229)陳醋雲耳(小)","下午茶小食","品味","中式","中式頭盤","中式頭盤菜式","陳醋雲耳","菜"]
["D02140","230.郊外油菜(小)","下午茶小食","和味","中式","中式素菜","中式素菜菜式","郊外油菜","菜"]
["D02119","231.炸雞中翼配薯條","下午茶餐","品味","西式","西式小食","西式小食菜式","炸雞中翼配薯條","雞"]
["D02141","231.脆炸雞中翼(2只)配薯條","下午茶餐","和味","西式","西式小食","西式小食菜式","炸雞中翼配薯條","雞"]
["D02143","232.脆脆扒包餐","下午茶餐","和味","西式","西式麵包","西式麵包菜式","脆脆豬扒包","包類"]
["D02120","232.豬扒包","下午茶餐","品味","西式","西式麵包","西式麵包菜式","脆脆豬扒包","包類"]
["D02122","232A雞扒包","下午茶餐","品味","西式","西式麵包","西式麵包菜式","雞扒包","包類"]
["D02123","232B.扎肉包","下午茶餐","品味","越式","越式麵包","越式麵包菜式","扎肉包","包類"]
["D02124","233.炸魚柳薯條","下午茶餐","品味","西式","西式小食","西式小食菜式","炸魚柳薯條","海鮮"]
["D02144","233.脆炸魚柳配薯條","下午茶餐","和味","西式","西式小食","西式小食菜式","炸魚柳薯條","海鮮"]
["D02145","234.西多士","下午茶餐","和味","西式","西式麵包","西式麵包菜式","西多士","包類"]
["D02125","234.西多士餐","下午茶餐","品味","西式","西式麵包","西式麵包菜式","西多士","包類"]
["D02126","235. 雞全翼配蒜蓉包(2件","下午茶餐","品味","西式","西式小食","西式小食菜式","雞全翼配蒜蓉包","雞"]
["D02146","235.雞全翼配蒜茸包(2件)","下午茶餐","和味","西式","西式小食","西式小食菜式","雞全翼配蒜蓉包","雞"]
["D02127","237.豬肉串(2串)配薯條",null,"品味","西式","西式小食","西式小食菜式","豬肉串配薯條","豬"]
["D02148","237.薯條餐","下午茶餐","和味","西式","西式小食","西式小食菜式","薯條","菜"]
["D02128","237A.牛肉串(2串)配薯條","下午茶餐","品味","西式","西式小食","西式小食菜式","牛肉串配薯條","牛"]
["D02129","237B.雞肉串(2串)配薯條","下午茶餐","品味","西式","西式小食","西式小食菜式","雞肉串配薯條","雞"]
["D02150","238.自選雙拼三文治","下午茶餐","和味","西式","西式麵包","西式麵包菜式","雙拼三文治","包類"]
["D02130","238.雙拼三文治","下午茶餐","品味","西式","西式麵包","西式麵包菜式","雙拼三文治","包類"]
["D02151","239.自選多士餐","下午茶餐","和味","西式","西式麵包","西式麵包菜式","雙拼多士","包類"]
["D02131","239.雙拼多士","下午茶餐","品味","西式","西式麵包","西式麵包菜式","雙拼多士","包類"]
["D01717","24.公司三文治","新早餐","和味","西式","西式麵包","西式麵包菜式","公司三文治","包類"]
["D02156","240.脆包餐","下午茶餐","和味","西式","西式麵包","西式麵包菜式","脆脆豬仔包","包類"]
["D02133","240.豬仔包","下午茶餐","品味","西式","西式麵包","西式麵包菜式","脆脆豬仔包","包類"]
["D02134","240A.菠蘿包","下午茶餐","品味","西式","西式麵包","西式麵包菜式","菠蘿包","包類"]
["D02135","241.菠蘿油","下午茶餐","品味","西式","西式麵包","西式麵包菜式","菠蘿油","包類"]
["D02157","241.菠蘿油","下午茶餐","和味","西式","西式麵包","西式麵包菜式","菠蘿油","包類"]
["D01605","3.咖喱牛腩飯","精選午餐","和味","中式","中式粉麵飯","中式飯","咖喱牛腩飯","牛"]
["D01891","3.咖喱牛腩飯","午市套餐","品味","中式","中式粉麵飯","中式飯","咖喱牛腩飯","牛"]
["D01891","3.薯仔雞脾飯","午市套餐","品味","西式","西式粉麵飯","西式粉麵飯菜式","薯仔雞脾飯","雞"]
["D02119","301.尖椒炒豬肚","抗疫小菜","和味","中式","中式小菜","中式小菜菜式","尖椒炒豬肚","豬"]
["D02147","301.尖椒炒豬肚","午市套餐","品味","中式","中式小菜","中式小菜菜式","尖椒炒豬肚","豬"]
["D02147","301.者者通菜蝦乾煲","午市套餐","品味","中式","中式小菜","中式小菜菜式","啫啫通菜蝦乾煲","菜"]
["D02147","301.香辣麻婆豆付","午市套餐","品味","中式","中式小菜","中式小菜菜式","麻婆豆腐","菜"]
["D02119","301.香辣麻婆豆腐","抗疫小菜","和味","中式","中式小菜","中式小菜菜式","麻婆豆腐","菜"]
["D02119","301.麻辣豆角炒肥牛","抗疫小菜","和味","中式","中式小菜","中式小菜菜式","麻辣豆角炒肥牛","牛"]
["D02147","301.麻辣豆角炒肥牛","午市套餐","品味","中式","中式小菜","中式小菜菜式","麻辣豆角炒肥牛","牛"]
["D02119","301.啫啫通菜蝦乾煲","抗疫小菜","和味","中式","中式小菜","中式小菜菜式","啫啫通菜蝦乾煲","菜"]
["D02119","301.蝦醬通菜炒牛肉","抗疫小菜","和味","中式","中式小菜","中式小菜菜式","蝦醬通菜炒牛肉","牛"]
["D02147","301.蝦醬通菜炒牛肉","午市套餐","品味","中式","中式小菜","中式小菜菜式","蝦醬通菜炒牛肉","牛"]
["D02139","301.鮮茄牛肉",null,"品味","中式","中式小菜","中式小菜菜式","鮮茄牛肉","牛"]
["D02108","302.XO醬爆蝦球","午市套餐","品味","中式","中式小菜","中式小菜菜式","醬爆蝦球","海鮮"]
["D02120","302.XO醬爆蝦球","抗疫小菜","和味","中式","中式小菜","中式小菜菜式","醬爆蝦球","海鮮"]
["D02108","302.冬瓜火腩煲","午市套餐","品味","中式","中式小菜","中式小菜菜式","冬瓜火腩煲","豬"]
["D02120","302.冬瓜炆火腩","抗疫小菜","和味","中式","中式小菜","中式小菜菜式","冬瓜火腩煲","豬"]
["D02108","302.枝竹豆卜火腩飯","午市套餐","品味","中式","中式小菜","中式小菜菜式","枝竹豆卜火腩飯","豬"]
["D02120","302.枝竹豆卜火腩飯","抗疫小菜","和味","中式","中式小菜","中式小菜菜式","枝竹豆卜火腩飯","豬"]
["D02108","302.節瓜排骨煲","午市套餐","品味","中式","中式小菜","中式小菜菜式","節瓜排骨煲","豬"]
["D02120","302.節瓜排骨煲","抗疫小菜","和味","中式","中式小菜","中式小菜菜式","節瓜排骨煲","豬"]
["D02108","302.鮮茄蛋牛肉","午市套餐","品味","中式","中式小菜","中式小菜菜式","鮮茄牛肉","牛"]
["D02120","302.鮮茄蛋牛肉","抗疫小菜","和味","中式","中式小菜","中式小菜菜式","鮮茄牛肉","牛"]
["D02108","302.欖菜肉碎四季豆","午市套餐","品味","中式","中式小菜","中式小菜菜式","欖菜肉碎四季豆","雜肉"]
["D02120","302.欖菜肉碎四季豆","抗疫小菜","和味","中式","中式小菜","中式小菜菜式","欖菜肉碎四季豆","雜肉"]
["D02109","303.土魷蒸肉餅","午市套餐","品味","中式","中式小菜","中式小菜菜式","土魷蒸肉餅","豬"]
["D02121","303.土魷蒸肉餅","抗疫小菜","和味","中式","中式小菜","中式小菜菜式","土魷蒸肉餅","豬"]
["D02109","303.南瓜蒸排骨","午市套餐","品味","中式","中式小菜","中式小菜菜式","南瓜蒸排骨","豬"]
["D02109","303.蝦醬豆卜蒸腩片","午市套餐","品味","中式","中式小菜","中式小菜菜式","蝦醬豆卜蒸腩片","海鮮"]
["D02121","303.蝦醬豆卜蒸腩片","抗疫小菜","和味","中式","中式小菜","中式小菜菜式","蝦醬豆卜蒸腩片","海鮮"]
["D02109","303.蟲草花蒸雞","午市套餐","品味","中式","中式小菜","中式小菜菜式","蟲草花蒸雞","雞"]
["D02121","303.蟲草花蒸雞","抗疫小菜","和味","中式","中式小菜","中式小菜菜式","蟲草花蒸雞","雞"]
["D02109","303.鹹蛋蒸肉餅","午市套餐","品味","中式","中式小菜","中式小菜菜式","鹹蛋蒸肉餅","豬"]
["D02121","303.鹹蛋蒸肉餅","抗疫小菜","和味","中式","中式小菜","中式小菜菜式","鹹蛋蒸肉餅","豬"]
["D02110","304.者者通菜蝦乾煲","午市套餐","品味","中式","中式小菜","中式小菜菜式","啫啫通菜蝦乾煲","菜"]
["D02110","304.虎皮尖椒肉碎","午市套餐","品味","中式","中式小菜","中式小菜菜式","虎皮尖椒肉碎","菜"]
["D02122","304.虎皮尖椒肉碎","抗疫小菜","和味","中式","中式小菜","中式小菜菜式","虎皮尖椒肉碎","菜"]
["D02110","304.茄子班腩煲","午市套餐","品味","中式","中式小菜","中式小菜菜式","茄子班腩煲","海鮮"]
["D02122","304.茄子斑腩煲","抗疫小菜","和味","中式","中式小菜","中式小菜菜式","茄子班腩煲","海鮮"]
["D02110","304.豉椒涼瓜炒鮮魷","午市套餐","品味","中式","中式小菜","中式小菜菜式","豉椒涼瓜炒鮮魷","海鮮"]
["D02122","304.豉椒涼瓜炒鮮魷","抗疫小菜","和味","中式","中式小菜","中式小菜菜式","豉椒涼瓜炒鮮魷","海鮮"]
["D02122","304.啫啫通菜蝦乾煲","抗疫小菜","和味","中式","中式小菜","中式小菜菜式","啫啫通菜蝦乾煲","菜"]
["D02110","304.粟米班腩","午市套餐","品味","中式","中式小菜","中式小菜菜式","粟米魚柳","海鮮"]
["D02122","304.粟米班腩","抗疫小菜","和味","中式","中式小菜","中式小菜菜式","粟米魚柳","海鮮"]
["D02110","304.薑蔥魚腩枝竹煲","午市套餐","品味","中式","中式小菜","中式小菜菜式","薑蔥魚腩枝竹煲","海鮮"]
["D02122","304.薑蔥魚腩枝竹煲","抗疫小菜","和味","中式","中式小菜","中式小菜菜式","薑蔥魚腩枝竹煲","海鮮"]
["D02111","305.西芹雲耳炒雞柳","午市套餐","品味","中式","中式小菜","中式小菜菜式","西芹雲耳炒雞柳","雞"]
["D02123","305.西芹雲耳炒雞柳","抗疫小菜","和味","中式","中式小菜","中式小菜菜式","西芹雲耳炒雞柳","雞"]
["D02111","305.西芹雲耳炒雞柳豆豉凌魚油麥菜炒扎肉","午市套餐","品味","中式","中式小菜","中式小菜菜式","豆豉凌魚油麥菜炒扎肉","雜肉"]
["D02111","305.沙嗲金菇肥牛粉絲煲","午市套餐","品味","中式","中式小菜","中式小菜菜式","沙嗲金菇肥牛粉絲煲","牛"]
["D02123","305.沙嗲金菇肥牛粉絲煲","抗疫小菜","和味","中式","中式小菜","中式小菜菜式","沙嗲金菇肥牛粉絲煲","牛"]
["D02123","305.豆豉凌魚油麥菜炒扎肉","抗疫小菜","和味","中式","中式小菜","中式小菜菜式","豆豉凌魚油麥菜炒扎肉","雜肉"]
["D02123","305.青瓜雲耳炒牛肉",null,"和味","中式","中式小菜","中式小菜菜式","青瓜雲耳炒牛肉","牛"]
["D02111","305.蒜心炒蝦球","午市套餐","品味","中式","中式小菜","中式小菜菜式","蒜心炒蝦球","海鮮"]
["D02123","305.蒜芯炒蝦球","抗疫小菜","和味","中式","中式小菜","中式小菜菜式","蒜心炒蝦球","海鮮"]
["D02111","305.薑蔥蒸黃花魚","午市套餐","品味","中式","中式小菜","中式小菜菜式","薑蔥蒸黃花魚","海鮮"]
["D02123","305.薑蔥蒸黃花魚","抗疫小菜","和味","中式","中式海鮮","中式海鮮菜式","薑蔥蒸黃花魚","海鮮"]
["D02112","306.XO醬雜菇炒蝦球","午市套餐","品味","中式","中式小菜","中式小菜菜式","XO\u007f醬雜菇炒蝦球\u007f","海鮮"]
["D02125","306.XO\u007f醬雜菇炒蝦球\u007f","抗疫小菜","和味","中式","中式小菜","中式小菜菜式","XO\u007f醬雜菇炒蝦球\u007f","海鮮"]
["D02112","306.XO醬雜菇炒雞球","午市套餐","品味","中式","中式小菜","中式小菜菜式","XO\u007f醬雜菇炒雞球\u007f","雞"]
["D02125","306.XO\u007f醬雜菇炒雞球\u007f","抗疫小菜","和味","中式","中式小菜","中式小菜菜式","XO\u007f醬雜菇炒雞球\u007f","雞"]
["D02112","306.果皮蒸泥孟","午市套餐","品味","中式","中式海鮮","中式海鮮菜式","果皮蒸泥孟","海鮮"]
["D02125","306.果皮蒸泥孟","抗疫小菜","和味","中式","中式小菜","中式海鮮菜式","果皮蒸泥孟","海鮮"]
["D02112","306.粉絲海皇什菜煲","午市套餐","品味","中式","中式小菜","中式小菜菜式","海皇粉絲雑菜煲","海鮮"]
["D02125","306.粉絲海皇雑菜煲","抗疫小菜","和味","中式","中式小菜","中式小菜菜式","海皇粉絲雑菜煲","海鮮"]
["D02112","306.豉汁蒸盲魚曹","午市套餐","品味","中式","中式海鮮","中式海鮮菜式","豉汁蒸盲曹","海鮮"]
["D02125","306.豉汁蒸盲曹\u007f\u007f","抗疫小菜","和味","中式","中式海鮮","中式海鮮菜式","豉汁蒸盲曹","海鮮"]
["D02112","306.雲吞雞煲","午市套餐","品味","中式","中式小菜","中式小菜菜式","雲吞雞煲","雞"]
["D02112","306.翠玉瓜炒蝦球","午市套餐","品味","中式","中式小菜","中式小菜菜式","翠玉瓜炒蝦球","海鮮"]
["D02125","306.翠玉瓜炒蝦球","抗疫小菜","和味","中式","中式小菜","中式小菜菜式","翠玉瓜炒蝦球","海鮮"]
["D02113","307.燒味三小拼(叉燒.青瓜.燻蹄","午市套餐","品味","中式","燒味","淨燒味","燒味三拼","雜肉"]
["D02124","307.燒味三小拼(切雞.海蜇.雲耳","抗疫小菜","和味","中式","燒味","淨燒味","燒味三拼","雜肉"]
["D02113","307.燒味三小拼(切雞.海蜇.雲耳)","午市套餐","品味","中式","燒味","淨燒味","燒味三拼","雜肉"]
["D02113","307.燒味三寶飯(叉燒.油雞.燻蹄","午市套餐","品味","中式","燒味","燒味飯","燒味三寶飯","雜肉"]
["D02124","307.燒味三寶飯(燒味三小拼(叉燒.青瓜.燻蹄","抗疫小菜","和味","中式","燒味","燒味飯","燒味三寶飯","雜肉"]
["D02126","308.燒味雙拼(叉燒，油雞","抗疫小菜","和味","中式","燒味","淨燒味","燒味雙拼","雜肉"]
["D02126","308.燒味雙拼(叉燒，燒肉","抗疫小菜","和味","中式","燒味","淨燒味","燒味雙拼","雜肉"]
["D02114","308.燒味雙拼(叉燒.腩仔)","午市套餐","品味","中式","燒味","淨燒味","燒味雙拼","雜肉"]
["D02176","309.鮑魚拼鮑片","午市套餐","品味","中式","中式海鮮","中式海鮮菜式","鮑魚拼鮑片","海鮮"]
["D02188","309.鮑魚拼鮑片","抗疫小菜","和味","中式","中式海鮮","中式海鮮菜式","鮑魚拼鮑片","海鮮"]
["D01892","4.香茅牛肉拼餐肉飯","午市套餐","品味","越式","越式粉麵飯","越式飯","香茅牛肉餐肉飯","雜肉"]
["D01606","4.香茅牛肉煎蛋飯","精選午餐","和味","越式","越式粉麵飯","越式飯","香茅牛肉煎蛋飯","牛"]
["D01892","4.香茅牛肉煎蛋飯","午市套餐","品味","越式","越式粉麵飯","越式飯","香茅牛肉煎蛋飯","牛"]
["D01606","4.香茅牛肉餐肉飯","精選午餐","和味","越式","越式粉麵飯","越式飯","香茅牛肉餐肉飯","雜肉"]
["D01892","4.香茅雞扒拼餐肉飯","午市套餐","品味","越式","越式粉麵飯","越式飯","香茅雞扒拼餐肉飯","雞"]
["D01606","4.香茅雞翼煎蛋飯","精選午餐","和味","越式","越式粉麵飯","越式飯","香茅雞翼煎蛋飯","雞"]
["D01892","4.香茅雞翼煎蛋飯","午市套餐","品味","越式","越式粉麵飯","越式飯","香茅雞翼煎蛋飯","雞"]
["D01892","4.豬扒拼餐肉飯","午市套餐","品味","西式","西式粉麵飯","西式粉麵飯菜式","豬扒餐肉飯","豬"]
["D01606","4.豬扒餐肉飯","精選午餐","和味","西式","西式粉麵飯","西式粉麵飯菜式","豬扒餐肉飯","豬"]
["D01606","4.豬頸肉煎蛋飯","精選午餐","和味","西式","西式粉麵飯","西式粉麵飯菜式","豬頸肉煎蛋飯","豬"]
["D01892","4.豬頸肉煎蛋飯","午市套餐","品味","西式","西式粉麵飯","西式粉麵飯菜式","豬頸肉煎蛋飯","豬"]
["D01606","4.雞扒餐肉飯","精選午餐","和味","西式","西式粉麵飯","西式粉麵飯菜式","雞扒餐肉飯","雜肉"]
["D01607","5.牛肉拼豬肉丸湯河","精選午餐","和味","越式","越式粉麵飯","越式河","牛肉拼豬肉丸湯河","雜肉"]
["D01893","5.牛肉拼豬肉丸湯河","午市套餐","品味","越式","越式粉麵飯","越式河","牛肉拼豬肉丸湯河","雜肉"]
["D01607","5.牛肉拼豬肚絲湯河","精選午餐","和味","越式","越式粉麵飯","越式河","牛肉拼豬肚絲湯河","雜肉"]
["D01893","5.牛肉拼豬肚絲湯河","午市套餐","品味","越式","越式粉麵飯","越式河","牛肉拼豬肚絲湯河","雜肉"]
["D01607","5.南乳豬手飯","精選午餐","和味","中式","中式粉麵飯","中式飯","南乳豬手飯","豬"]
["D01893","5.南乳豬手飯","午市套餐","品味","中式","中式粉麵飯","中式飯","南乳豬手飯","豬"]
["D01607","5.豬肚絲扎肉河","精選午餐","和味","越式","越式粉麵飯","越式河","豬肚絲拼扎肉湯河","雜肉"]
["D01893","5.豬肚絲拼扎肉湯河","午市套餐","品味","越式","越式粉麵飯","越式河","豬肚絲拼扎肉湯河","雜肉"]
["D02148","501(早)生牛肉拼豬肉丸湯河","(新)醒晨早餐","品味","越式","越式粉麵飯","越式河","牛肉拼豬肉丸湯河","雜肉"]
["D02149","502(早)雞絲煎蛋通粉","(新)醒晨早餐","品味","西式","西式粉麵飯","西式粉麵飯菜式","雞絲煎蛋通粉","粉麵飯"]
["D02150","503(早)生牛肉湯河","(新)醒晨早餐","品味","越式","越式粉麵飯","越式河","河內生牛肉湯河","牛"]
["D02151","504(早)香茅豬扒河","(新)醒晨早餐","品味","越式","越式粉麵飯","越式河","香茅豬扒湯河","豬"]
["D02152","505(早)生牛肉拼豬肚絲湯河",null,"品味","越式","越式粉麵飯","越式河","牛肉拼豬肚絲湯河","雜肉"]
["D02158","505(早)生牛肉拼豬肚絲湯河","(新)醒晨早餐","品味","越式","越式粉麵飯","越式河","牛肉拼豬肚絲湯河","雜肉"]
["D02155","506(早)豬肉丸拼豬肚絲湯河",null,"品味","越式","越式粉麵飯","越式河","豬肉丸拼豬肚絲湯河","雜肉"]
["D02159","506(早)豬肉丸拼豬肚絲湯檬","(新)醒晨早餐","品味","越式","檬","湯檬","豬肉丸拼豬肚絲湯檬","豬"]
["D02160","507(早)雪菜肉碎拼紅腸米粉","(新)醒晨早餐","品味","中式","中式粉麵飯","中式其他","雪菜肉碎拼紅腸米粉","雜肉"]
["D02161","508(早)香茅雞扒湯檬","(新)醒晨早餐","品味","越式","檬","湯檬","香茅雞扒湯檬","雞"]
["D02162","509(早)雪菜肉碎拼雲吞河","(新)醒晨早餐","品味","中式","中式粉麵飯","中式河","雪菜肉碎拼雲吞河","雜肉"]
["D02163","510(早)香茅豬扒拼春卷河","(新)醒晨早餐","品味","越式","越式粉麵飯","越式河","香茅豬扒拼春卷河","豬"]
["D01608","6.牛肉拼豬手米線","精選午餐","和味","中式","中式粉麵飯","中式米線","牛肉拼豬手米線","雜肉"]
["D01894","6.牛肉拼豬手米線","午市套餐","品味","中式","中式粉麵飯","中式米線","牛肉拼豬手米線","雜肉"]
["D01894","6.牛肉拼豬肉丸河粉","午市套餐","品味","越式","越式粉麵飯","越式河","牛肉拼豬肉丸湯河","雜肉"]
["D01608","6.牛肉拼豬肉丸湯河","精選午餐","和味","越式","越式粉麵飯","越式河","牛肉拼豬肉丸湯河","雜肉"]
["D01903","6.自選雙拼粉湯餐","下午茶餐","品味","其他","餐牌其他","套餐","午餐套餐","無分類"]
["D01894","6.豬肉丸拼雞絲湯檬","午市套餐","品味","越式","檬","湯檬","豬肉丸拼雞絲湯檬","豬"]
["D01608","6.豬肉丸雞絲湯檬","精選午餐","和味","越式","檬","湯檬","豬肉丸拼雞絲湯檬","豬"]
["D01608","6.豬頸肉拼春卷湯檬","精選午餐","和味","越式","檬","湯檬","豬頸肉拼春卷湯檬","豬"]
["D01894","6.豬頸肉拼春卷湯檬","午市套餐","品味","越式","檬","湯檬","豬頸肉拼春卷湯檬","豬"]
["D01608","6.雞扒拼春卷湯檬","精選午餐","和味","越式","檬","湯檬","雞扒拼春卷湯檬","雞"]
["D01894","6.雞扒拼春卷湯檬","午市套餐","品味","越式","檬","湯檬","雞扒拼春卷湯檬","雞"]
["D02181","601.南乳豬手飯","午市小食","品味","中式","中式粉麵飯","中式飯","南乳豬手飯","豬"]
["D02190","601.南乳豬手飯","精選午餐","和味","中式","中式粉麵飯","中式飯","南乳豬手飯","豬"]
["D02182","602.雞翼煎蛋飯","午市小食","品味","西式","西式粉麵飯","西式粉麵飯菜式","雞翼煎蛋飯","雞"]
["D02191","602.雞翼煎蛋飯","精選午餐","和味","西式","西式粉麵飯","西式粉麵飯菜式","雞翼煎蛋飯","雞"]
["D02183","603.豬肚絲豬肉丸湯河","午市小食","品味","越式","越式粉麵飯","越式河","豬肚絲豬肉丸湯河","雜肉"]
["D02192","603.豬肚絲豬肉丸湯河","精選午餐","和味","越式","越式粉麵飯","越式河","豬肚絲豬肉丸湯河","雜肉"]
["D02184","604.叉燒鹹蛋飯","午市小食","品味","中式","中式粉麵飯","中式飯","叉燒鹹蛋飯","豬"]
["D02193","604.叉燒鹹蛋飯","精選午餐","和味","中式","中式粉麵飯","中式飯","叉燒鹹蛋飯","豬"]
["D02185","605.滑蛋蝦仁飯","午市小食","品味","中式","中式粉麵飯","中式飯","滑蛋蝦仁飯","海鮮"]
["D02194","605.滑蛋蝦仁飯","精選午餐","和味","中式","中式粉麵飯","中式飯","滑蛋蝦仁飯","海鮮"]
["D01436","7)腸仔餐肉煎蛋公仔面","早餐","品味","西式","西式粉麵飯","西式粉麵飯菜式","腸仔餐肉煎蛋公仔麵","雜肉"]
["D01895","7.雪菜豬耳絲湯河","午市套餐","品味","中式","中式粉麵飯","中式河","雪菜豬耳絲湯河","豬"]
["D01999","7.雪菜豬耳絲湯河","精選午餐","和味","中式","中式粉麵飯","中式河","雪菜豬耳絲湯河","豬"]
["D01895","7.雪菜豬肚絲湯河","午市套餐","品味","中式","中式粉麵飯","中式河","雪菜豬肚絲湯河","豬"]
["D01999","7.雪菜豬肚絲湯河","精選午餐","和味","中式","中式粉麵飯","中式河","雪菜豬肚絲湯河","豬"]
["D01895","7.豬扒拼春卷米線","午市套餐","品味","越式","越式粉麵飯","越式其他","豬扒拼春卷米線","豬"]
["D01999","7.豬扒拼春卷米線","精選午餐","和味","越式","越式粉麵飯","越式其他","豬扒拼春卷米線","豬"]
["D01895","7.豬扒雞絲撈檬","午市套餐","品味","越式","檬","撈檬","豬扒雞絲撈檬","雜肉"]
["D01999","7.豬扒雞絲撈檬","精選午餐","和味","越式","檬","撈檬","豬扒雞絲撈檬","雜肉"]
["D01895","7.豬頸肉拼春卷撈檬","午市套餐","品味","越式","檬","撈檬","豬頸肉拼春卷撈檬","豬"]
["D01999","7.豬頸肉拼春卷撈檬","精選午餐","和味","越式","檬","撈檬","豬頸肉拼春卷撈檬","豬"]
["D01895","7.雞扒拼春卷湯河","午市套餐","品味","越式","越式粉麵飯","越式河","雞扒拼春卷湯河","雞"]
["D01999","7.雞扒拼春卷湯河","精選午餐","和味","越式","越式粉麵飯","越式河","雞扒拼春卷湯河","雞"]
["D01437","8)午餐肉煎蛋公仔面","早餐","品味","西式","西式粉麵飯","西式粉麵飯菜式","午餐肉煎蛋公仔麵","豬"]
["D01610","8.香茅牛肉豬耳絲撈檬","精選午餐","和味","越式","檬","撈檬","香茅牛肉豬耳絲撈檬","牛"]
["D01897","8.香茅牛肉豬耳絲撈檬","午市套餐","品味","越式","檬","撈檬","香茅牛肉豬耳絲撈檬","牛"]
["D01897","8.香茅雞扒拼春卷撈檬","午市套餐","品味","越式","檬","撈檬","香茅雞扒拼春卷撈檬","雞"]
["D01610","8.蝦餅拼豬扒撈檬","精選午餐","和味","越式","檬","撈檬","蝦餅拼豬扒撈檬","雜肉"]
["D01897","8.蝦餅拼豬扒撈檬","午市套餐","品味","越式","檬","撈檬","蝦餅拼豬扒撈檬","雜肉"]
["D01610","8.豬頸肉拼扎肉撈檬","精選午餐","和味","越式","檬","撈檬","豬頸肉拼扎肉撈檬","豬"]
["D01897","8.豬頸肉拼扎肉撈檬","午市套餐","品味","越式","檬","撈檬","豬頸肉拼扎肉撈檬","豬"]
["D01610","8.豬頸肉拼春卷撈檬","精選午餐","和味","越式","檬","撈檬","豬頸肉拼春卷撈檬","豬"]
["D01897","8.豬頸肉拼春卷撈檬","午市套餐","品味","越式","檬","撈檬","豬頸肉拼春卷撈檬","豬"]
["D01610","8.雞扒拼春卷撈檬","精選午餐","和味","越式","檬","撈檬","雞扒拼春卷撈檬","雞"]
["D01448","9)叉燒煎蛋通粉","早餐","品味","西式","西式粉麵飯","西式粉麵飯菜式","叉燒煎蛋通粉","豬"]
["D01561","92)雞絲扎肉河",null,"品味","越式","越式粉麵飯","越式河","雞絲扎肉河","雞"]
["D01565","97)香茅牛肉撈檬",null,"品味","越式","檬","撈檬","香茅牛肉撈檬","牛"]
["D01139","A)燒鵝飯","全日套餐","品味","中式","燒味","燒味飯","明爐燒鵝飯","鵝"]
["D01845","A1 品味皇牌湯河","全日套餐","和味","越式","越式粉麵飯","越式河","品味湯河粉","雜肉"]
["D01854","A10 越式炒金邊粉","全日套餐","和味","越式","越式粉麵飯","越式其他","越式炒金邊粉","粉麵飯"]
["D01857","A13 豬扒煎旦飯","全日套餐","和味","西式","西式粉麵飯","西式粉麵飯菜式","豬扒煎蛋飯","豬"]
["D02059","A16楊洲炒飯","全日套餐","和味","中式","中式粉麵飯","中式飯","揚州炒飯","海鮮"]
["D01952","A17燒腩飯","全日套餐","和味","中式","燒味","燒味飯","脆皮燒腩仔飯","豬"]
["D01953","A18叉燒飯","全日套餐","和味","中式","燒味","燒味飯","蜜汁叉燒飯","豬"]
["D01846","A2 生牛肉河","全日套餐","和味","越式","越式粉麵飯","越式河","河內生牛肉湯河","牛"]
["D01560","A2)生牛肉河","(新)全日套餐","品味","越式","越式粉麵飯","越式河","河內生牛肉湯河","牛"]
["D01714","A21.三文治餐","新早餐","和味","其他","餐牌其他","套餐","早餐套餐","無分類"]
["D01541","A24)三寶飯(燒鵝.叉燒.鹹蛋","(新)全日套餐","品味","中式","燒味","燒味飯","燒味三寶飯","雜肉"]
["D01959","A24三寶飯(燒鵝，叉燒.鹹蛋)","全日套餐","和味","中式","燒味","燒味飯","燒味三寶飯","雜肉"]
["D01847","A3 蝦餅扎肉撈檬","全日套餐","和味","越式","檬","撈檬","蝦餅扎肉撈檬","雜肉"]
["D01848","A4 迷你春卷撈檬","全日套餐","和味","越式","檬","撈檬","迷你春卷撈檬","菜"]
["D01850","A6 香茅牛肉撈檬","全日套餐","和味","越式","檬","撈檬","香茅牛肉撈檬","牛"]
["D01851","A7 鮮茄蟹肉湯檬","全日套餐","和味","越式","檬","湯檬","鮮茄蟹肉丸湯檬","海鮮"]
["D01852","A8 雞亦拼豬頸肉飯","全日套餐","和味","西式","西式粉麵飯","西式粉麵飯菜式","雞翼拼豬頸肉飯","雜肉"]
["D01853","A9 香葉肉碎伴太旦飯","全日套餐","和味","越式","越式粉麵飯","越式飯","香葉肉碎伴太陽蛋飯","雜肉"]
["D01140","B)燒腩飯","全日套餐","品味","中式","燒味","燒味飯","脆皮燒腩仔飯","豬"]
["D01762","B1)雙拼湯麵餐","(新)醒晨早餐","品味","其他","餐牌其他","套餐","早餐套餐","粉麵飯"]
["D01859","B1雙拼湯面餐","新早餐","和味","其他","餐牌其他","套餐","早餐套餐","粉麵飯"]
["D01772","B2)湯麵餐","(新)醒晨早餐","品味","其他","餐牌其他","套餐","早餐套餐","粉麵飯"]
["D01861","B2自選面餐","新早餐","和味","其他","餐牌其他","套餐","早餐套餐","粉麵飯"]
["D01774","B3)麥皮早餐","(新)醒晨早餐","品味","其他","餐牌其他","套餐","早餐套餐","粉麵飯"]
["D01775","B4)三文治餐","(新)醒晨早餐","品味","其他","餐牌其他","套餐","早餐套餐","包類"]
["D01863","B4三文治餐","新早餐","和味","其他","餐牌其他","套餐","早餐套餐","包類"]
["D01779","B5)越式雙拼麵餐","(新)醒晨早餐","品味","越式","越式粉麵飯","越式其他","越式雙拼麵","粉麵飯"]
["D01864","B5越式雙拼面餐","新早餐","和味","越式","越式粉麵飯","越式其他","越式雙拼麵","粉麵飯"]
["D01780","B6)香茅豬扒湯河","(新)醒晨早餐","品味","越式","越式粉麵飯","越式河","香茅雞扒湯河","豬"]
["D01781","B7)香茅雞扒湯河","(新)醒晨早餐","品味","越式","越式粉麵飯","越式河","香茅雞扒湯河","雞"]
["D01868","B7香茅雞扒湯河","新早餐","和味","越式","越式粉麵飯","越式河","香茅雞扒湯河","雞"]
["D01782","B8)歐陸扒餐","(新)醒晨早餐","品味","其他","餐牌其他","套餐","早餐套餐","雜肉"]
["D01869","B8歐陸扒餐","新早餐","和味","其他","餐牌其他","套餐","早餐套餐","雜肉"]
["D01141","C)叉燒飯","全日套餐","品味","中式","燒味","燒味飯","蜜汁叉燒飯","豬"]
["D01142","D)白切雞飯","全日套餐","品味","中式","燒味","燒味飯","白切雞飯","雞"]
["D02056","D11.香茅豬扒","抗疫小菜","和味","越式","越式小菜","越式小菜菜式","香茅豬扒","豬"]
["D02057","D11.香茅雞扒","抗疫小菜","和味","越式","越式小菜","越式小菜菜式","香茅雞扒","雞"]
["D02074","D12.馬拉盞時蔬飯","午市套餐","品味","越式","越式粉麵飯","越式飯","馬拉盞時蔬飯","菜"]
["D02070","D12.蒜蓉炒時蔬","抗疫小菜","和味","中式","中式素菜","中式素菜菜式","蒜蓉炒時蔬","菜"]
["D02073","D12.蒜蓉炒時蔬飯","午市套餐","品味","中式","中式粉麵飯","中式飯","蒜蓉炒時蔬飯","菜"]
["D02069","D12馬拉盞炒時蔬","抗疫小菜","和味","越式","越式素菜","越式素菜菜式","馬拉盞炒通菜","菜"]
["D02096","D13.和味三小拼(海蜇.叉燒.青瓜)","抗疫小菜","和味","中式","中式頭盤","中式頭盤菜式","和味三小拼(海蜇.叉燒.青瓜)","雜肉"]
["D02083","D15.豉汁蒸白鱔","抗疫小菜","和味","中式","中式海鮮","中式海鮮菜式","豉汁蒸鱔","海鮮"]
["D02083","D15.豉汁蒸白鱔(小)","抗疫小菜","和味","中式","中式海鮮","中式海鮮菜式","豉汁蒸鱔","海鮮"]
["D02075","D15.豉汁蒸鱔","午市套餐","品味","中式","中式海鮮","中式海鮮菜式","豉汁蒸鱔","海鮮"]
["D02076","D16.薑蔥魚頭煲","午市套餐","品味","中式","中式小菜","中式小菜菜式","薑蔥魚頭煲","海鮮"]
["D02084","D16.薑蔥魚頭煲","抗疫小菜","和味","中式","中式小菜","中式小菜菜式","薑蔥魚頭煲","海鮮"]
["D01910","D2菜心炒牛肉","外賣小菜套餐","和味","中式","中式小菜","中式小菜菜式","菜心炒牛肉","牛"]
["D01911","D3通菜炒鮮魷","外賣小菜套餐","和味","中式","中式小菜","中式小菜菜式","通菜炒鮮魷","海鮮"]
["D01695","D3蝦餅扎肉撈檬","晚市套餐","品味","越式","檬","撈檬","蝦餅扎肉撈檬","雜肉"]
["D01912","D4肉碎茄子煲","外賣小菜套餐","和味","中式","中式小菜","中式小菜菜式","肉碎茄子煲","雜肉"]
["D01958","D8 豉汁蒸倉魚","（新）小菜套餐","品味","中式","中式海鮮","中式海鮮菜式","豉汁蒸倉魚","海鮮"]
["D02054","D9.椒鹽鮮魷飯","抗疫小菜","和味","中式","中式粉麵飯","中式飯","椒鹽鮮魷飯","海鮮"]
["D02069","D9.椒鹽鮮魷飯","午市套餐","品味","中式","中式粉麵飯","中式飯","椒鹽鮮魷飯","海鮮"]
["D01143","E)豉油雞飯","全日套餐","品味","中式","燒味","燒味飯","豉油雞飯","雞"]
["D01144","F)燒鵝髀飯","全日套餐","品味","中式","燒味","燒味飯","明爐燒鵝髀飯","鵝"]
["D01264","G)香茅豬扒飯","全日套餐","品味","越式","越式粉麵飯","越式飯","香茅豬扒飯","豬"]
["D01501","G，燒味三寶飯","精選午餐","和味","中式","燒味","燒味飯","燒味三寶飯","雜肉"]
["D01265","H)香茅雞扒飯","全日套餐","品味","越式","越式粉麵飯","越式飯","香茅雞扒飯","雞"]
["D01735","H.燒味四寶飯","午市套餐","品味","中式","燒味","燒味飯","燒味三寶飯","雜肉"]
["D01735","H.燒味四寶飯","精選午餐","和味","中式","燒味","燒味飯","燒味四寶飯","雜肉"]
["D01266","I)豬頸肉飯","全日套餐","品味","越式","越式粉麵飯","越式飯","豬頸肉飯","豬"]
["D01151","J)咖喱牛腩飯","全日套餐","品味","中式","中式粉麵飯","中式飯","咖喱牛腩飯","牛"]
["D01147","K)生牛肉河","全日套餐","品味","越式","越式粉麵飯","越式河","河內生牛肉湯河","牛"]
["D01263","L)雞絲扎肉河","全日套餐","品味","越式","越式粉麵飯","越式河","雞絲扎肉河","雞"]
["D00173","L10越式炒金邊粉","午市套餐","品味","越式","越式粉麵飯","越式其他","越式炒金邊粉","粉麵飯"]
["D01274","L11豉油皇野菌炒河粉","午市套餐","和味","中式","中式粉麵飯","中式河","豉油皇野菌炒河粉","菜"]
["D00168","L12咖喱牛腩飯","午市套餐","品味","中式","中式粉麵飯","中式飯","咖喱牛腩飯","牛"]
["D01275","L13豬扒煎蛋飯","午市套餐","品味","西式","西式粉麵飯","西式粉麵飯菜式","豬扒煎蛋飯","豬"]
["D02015","L14雲吞河","午市套餐","品味","中式","中式粉麵飯","中式河","鮮蝦雲吞河","海鮮"]
["D01463","L14鮮蝦雲吞河","午市套餐","和味","中式","中式粉麵飯","中式河","鮮蝦雲吞河","海鮮"]
["D01464","L15乾炒牛河","午市套餐","和味","中式","中式粉麵飯","中式河","乾炒牛河","牛"]
["D01715","L15乾炒牛河","午市套餐","品味","中式","中式粉麵飯","中式河","乾炒牛河","牛"]
["D01467","L18肉碎茄子飯","午市套餐","和味","中式","中式粉麵飯","中式飯","肉碎茄子飯","雜肉"]
["D01716","L19揚州炒飯","午市套餐","品味","中式","中式粉麵飯","中式飯","揚州炒飯","粉麵飯"]
["D01468","L19楊洲炒飯","午市套餐","和味","中式","中式粉麵飯","中式飯","揚州炒飯","粉麵飯"]
["D00162","L1和味皇牌湯河粉(生牛肉.豬肚絲.扎肉","午市套餐","和味","越式","越式粉麵飯","越式河","和味皇牌湯河","粉麵飯"]
["D00162","L1品味湯河粉(生牛肉、豬肚絲、扎肉)","午市套餐","品味","越式","越式粉麵飯","越式河","品味湯河粉","粉麵飯"]
["D01274","L20越式炒飯","午市套餐","品味","越式","越式粉麵飯","越式飯","越式炒飯","雜肉"]
["D01469","L20越式炒飯","午市套餐","和味","越式","越式粉麵飯","越式飯","越式炒飯","雜肉"]
["D00182","L21明爐燒鵝飯","午市套餐","品味","中式","燒味","燒味飯","明爐燒鵝飯","鵝"]
["D00183","L22脆皮燒腩仔飯","午市套餐","品味","中式","燒味","燒味飯","脆皮燒腩仔飯","豬"]
["D02141","L23A.燻蹄飯","午市套餐","品味","中式","燒味","燒味飯","燻蹄飯","豬"]
["D00184","L23蜜汁叉燒飯","午市套餐","品味","中式","燒味","燒味飯","蜜汁叉燒飯","豬"]
["D00185","L24白切雞飯","午市套餐","品味","中式","燒味","燒味飯","白切雞飯","雞"]
["D00186","L25豉油雞飯","午市套餐","品味","中式","燒味","燒味飯","豉油雞飯","雞"]
["D00187","L26明爐燒鵝髀飯","午市套餐","品味","中式","燒味","燒味飯","明爐燒鵝髀飯","鵝"]
["D00188","L27白切雞髀飯","午市套餐","品味","中式","燒味","燒味飯","白切雞髀飯","雞"]
["D00189","L28豉油雞髀飯","午市套餐","品味","中式","燒味","燒味飯","豉油雞髀飯","雞"]
["D02168","L29A海蜇燻蹄飯","午市套餐","品味","中式","燒味","燒味飯","海蜇燻蹄飯","雜肉"]
["D02014","L29金菠蘿海鮮炒飯","午市套餐","品味","中式","中式粉麵飯","中式飯","菠蘿海鮮炒飯","海鮮"]
["D02186","L29海蜇燻蹄飯","午市套餐","和味","中式","燒味","燒味飯","海蜇燻蹄飯","雜肉"]
["D01470","L29菠蘿海鮮炒飯","午市套餐","和味","中式","中式粉麵飯","中式飯","菠蘿海鮮炒飯","海鮮"]
["D00161","L2河內生牛肉湯河粉","午市套餐","品味","越式","越式粉麵飯","越式河","河內生牛肉湯河","牛"]
["D01757","L31肉碎茄子飯","午市套餐","品味","中式","中式粉麵飯","中式飯","肉碎茄子飯","雜肉"]
["D01737","L31燒味四寶飯","午市套餐","品味","中式","燒味","燒味飯","燒味四寶飯","雜肉"]
["D00166","L3蝦餅扎肉撈檬","午市套餐","品味","越式","檬","撈檬","蝦餅扎肉撈檬","雜肉"]
["D00164","L4迷你春卷撈檬","午市套餐","品味","越式","檬","撈檬","迷你春卷撈檬","菜"]
["D00167","L5雞絲扎肉芝麻醬撈檬","午市套餐","品味","越式","檬","撈檬","雞絲扎肉芝麻醬撈檬","雞"]
["D00165","L6香茅牛肉撈檬","午市套餐","品味","越式","檬","撈檬","香茅牛肉撈檬","牛"]
["D00163","L7鮮茄蟹肉丸湯檬","午市套餐","品味","越式","檬","湯檬","鮮茄蟹肉丸湯檬","海鮮"]
["D00169","L8雞翼拼豬頸肉飯","午市套餐","品味","西式","西式粉麵飯","西式粉麵飯菜式","雞翼拼豬頸肉飯","雜肉"]
["D00171","L9香葉肉碎伴太陽蛋飯","午市套餐","品味","越式","越式粉麵飯","越式飯","香葉肉碎伴太陽蛋飯","雜肉"]
["D01261","M)金菠羅海鮮炒飯","全日套餐","品味","中式","中式粉麵飯","中式飯","菠蘿海鮮炒飯","海鮮"]
["D01262","N)越式炒金邊粉","全日套餐","品味","越式","越式粉麵飯","越式其他","越式炒金邊粉","粉麵飯"]
["D00146","ＯＴ","熱飮","品味","飲料","無酒精","熱飲","熱檸檬茶","飲品"]
["D01108","Ｏ水","熱飮","品味","飲料","無酒精","熱飲","熱檸檬水","飲品"]
["D02089","Ｏ啡","熱飮","品味","飲料","無酒精","熱飲","熱咖啡","飲品"]
["D01174","O蜜","熱飮","品味","飲料","無酒精","熱飲","熱檸蜜","飲品"]
["D01158","Ｏ樂","特飮","品味","飲料","無酒精","熱飲","熱檸樂","飲品"]
["D01211","P)豉油雞脾飯","全日套餐","品味","中式","燒味","燒味飯","豉油雞髀飯","雞"]
["D00190","S11紅燒乳鴿","午市小食","品味","中式","燒味","淨燒味","紅燒乳鴿","鴿"]
["D00191","S12涼伴豬肚絲","午市小食","品味","中式","中式頭盤","中式頭盤菜式","涼伴豬肚絲","豬"]
["D02013","S12涼拌豬肚絲","午市小食","和味","中式","中式頭盤","中式頭盤菜式","涼伴豬肚絲","豬"]
["D00192","S13手拍青瓜","午市小食","品味","中式","中式頭盤","中式頭盤菜式","手拍青瓜","菜"]
["D00193","S14陳醋雲耳","午市小食","品味","中式","中式頭盤","中式頭盤菜式","陳醋雲耳","菜"]
["D00176","S1酸辣無骨鳳爪","午市小食","品味","中式","中式頭盤","中式頭盤菜式","酸辣無骨鳯爪","雞"]
["D00177","S2馬拉盞炒通菜","午市小食","品味","越式","越式素菜","越式素菜菜式","馬拉盞炒通菜","菜"]
["D00178","S3涼伴豬耳絲","午市小食","和味","中式","中式頭盤","中式頭盤菜式","涼伴豬耳絲","豬"]
["D01990","S3涼伴豬耳絲","午市小食","品味","中式","中式頭盤","中式頭盤菜式","涼伴豬耳絲","豬"]
["D00180","S4越式炸蝦餅","午市小食","品味","越式","越式小菜","越式小菜菜式","越式炸蝦餅","海鮮"]
["D02187","S4蝦餅(4片)","午市小食","和味","越式","越式小菜","越式小菜菜式","越式炸蝦餅","海鮮"]
["D00181","S5迷你春卷","午市小食","品味","越式","越式小菜","越式小菜菜式","迷你春卷","菜"]
["D01560","T1 河内雞絲湯河","優惠下午茶","和味","越式","越式粉麵飯","越式河","河内雞絲湯河","雞"]
["D01575","T10 豬頸肉炒公仔麵","優惠下午茶","和味","西式","西式粉麵飯","西式粉麵飯菜式","豬頸肉炒公仔麵","豬"]
["D01580","T12馬来炒貴刁","優惠下午茶","和味","中式","中式粉麵飯","中式其他","馬来炒貴刁","粉麵飯"]
["D01623","T16 炸雞中翼配薯條",null,"品味","西式","西式小食","西式小食菜式","炸雞中翼配薯條","雞"]
["D01627","T18 炸魚柳薯條",null,"品味","西式","西式小食","西式小食菜式","炸魚柳薯條","海鮮"]
["D01660","T18脆炸魚柳配薯條","優惠下午茶","和味","西式","西式小食","西式小食菜式","炸魚柳薯條","海鮮"]
["D01561","T2 越南扎肉湯河","優惠下午茶","和味","越式","越式粉麵飯","越式河","越南扎肉湯河","豬"]
["D01629","T20 雞全翼配蒜蓉包(2件)",null,"品味","西式","西式小食","西式小食菜式","雞全翼配蒜蓉包","雞"]
["D01630","T21 越式三文治",null,"品味","越式","越式麵包","越式麵包菜式","越式三文治","包類"]
["D01634","T23 雙拼三文治",null,"品味","西式","西式麵包","西式麵包菜式","雙拼三文治","包類"]
["D01635","T24 雙拼多士",null,"品味","西式","西式麵包","西式麵包菜式","雙拼多士","包類"]
["D01636","T25 豬仔包",null,"品味","西式","西式麵包","西式麵包菜式","脆脆豬仔包","包類"]
["D02121","T26 菠蘿油-copy",null,"品味","西式","西式麵包","西式麵包菜式","菠蘿油","包類"]
["D01562","T3 越南炸春卷湯河","優惠下午茶","和味","越式","越式粉麵飯","越式河","迷你春卷湯河","菜"]
["D02009","T33蝦餅扎肉撈檬","優惠下午茶","和味","越式","檬","撈檬","蝦餅扎肉撈檬","雜肉"]
["D01566","T7 和味焼鵝濑","優惠下午茶","和味","中式","中式粉麵飯","中式其他","和味焼鵝濑","鵝"]
["D01573","T8 豬扒炒公仔麵","優惠下午茶","和味","西式","西式粉麵飯","西式粉麵飯菜式","豬扒炒公仔麵","豬"]
["D01574","T9 雞扒炒公仔麵","優惠下午茶","和味","西式","西式粉麵飯","西式粉麵飯菜式","雞扒炒公仔麵","雞"]
["D01534","二人套餐","二人套餐","和味","其他","餐牌其他","套餐","午餐套餐","無分類"]
["D01259","二鍋頭(細)","酒類","品味","飲料","酒精","酒精款式","二鍋頭(細)","酒類"]
["D01106","力","熱飮","品味","飲料","無酒精","熱飲","凍好立克","飲品"]
["D01097","三文治餐","三文治","品味","其他","餐牌其他","套餐","早餐套餐","無分類"]
["D00133","三色冰","特飮","品味","飲料","無酒精","特飲","三色冰","飲品"]
["D01330","下)200.雙拼飯","下午茶餐","品味","中式","燒味","燒味飯","雙拼飯","雜肉"]
["D00229","下)201.叉燒飯","下午茶餐","品味","中式","燒味","燒味飯","蜜汁叉燒飯","豬"]
["D00229","下)201.蜜汁叉燒飯","下午茶餐","和味","中式","燒味","燒味飯","蜜汁叉燒飯","豬"]
["D01213","下)202.白切雞飯","下午茶餐","品味","中式","燒味","燒味飯","白切雞飯","雞"]
["D00227","下)203.脆皮燒鵝飯","下午茶餐","和味","中式","燒味","燒味飯","明爐燒鵝飯","鵝"]
["D00227","下)203.燒鵝飯","下午茶餐","品味","中式","燒味","燒味飯","明爐燒鵝飯","鵝"]
["D01214","下)204.豉油雞飯","下午茶餐","品味","中式","燒味","燒味飯","豉油雞飯","雞"]
["D00228","下)205.燒腩飯","下午茶餐","品味","中式","燒味","燒味飯","脆皮燒腩仔飯","豬"]
["D02128","下)206.海蜇燻蹄飯","下午茶餐","和味","中式","燒味","燒味飯","海蜇燻蹄飯","雜肉"]
["D00239","下)207.香茅雞翼","下午茶餐","品味","越式","越式小菜","越式小菜菜式","香茅雞翼","雞"]
["D01480","下)207.香茅雞翼撈檬","下午茶餐","和味","越式","檬","撈檬","香茅雞翼撈檬","雞"]
["D02117","下)208.鮮茄豬肉丸扎肉湯檬","下午茶餐","品味","越式","檬","湯檬","鮮茄豬肉丸扎肉湯檬","豬"]
["D00243","下)209.馬拉盞野菌炒金邊粉","下午茶餐","品味","越式","越式粉麵飯","越式其他","馬拉盞野菌炒金邊粉","菜"]
["D00235","下)210.生牛肉湯河","下午茶餐","品味","越式","越式粉麵飯","越式河","河內生牛肉湯河","牛"]
["D01476","下)210.河内生牛肉湯河粉","下午茶餐","和味","越式","越式粉麵飯","越式河","河內生牛肉湯河","牛"]
["D02118","下)211.三寶湯河(牛肉，雞絲.扎肉)","下午茶餐","品味","越式","越式粉麵飯","越式河","越式三寶湯河","雜肉"]
["D02131","下)212.雞絲扎肉河","下午茶餐","和味","越式","越式粉麵飯","越式河","雞絲扎肉河","雞"]
["D02132","下)213.春卷撈檬","下午茶餐","和味","越式","檬","撈檬","迷你春卷撈檬","菜"]
["D01277","下)213.迷你春卷湯河","下午茶餐","品味","越式","越式粉麵飯","越式河","迷你春卷湯河","菜"]
["D02133","下)214.乾炒牛河","下午茶餐","和味","中式","中式粉麵飯","中式河","乾炒牛河","牛"]
["D01276","下)215.越式炒金邊粉","下午茶餐","品味","越式","越式粉麵飯","越式其他","越式炒金邊粉","粉麵飯"]
["D01288","下)216.肉碎太陽蛋飯","下午茶餐","品味","越式","越式粉麵飯","越式飯","香葉肉碎伴太陽蛋飯","雜肉"]
["D01279","下)217.豬頸肉飯","下午茶餐","品味","越式","越式粉麵飯","越式飯","豬頸肉飯","豬"]
["D00240","下)218.香茅豬扒飯","下午茶餐","品味","越式","越式粉麵飯","越式飯","香茅豬扒飯","豬"]
["D00241","下)218A.香茅雞扒飯","下午茶餐","品味","越式","越式粉麵飯","越式飯","香茅雞扒飯","雞"]
["D01498","下)218A.雞扒飯","下午茶餐","和味","西式","西式粉麵飯","西式粉麵飯菜式","雞扒飯","雞"]
["D01474","下)219.楊洲炒飯","下午茶餐","和味","中式","中式粉麵飯","中式飯","揚州炒飯","粉麵飯"]
["D00244","下)220.越式炒飯","下午茶餐","品味","越式","越式粉麵飯","越式飯","越式炒飯","粉麵飯"]
["D01473","下)220.越式炒飯","下午茶餐","和味","越式","越式粉麵飯","越式飯","越式炒飯","粉麵飯"]
["D00253","下)221.酸辣無骨鳳爪","下午茶小食","和味","中式","中式頭盤","中式頭盤菜式","酸辣無骨鳯爪","雞"]
["D00245","下)227.蔥油海蜇","下午茶小食","和味","中式","中式頭盤","中式頭盤菜式","蔥油海蜇","海鮮"]
["D00242","下)236.越式豬頸肉三文治","下午茶餐","品味","越式","越式麵包","越式麵包菜式","越式三文治","包類"]
["D01949","下)A.豬扒炒河","下午茶小食","和味","中式","中式粉麵飯","中式河","豬扒炒河","豬"]
["D02173","下)A.豬扒炒河","下午茶餐","和味","中式","中式粉麵飯","中式河","豬扒炒河","豬"]
["D02174","下)B.田園菜粒炒飯","下午茶餐","和味","中式","中式粉麵飯","中式飯","田園菜粒炒飯","菜"]
["D01947","下)C.豬肚絲拼豬肉丸湯河","下午茶小食","和味","越式","越式粉麵飯","越式河","豬肚絲豬肉丸湯河","豬"]
["D02175","下)C.豬肚絲拼豬肉丸湯河","下午茶餐","和味","越式","越式粉麵飯","越式河","豬肚絲豬肉丸湯河","豬"]
["D01946","下)D.豬手牛肉湯河","下午茶小食","和味","中式","中式粉麵飯","中式河","豬手牛肉湯河","雜肉"]
["D02176","下)D.豬手牛肉湯河","下午茶餐","和味","中式","中式粉麵飯","中式河","豬手牛肉湯河","雜肉"]
["D01945","下)E.蝦餅湯檬","下午茶小食","和味","越式","檬","湯檬","蝦餅湯檬","海鮮"]
["D02177","下)E.蝦餅湯檬","下午茶餐","和味","越式","檬","湯檬","蝦餅湯檬","海鮮"]
["D02182","下)F.豬肉丸雪菜米線","下午茶餐","和味","中式","中式粉麵飯","中式米線","豬肉丸雪菜米線","豬"]
["D02178","下)G.油雞湯河","下午茶餐","和味","中式","中式粉麵飯","中式河","油雞湯河","雞"]
["D02179","下)H.午餐肉肉碎飯","下午茶餐","和味","西式","西式粉麵飯","西式粉麵飯菜式","午餐肉肉碎飯","豬"]
["D01471","下)涼瓜牛肉飯","下午茶餐","和味","中式","中式粉麵飯","中式飯","涼瓜牛肉飯","牛"]
["D02136","下)蔥油海蜇","午市小食","品味","中式","中式頭盤","中式頭盤菜式","蔥油海蜇","海鮮"]
["D01478","下)蝦餠扎肉撈檬","下午茶餐","和味","越式","檬","撈檬","蝦餅扎肉撈檬","雜肉"]
["D02099","叉焼炒滑蛋飯","抗疫小菜","和味","中式","中式粉麵飯","中式飯","叉燒炒滑蛋飯","豬"]
["D01309","叉燒(一斤)","燒味","品味","中式","燒味","淨燒味","蜜汁叉燒","豬"]
["D01310","叉燒(半斤)","燒味","品味","中式","燒味","淨燒味","蜜汁叉燒","豬"]
["D01306","叉燒炒滑蛋","廚師推介","品味","中式","中式小菜","中式小菜菜式","叉燒炒滑蛋","豬"]
["D02093","叉燒炒滑蛋飯","午市套餐","品味","中式","中式粉麵飯","中式飯","叉燒炒滑蛋飯","豬"]
["D01415","云吞河","全日套餐","品味","中式","中式粉麵飯","中式河","鮮蝦雲吞河","海鮮"]
["D01038","什項","什項","品味","其他","餐牌其他","雜項","雜項","無分類"]
["D01273","公司三文治餐","三文治","品味","西式","西式麵包","西式麵包菜式","公司三文治","包類"]
["D01530","午餐A","精選午餐","和味","其他","餐牌其他","套餐","午餐套餐","無分類"]
["D01728","午餐A","午市套餐","品味","其他","餐牌其他","套餐","午餐套餐","無分類"]
["D01824","午餐A","午市套餐","和味","其他","餐牌其他","套餐","午餐套餐","無分類"]
["D01502","午餐B","精選午餐","和味","其他","餐牌其他","套餐","午餐套餐","無分類"]
["D01729","午餐B","午市套餐","品味","其他","餐牌其他","套餐","午餐套餐","無分類"]
["D01825","午餐B","午市套餐","和味","其他","餐牌其他","套餐","午餐套餐","無分類"]
["D01503","午餐C","精選午餐","和味","其他","餐牌其他","套餐","午餐套餐","無分類"]
["D01730","午餐C","午市套餐","品味","其他","餐牌其他","套餐","午餐套餐","無分類"]
["D01826","午餐C","午市套餐","和味","其他","餐牌其他","套餐","午餐套餐","無分類"]
["D01504","午餐D","精選午餐","和味","其他","餐牌其他","套餐","午餐套餐","無分類"]
["D01731","午餐D","午市套餐","品味","其他","餐牌其他","套餐","午餐套餐","無分類"]
["D01827","午餐D","午市套餐","和味","其他","餐牌其他","套餐","午餐套餐","無分類"]
["D01505","午餐E","精選午餐","和味","其他","餐牌其他","套餐","午餐套餐","無分類"]
["D01732","午餐E","午市套餐","品味","其他","餐牌其他","套餐","午餐套餐","無分類"]
["D01828","午餐E","午市套餐","和味","其他","餐牌其他","套餐","午餐套餐","無分類"]
["D01652","午餐F","精選午餐","和味","其他","餐牌其他","套餐","午餐套餐","無分類"]
["D01733","午餐F","午市套餐","品味","其他","餐牌其他","套餐","午餐套餐","無分類"]
["D01829","午餐F","午市套餐","和味","其他","餐牌其他","套餐","午餐套餐","無分類"]
["D01734","午餐G","午市套餐","品味","其他","餐牌其他","套餐","午餐套餐","無分類"]
["D01830","午餐G","午市套餐","和味","其他","餐牌其他","套餐","午餐套餐","無分類"]
["D01831","午餐H","午市套餐","和味","其他","餐牌其他","套餐","午餐套餐","無分類"]
["D00018","手拍青瓜(例)","燒味","品味","中式","中式頭盤","中式頭盤菜式","手拍青瓜","菜"]
["D01477","水煮完魚$138","廚師推介","品味","越式","越式海鮮","越式海鮮菜式","水煮鯇魚","海鮮"]
["D02100","火腩豆腐飯","抗疫小菜","和味","中式","中式粉麵飯","中式飯","豆腐火腩飯","豬"]
["D01448","火腩豆腐煲","厨师推介","和味","中式","中式小菜","中式小菜菜式","豆腐火腩煲","豬"]
["D00041","牙車快","沙律","品味","越式","越式素菜","越式素菜菜式","牙車快","菜"]
["D01171","另加","早餐","品味","其他","餐牌其他","雜項","雜項","無分類"]
["D02172","另加","新早餐","和味","其他","餐牌其他","雜項","雜項","無分類"]
["D00136","可樂","特飮","品味","飲料","無酒精","特飲","可樂","飲品"]
["D01966","四寶飯(燒鵝.切雞.叉燒.鹹蛋","全日套餐","品味","中式","燒味","燒味飯","燒味四寶飯","雜肉"]
["D01037","外賣盒","什項","品味","其他","餐牌其他","雜項","雜項","無分類"]
["D01928","外賣盒","午市套餐","品味","其他","餐牌其他","雜項","雜項","無分類"]
["D01993","外賣盒","精選午餐","和味","其他","餐牌其他","雜項","雜項","無分類"]
["D01103","央","熱飮","品味","飲料","無酒精","熱飲","熱鴛鴦","飲品"]
["D01598","央走","熱飮","和味","飲料","無酒精","熱飲","熱鴛鴦","飲品"]
["D01680","央走","熱飮","品味","飲料","無酒精","熱飲","熱鴛鴦","飲品"]
["D01208","奶油包","包類","品味","西式","西式麵包","西式麵包菜式","奶油豬仔包","包類"]
["D01180","奶油豬","包類","品味","西式","西式麵包","西式麵包菜式","奶油豬仔包","包類"]
["D00145","奶茶","熱飮","品味","飲料","無酒精","熱飲","熱奶茶","飲品"]
["D01270","奶茶(顧客)","熱飮","和味","飲料","無酒精","熱飲","熱奶茶","飲品"]
["D01267","奶醬包","包類","和味","西式","西式麵包","西式麵包菜式","奶醬包","包類"]
["D01104","田","熱飮","品味","飲料","無酒精","熱飲","凍阿華田","飲品"]
["D00126","田園菜粒炒飯","素菜/飯/粉","品味","中式","中式粉麵飯","中式飯","田園菜粒炒飯","菜"]
["D00011","白切農場雞(半)","燒味","品味","中式","燒味","淨燒味","白切農場雞","雞"]
["D00012","白切農場雞(隻)","燒味","品味","中式","燒味","淨燒味","白切農場雞","雞"]
["D01203","白切雞脾","燒味","品味","中式","燒味","淨燒味","白切雞脾","雞"]
["D00070","白飯","什項","品味","中式","中式粉麵飯","中式飯","白飯","粉麵飯"]
["D00070","白飯","咖喱","品味","中式","中式粉麵飯","中式飯","白飯","粉麵飯"]
["D01499","白飯","厨师推介","和味","中式","中式粉麵飯","中式飯","白飯","粉麵飯"]
["D01651","白飯","全日套餐","和味","中式","中式粉麵飯","中式飯","白飯","粉麵飯"]
["D01637","全)蝦餅扎肉湯檬","全日套餐","和味","越式","檬","撈檬","蝦餅扎肉撈檬","雜肉"]
["D01636","全)蝦餅扎肉撈檬","全日套餐","和味","越式","檬","撈檬","蝦餅扎肉撈檬","雜肉"]
["D01634","全鮮蝦撈檬",null,"和味","越式","檬","撈檬","鮮蝦撈檬","海鮮"]
["D02166","早)奶油多","(新)醒晨早餐","品味","西式","西式麵包","西式麵包菜式","奶油多","包類"]
["D02165","早)奶油豬","(新)醒晨早餐","品味","西式","西式麵包","西式麵包菜式","奶油豬仔包","包類"]
["D02164","早)波羅包","(新)醒晨早餐","品味","西式","西式麵包","西式麵包菜式","菠蘿包","包類"]
["D01105","朱","熱飮","品味","飲料","無酒精","熱飲","熱巧克力","飲品"]
["D02140","米粉","(新)醒晨早餐","品味","中式","中式粉麵飯","中式其他","米粉","粉麵飯"]
["D02046","肉碎茄子飯","抗疫小菜","品味","中式","中式粉麵飯","中式飯","肉碎茄子飯","雜肉"]
["D02086","肉碎茄子飯","午市套餐","品味","中式","中式粉麵飯","中式飯","肉碎茄子飯","雜肉"]
["D02093","肉碎茄子飯","抗疫小菜","和味","中式","中式粉麵飯","中式飯","肉碎茄子飯","雜肉"]
["D01236","肉碎茄子煲","廚師推介","品味","中式","中式小菜","中式小菜菜式","肉碎茄子煲","雜肉"]
["D01449","肉碎茄子煲",null,"和味","中式","中式小菜","中式小菜菜式","肉碎茄子煲","雜肉"]
["D02105","自選常餐","下午茶餐","品味","其他","餐牌其他","套餐","午餐套餐","無分類"]
["D02111","自選常餐","下午茶小食","和味","其他","餐牌其他","套餐","午餐套餐","無分類"]
["D02180","自選常餐","下午茶餐","和味","其他","餐牌其他","套餐","午餐套餐","無分類"]
["D01253","自選麵餐","自選麵餐","品味","其他","餐牌其他","套餐","午餐套餐","無分類"]
["D01526","自選麵餐","早餐","品味","其他","餐牌其他","套餐","早餐套餐","無分類"]
["D00115","西堤素菜米紙卷","素菜/飯/粉","和味","越式","米紙卷","米紙卷菜式","西堤素菜米紙卷","菜"]
["D00053","串焼大虎蝦(2隻)","燒物","品味","越式","越式燒物","越式燒物菜式","串焼大虎蝦","海鮮"]
["D01305","串燒大虎蝦(5隻)","燒物","和味","越式","越式燒物","越式燒物菜式","串焼大虎蝦","海鮮"]
["D01589","串燒大虎蝦(5隻)","海鮮","品味","越式","越式燒物","越式燒物菜式","串焼大虎蝦","海鮮"]
["D01153","杏雙","熱飮","品味","飲料","無酒精","熱飲","杏仁霜","飲品"]
["D00074","灼時蔬","蔬菜","品味","中式","中式素菜","中式素菜菜式","灼時蔬","菜"]
["D01165","芒果涼粉冰","特飮","品味","飲料","無酒精","特飲","芒果涼粉冰","飲品"]
["D02107","豆豉凌魚油麥菜","午市套餐","品味","中式","中式小菜","中式小菜菜式","豆豉凌魚油麥菜","菜"]
["D02094","豆腐火腩飯","午市套餐","品味","中式","中式粉麵飯","中式飯","豆腐火腩飯","豬"]
["D01205","豆腐火腩煲","廚師推介","品味","中式","中式小菜","中式小菜菜式","豆腐火腩煲","豬"]
["D02185","豆腐魚腩煲","抗疫小菜","和味","中式","中式小菜","中式小菜菜式","豆腐魚腩煲","海鮮"]
["D01549","豆腐魚頭雑菜湯","厨师推介","和味","中式","中式湯","中式湯菜式","豆腐魚頭雑菜湯","海鮮"]
["D01025","例湯","午市套餐","品味","中式","中式湯","中式湯菜式","例湯","湯"]
["D01173","例湯","湯","品味","中式","中式湯","中式湯菜式","例湯","湯"]
["D01175","例湯","什項","品味","中式","中式湯","中式湯菜式","例湯","湯"]
["D01290","例湯","全日套餐","品味","中式","中式湯","中式湯菜式","例湯","湯"]
["D01429","例湯(免費)","湯","品味","中式","中式湯","中式湯菜式","例湯","湯"]
["D01496","例湯(免費)","湯","和味","中式","中式湯","中式湯菜式","例湯","湯"]
["D01548","剁椒魚頭","厨师推介","和味","中式","中式海鮮","中式海鮮菜式","剁椒魚頭","海鮮"]
["D01633","和味湯河粉",null,"和味","越式","越式粉麵飯","越式河","和味皇牌湯河","雜肉"]
["D01599","咖哩豬扒鍋","咖喱","品味","中式","中式小菜","中式小菜菜式","咖哩豬扒鍋","豬"]
["D01294","咖哩雞鍋","咖喱","品味","中式","中式小菜","中式小菜菜式","咖哩雞鍋","雞"]
["D00062","咖喱牛腩鍋","咖喱","品味","越式","咖喱","咖喱菜式","咖喱牛腩鍋","牛"]
["D00064","咖喱軟殼蟹鍋(2隻)","咖喱","品味","越式","咖喱","咖喱菜式","咖喱軟殼蟹鍋","海鮮"]
["D00065","咖喱雑菜鍋","咖喱","品味","越式","咖喱","咖喱菜式","咖喱雑菜鍋","菜"]
["D01447","明爐烏頭","廚師推介","品味","中式","中式海鮮","中式海鮮菜式","明爐烏頭","海鮮"]
["D01595","明爐烏頭","海鮮","品味","中式","中式海鮮","中式海鮮菜式","明爐烏頭","海鮮"]
["D00003","明爐燒鵝皇(隻)","燒味","品味","中式","燒味","淨燒味","燒鵝皇","鵝"]
["D02080","枝竹豬肚煲","午市套餐","品味","中式","中式小菜","中式小菜菜式","枝竹豬肚煲","豬"]
["D02087","枝竹豬肚煲","抗疫小菜","和味","中式","中式小菜","中式小菜菜式","枝竹豬肚煲","豬"]
["D00082","河內生牛肉湯河粉","湯粉","品味","越式","越式粉麵飯","越式河","河內生牛肉湯河","牛"]
["D01412","油占包","包類","品味","西式","西式麵包","西式麵包菜式","油占包","包類"]
["D00023","法式牛油雞翼(4件)","頭盤","品味","越式","越式小菜","越式小菜菜式","法式牛油雞翼","雞"]
["D01187","炒蛋治","包類","品味","西式","西式麵包","西式麵包菜式","炒蛋三文治","包類"]
["D00009","玫瑰豉油雞(半)","燒味","品味","中式","燒味","淨燒味","玫瑰豉油雞","雞"]
["D00010","玫瑰豉油雞(隻)","燒味","品味","中式","燒味","淨燒味","玫瑰豉油雞","雞"]
["D01342","玫瑰豉油雞(隻)","(新)燒味","和味","中式","燒味","淨燒味","玫瑰豉油雞","雞"]
["D01443","青島(大支)","酒類","品味","飲料","酒精","酒精款式","青島啤酒(大支)","酒類"]
["D01531","青島(大支)","酒類","和味","飲料","酒精","酒精款式","青島啤酒(大支)","酒類"]
["D01292","青島啤酒(大支","特飮","和味","飲料","酒精","酒精款式","青島啤酒(大支)","酒類"]
["D02144","品味三小拼(叉燒.青瓜.海蜇)","午市套餐","品味","中式","中式頭盤","中式頭盤菜式","和味三小拼(海蜇.叉燒.青瓜)","雜肉"]
["D01973","品味湯河粉","全日套餐","品味","越式","越式粉麵飯","越式河","品味湯河粉","雜肉"]
["D01832","姜汁芥菜","蔬菜","和味","中式","中式素菜","中式素菜菜式","姜汁芥菜","菜"]
["D01210","珍多冰","特飮","品味","飲料","無酒精","特飲","珍多冰","飲品"]
["D01604","紅豆奶茶","特飮","品味","飲料","無酒精","凍飲","凍紅豆奶茶","飲品"]
["D01622","紅豆奶茶","特飮","和味","飲料","無酒精","凍飲","凍紅豆奶茶","飲品"]
["D00131","紅豆冰","特飮","品味","飲料","無酒精","特飲","紅豆冰","飲品"]
["D01605","紅豆咖啡","特飮","品味","飲料","無酒精","凍飲","凍紅豆咖啡","飲品"]
["D01623","紅豆咖啡","特飮","和味","飲料","無酒精","凍飲","凍紅豆咖啡","飲品"]
["D01438","紅青椒炒牛肉","厨师推介","和味","中式","中式小菜","中式小菜菜式","紅青椒炒牛肉","牛"]
["D00156","紅酒(瓶)","酒類","和味","飲料","酒精","酒精款式","紅酒","酒類"]
["D00004","紅燒乳鴿(隻)","燒味","品味","中式","燒味","淨燒味","紅燒乳鴿","鴿"]
["D00194","郊外油菜","午市小食","品味","中式","中式素菜","中式素菜菜式","郊外油菜","菜"]
["D01738","郊外油菜","午市套餐","品味","中式","中式素菜","中式素菜菜式","郊外油菜","菜"]
["D00031","香芒軟殻蟹米紙卷(6件)","米紙卷","品味","越式","米紙卷","米紙卷菜式","香芒軟殻蟹米紙卷","海鮮"]
["D00036","香茅牛肉米紙卷(6件)","米紙卷","品味","越式","米紙卷","米紙卷菜式","香茅牛肉米紙卷","牛"]
["D01649","香茅牛肉湯檬","全日套餐","和味","越式","檬","湯檬","香茅牛肉湯檬","牛"]
["D01979","香茅牛肉湯檬","全日套餐","品味","越式","檬","湯檬","香茅牛肉湯檬","牛"]
["D01971","香茅牛肉飯","全日套餐","品味","越式","越式粉麵飯","越式飯","香茅牛肉飯","牛"]
["D01978","香茅牛肉撈檬","全日套餐","品味","越式","檬","撈檬","香茅牛肉撈檬","牛"]
["D00050","香茅串焼牛肉(2串)","燒物","品味","越式","越式燒物","越式燒物菜式","香茅串焼牛肉","牛"]
["D00052","香茅串焼拼盤","燒物","品味","越式","越式燒物","越式燒物菜式","香茅串焼拼盤","雜肉"]
["D00049","香茅串焼雞肉(2串)",null,"品味","越式","越式燒物","越式燒物菜式","香茅串焼雞肉","雞"]
["D00051","香茅串燒豬頸肉(2串)","燒物","品味","越式","越式燒物","越式燒物菜式","香茅串燒豬頸肉","豬"]
["D01238","香茅豬扒","廚師推介","品味","越式","越式小菜","越式小菜菜式","香茅豬扒","豬"]
["D01451","香茅豬扒","厨师推介","和味","越式","越式小菜","越式小菜菜式","香茅豬扒","豬"]
["D00032","香茅豬頸肉米紙卷(6件)","米紙卷","品味","越式","米紙卷","米紙卷菜式","香茅豬頸肉米紙卷","豬"]
["D01981","香茅豬頸肉串湯檬","全日套餐","品味","越式","檬","湯檬","香茅豬頸肉串湯檬","豬"]
["D01980","香茅豬頸肉串撈檬",null,"品味","越式","檬","撈檬","香茅豬頸肉串撈檬","豬"]
["D01970","香葉肉碎伴太陽蛋飯","全日套餐","品味","越式","越式粉麵飯","越式飯","香葉肉碎伴太陽蛋飯","雜肉"]
["D01491","香葉肉碎拌太陽蛋飯","全日套餐","和味","越式","越式粉麵飯","越式飯","香葉肉碎伴太陽蛋飯","雜肉"]
["D00149","凍OT","凍飮","品味","飲料","無酒精","凍飲","凍檸檬茶","飲品"]
["D00150","凍O水","凍飮","品味","飲料","無酒精","凍飲","凍檸檬水","飲品"]
["D01102","凍力","凍飮","品味","飲料","無酒精","凍飲","凍好立克","飲品"]
["D01099","凍央","凍飮","品味","飲料","無酒精","凍飲","凍鴛鴦","飲品"]
["D00148","凍奶茶","凍飮","品味","飲料","無酒精","凍飲","凍奶茶","飲品"]
["D01100","凍田","凍飮","品味","飲料","無酒精","凍飲","凍阿華田","飲品"]
["D01101","凍朱","凍飮","品味","飲料","無酒精","凍飲","凍巧克力","飲品"]
["D01160","凍杏雙","凍飮","品味","飲料","無酒精","凍飲","凍杏雙","飲品"]
["D01164","凍柚子蜜","凍飮","品味","飲料","無酒精","凍飲","凍柚子蜜","飲品"]
["D00147","凍啡","凍飮","品味","飲料","無酒精","凍飲","凍咖啡","飲品"]
["D01162","凍菜蜜","凍飮","品味","飲料","無酒精","凍飲","凍菜蜜","飲品"]
["D01163","凍賓","凍飮","品味","飲料","無酒精","凍飲","凍利賓納","飲品"]
["D01112","凍齋啡","凍飮","品味","飲料","無酒精","凍飲","凍齋啡","飲品"]
["D01109","凍檬水","凍飮","品味","飲料","無酒精","凍飲","凍檸檬水","飲品"]
["D01481","凍檸啡","凍飮","品味","飲料","無酒精","凍飲","凍檸啡","飲品"]
["D01087","凍檸蜜","凍飮","品味","飲料","無酒精","凍飲","凍檸蜜","飲品"]
["D01088","凍檸賓","凍飮","品味","飲料","無酒精","凍飲","凍檸賓","飲品"]
["D01089","凍檸樂","凍飮","品味","飲料","無酒精","凍飲","凍檸樂","飲品"]
["D01478","時菜炒斑球",null,"品味","中式","中式小菜","中式小菜菜式","時菜炒斑球","海鮮"]
["D01332","梳打水","特飮","和味","飲料","無酒精","特飲","梳打水","飲品"]
["D02092","海皇豆腐飯","抗疫小菜","和味","中式","中式粉麵飯","中式飯","海皇豆腐飯","海鮮"]
["D01487","海皇豆腐煲","廚師推介","品味","中式","中式小菜","中式小菜菜式","海皇豆腐煲","海鮮"]
["D01646","海皇豆腐煲","厨师推介","和味","中式","中式小菜","中式小菜菜式","海皇豆腐煲","海鮮"]
["D01969","海皇蛋白炒飯","全日套餐","品味","中式","中式粉麵飯","中式飯","海皇蛋白炒飯","海鮮"]
["D02115","烤完魚","海鮮","品味","中式","中式海鮮","中式海鮮菜式","烤鯇魚","海鮮"]
["D02117","烤鯇魚","海鮮","和味","中式","中式海鮮","中式海鮮菜式","烤鯇魚","海鮮"]
["D00005","脆皮三層焼腩仔(小)","燒味","品味","中式","燒味","燒味飯","脆皮燒腩仔飯","豬"]
["D00006","脆皮三層焼腩仔(例)","燒味","品味","中式","燒味","燒味飯","脆皮燒腩仔飯","豬"]
["D01338","脆皮三層焼腩仔(例)","(新)燒味","品味","中式","燒味","燒味飯","脆皮燒腩仔飯","豬"]
["D01282","脆脆豬仔包","下午茶小食","品味","西式","西式麵包","西式麵包菜式","脆脆豬仔包","包類"]
["D01286","脆脆豬扒包","下午茶小食","品味","西式","西式麵包","西式麵包菜式","脆脆豬扒包","包類"]
["D01107","茶走","熱飮","品味","飲料","無酒精","熱飲","熱奶茶","飲品"]
["D01268","迷你拼盤","燒味","品味","中式","燒味","淨燒味","迷你拼盤","雜肉"]
["D01982","迷你春卷撈檬","全日套餐","品味","越式","檬","撈檬","迷你春卷撈檬","菜"]
["D01746","送:春卷(件)","午市小食","和味","越式","越式小菜","越式小菜菜式","迷你春卷","菜"]
["D02184","送灼白菜","午市小食","和味","中式","中式素菜","中式素菜菜式","灼白菜","菜"]
["D01749","送灼菜芯","午市小食","和味","中式","中式素菜","中式素菜菜式","灼菜芯","菜"]
["D01506","送例湯","精選午餐","和味","中式","中式湯","中式湯菜式","例湯","湯"]
["D01736","送例湯","午市套餐","品味","中式","中式湯","中式湯菜式","例湯","湯"]
["D01747","送酸辣無骨鳳爪","午市小食","和味","中式","中式頭盤","中式頭盤菜式","酸辣無骨鳯爪","雞"]
["D01456","馬拉盏炒時蔬(大)","厨师推介","和味","越式","越式素菜","越式素菜菜式","馬拉盞時蔬","菜"]
["D01172","馬拉盞炒通菜(大)","蔬菜","品味","越式","越式素菜","越式素菜菜式","馬拉盞炒通菜","菜"]
["D01300","馬拉盞時蔬(大)","蔬菜","品味","越式","越式素菜","越式素菜菜式","馬拉盞時蔬","菜"]
["D01416","乾炒牛河","全日套餐","品味","中式","中式粉麵飯","中式河","乾炒牛河","牛"]
["D00128","乾炒雑菜河粉","素菜/飯/粉","品味","中式","中式粉麵飯","中式河","乾炒雑菜河粉","菜"]
["D01489","乾炒雑菜河粉","全日套餐","和味","中式","中式粉麵飯","中式河","乾炒雑菜河粉","菜"]
["D01986","乾炒雑菜河粉","全日套餐","品味","中式","中式粉麵飯","中式河","乾炒雑菜河粉","菜"]
["D00144","啡","熱飮","品味","飲料","無酒精","熱飲","熱咖啡","飲品"]
["D01178","啡走","熱飮","品味","飲料","無酒精","熱飲","熱咖啡","飲品"]
["D01645","晚市二人套餐","晚市套餐","品味","其他","餐牌其他","套餐","晚餐套餐","無分類"]
["D01608","涼瓜火腩煲","廚師推介","品味","中式","中式小菜","中式小菜菜式","涼瓜火腩煲","豬"]
["D02097","涼瓜火腩煲","午市套餐","品味","中式","中式小菜","中式小菜菜式","涼瓜火腩煲","豬"]
["D02116","涼瓜牛肉飯","抗疫小菜","和味","中式","中式粉麵飯","中式飯","涼瓜牛肉飯","牛"]
["D02101","涼瓜炆火腩煲","抗疫小菜","和味","中式","中式小菜","中式小菜菜式","涼瓜火腩煲","豬"]
["D01445","涼瓜煎蛋","厨师推介","和味","中式","中式小菜","中式小菜菜式","涼瓜煎蛋","菜"]
["D02178","涼瓜煎蛋","午市套餐","品味","中式","中式小菜","中式小菜菜式","涼瓜煎蛋","菜"]
["D01221","淨湯粉","湯粉","品味","中式","中式粉麵飯","中式其他","淨湯粉","粉麵飯"]
["D01257","淨雲吞","湯粉","品味","中式","中式小菜","中式小菜菜式","淨雲吞","海鮮"]
["D00121","清炒時蔬","素菜/飯/粉","品味","中式","中式素菜","中式素菜菜式","清炒時蔬","菜"]
["D00122","清炒雑菜","素菜/飯/粉","和味","中式","中式素菜","中式素菜菜式","清炒時蔬","菜"]
["D01184","蛋治","包類","品味","西式","西式麵包","西式麵包菜式","炒蛋三文治","包類"]
["D01600","豉汁烏頭魚","厨师推介","和味","中式","中式海鮮","中式海鮮菜式","豉汁蒸烏頭","海鮮"]
["D02189","豉汁蒸盲曹","海鮮","和味","中式","中式海鮮","中式海鮮菜式","豉汁蒸盲曹","海鮮"]
["D02021","豉汁蒸倉魚","抗疫飯盒","品味","中式","中式海鮮","中式海鮮菜式","豉汁蒸倉魚","海鮮"]
["D02044","豉汁蒸倉魚","抗疫套餐","和味","中式","中式海鮮","中式海鮮菜式","豉汁蒸倉魚","海鮮"]
["D02186","豉汁蒸倉魚","午市套餐","品味","中式","中式海鮮","中式海鮮菜式","豉汁蒸倉魚","海鮮"]
["D01529","豉汁蒸烏頭","海鮮","品味","中式","中式海鮮","中式海鮮菜式","豉汁蒸烏頭","海鮮"]
["D01551","豉汁蒸魚頭","厨师推介","和味","中式","中式海鮮","中式海鮮菜式","豉汁蒸魚頭","海鮮"]
["D01590","豉汁蒸魚頭","海鮮","品味","中式","中式海鮮","中式海鮮菜式","豉汁蒸魚頭","海鮮"]
["D01594","豉汁蒸鱔","海鮮","品味","中式","中式海鮮","中式海鮮菜式","豉汁蒸鱔","海鮮"]
["D01459","豉油皇大虎蝦","海鮮","和味","中式","中式海鮮","中式海鮮菜式","豉油皇大虎蝦","海鮮"]
["D00127","豉油皇野菌炒河粉","素菜/飯/粉","品味","中式","中式粉麵飯","中式河","豉油皇野菌炒河粉","菜"]
["D01488","豉油皇野菌炒河粉","全日套餐","和味","中式","中式粉麵飯","中式河","豉油皇野菌炒河粉","菜"]
["D01930","豉油皇野菌炒河粉","午市套餐","品味","中式","中式粉麵飯","中式河","豉油皇野菌炒河粉","菜"]
["D01985","豉油皇野菌炒河粉","全日套餐","品味","中式","中式粉麵飯","中式河","豉油皇野菌炒河粉","菜"]
["D01204","豉油雞脾","燒味","品味","中式","燒味","淨燒味","豉油雞脾","雞"]
["D01543","通菜炒鮮魷","厨师推介","和味","中式","中式小菜","中式小菜菜式","通菜炒鮮魷","海鮮"]
["D01547","通菜炒鮮魷","蔬菜","品味","中式","中式小菜","中式小菜菜式","通菜炒鮮魷","海鮮"]
["D01581","通菜炒鮮魷","廚師推介","品味","中式","中式小菜","中式小菜菜式","通菜炒鮮魷","海鮮"]
["D01913","通菜炒鮮魷飯","抗疫小菜","品味","中式","中式粉麵飯","中式飯","通菜炒鮮魷飯","海鮮"]
["D02092","通菜炒鮮魷飯","午市套餐","品味","中式","中式粉麵飯","中式飯","通菜炒鮮魷飯","海鮮"]
["D02098","通菜炒鮮魷飯","抗疫小菜","和味","中式","中式粉麵飯","中式飯","通菜炒鮮魷飯","海鮮"]
["D00019","陳醋雲耳(例)","燒味","品味","中式","中式頭盤","中式頭盤菜式","陳醋雲耳","雞"]
["D00138","雪碧","特飮","品味","飲料","無酒精","特飲","雪碧","飲品"]
["D01096","麥皮早餐","麥皮早餐","品味","其他","餐牌其他","套餐","早餐套餐","粉麵飯"]
["D01454","麻婆豆腐","厨师推介","和味","中式","中式小菜","中式小菜菜式","麻婆豆腐","菜"]
["D01318","揚州炒飯","炒粉飯","品味","中式","中式粉麵飯","中式飯","揚州炒飯","粉麵飯"]
["D01418","揚州炒飯","全日套餐","品味","中式","中式粉麵飯","中式飯","揚州炒飯","粉麵飯"]
["D01231","椒絲腐乳通菜","蔬菜","和味","中式","中式小菜","中式小菜菜式","椒絲腐乳通菜","菜"]
["D01453","椒鹽豆腐","厨师推介","和味","中式","中式小菜","中式小菜菜式","椒鹽豆腐","菜"]
["D02104","椒鹽豆腐","抗疫小菜","和味","中式","中式小菜","中式小菜菜式","椒鹽豆腐","菜"]
["D01508","椒鹽虎蝦","海鮮","和味","中式","中式海鮮","中式海鮮菜式","椒鹽虎蝦","海鮮"]
["D00120","椒鹽脆皮豆腐","素菜/飯/粉","品味","中式","中式小菜","中式小菜菜式","椒鹽脆皮豆腐","菜"]
["D01607","椒鹽脆皮豆腐",null,"品味","中式","中式小菜","中式小菜菜式","椒鹽脆皮豆腐","菜"]
["D02095","椒鹽脆皮豆腐","午市套餐","品味","中式","中式小菜","中式小菜菜式","椒鹽脆皮豆腐","菜"]
["D00027","椒鹽軟殻蟹(1件)",null,"品味","越式","越式海鮮","越式海鮮菜式","椒鹽軟殻蟹","海鮮"]
["D01577","椒鹽鮮魷","廚師推介","品味","中式","中式小菜","中式小菜菜式","椒鹽鮮魷","海鮮"]
["D01618","椒鹽鮮魷","海鮮","和味","中式","中式小菜","中式小菜菜式","椒鹽鮮魷","海鮮"]
["D01647","椒鹽鮮魷","厨师推介","和味","中式","中式小菜","中式小菜菜式","椒鹽鮮魷","海鮮"]
["D00056","湄公河大頭蝦(隻)","海鮮","品味","越式","越式海鮮","越式海鮮菜式","湄公河大頭蝦","海鮮"]
["D01090","滋味早餐","早餐","品味","其他","餐牌其他","套餐","早餐套餐","無分類"]
["D00137","無糖可樂","特飮","品味","飲料","無酒精","特飲","無糖可樂","飲品"]
["D00034","焼大虎蝦米紙卷(6件)","米紙卷","品味","越式","米紙卷","米紙卷菜式","香茅豬頸肉米紙卷","海鮮"]
["D00086","焼雞肉串","檬類","品味","越式","越式燒物","越式燒物菜式","焼雞肉串","雞"]
["D01444","粟米魚柳","厨师推介","和味","中式","中式小菜","中式小菜菜式","粟米魚柳","海鮮"]
["D01546","菜心炒牛肉","厨师推介","和味","中式","中式小菜","中式小菜菜式","菜心炒牛肉","牛"]
["D01580","菜心炒牛肉","廚師推介","品味","中式","中式小菜","中式小菜菜式","菜心炒牛肉","牛"]
["D01912","菜心炒牛肉飯","抗疫小菜","品味","中式","中式粉麵飯","中式飯","菜心炒牛肉飯","牛"]
["D02081","菜心炒牛肉飯","午市套餐","品味","中式","中式粉麵飯","中式飯","菜心炒牛肉飯","牛"]
["D02088","菜心炒牛肉飯","抗疫小菜","和味","中式","中式粉麵飯","中式飯","菜心炒牛肉飯","牛"]
["D01154","菜蜜","熱飮","品味","飲料","無酒精","熱飲","熱菜蜜","飲品"]
["D01283","菠蘿包","下午茶小食","品味","西式","西式麵包","西式麵包菜式","菠蘿包","酒類"]
["D01437","菠蘿生炒骨$88","厨师推介","和味","中式","中式小菜","中式小菜菜式","菠蘿生炒骨","豬"]
["D01157","菠蘿冰","特飮","品味","飲料","無酒精","特飲","菠蘿冰","飲品"]
["D01576","菠蘿咕嚕肉",null,"品味","中式","中式小菜","中式小菜菜式","菠蘿咕嚕肉","豬"]
["D01614","菠蘿咕嚕肉","廚師推介","品味","中式","中式小菜","中式小菜菜式","菠蘿咕嚕肉","豬"]
["D01751","菠蘿咕嚕肉","厨师推介","和味","中式","中式小菜","中式小菜菜式","菠蘿咕嚕肉","豬"]
["D01911","菠蘿咕嚕肉飯","抗疫小菜","品味","中式","中式粉麵飯","中式飯","菠蘿咕嚕肉飯","豬"]
["D02091","菠蘿咕嚕肉飯","午市套餐","品味","中式","中式粉麵飯","中式飯","菠蘿咕嚕肉飯","豬"]
["D02097","菠蘿咕嚕肉飯","抗疫小菜","和味","中式","中式粉麵飯","中式飯","菠蘿咕嚕肉飯","豬"]
["D01179","菠蘿油","包類","品味","西式","西式麵包","西式麵包菜式","菠蘿油","包類"]
["D01972","越式三寶飯","全日套餐","品味","越式","越式粉麵飯","越式飯","越式三寶飯","雜肉"]
["D01170","越式早餐","早餐","品味","其他","餐牌其他","套餐","早餐套餐","無分類"]
["D01419","越式炒飯","全日套餐","品味","越式","越式粉麵飯","越式飯","越式炒飯","粉麵飯"]
["D00159","越式炸香蕉","甜品","品味","越式","越式小菜","越式小菜菜式","越式炸香蕉","菜"]
["D00143","越南滴漏咖啡","熱飮","品味","飲料","無酒精","熱飲","越南滴漏咖啡","飲品"]
["D02105","黑椒豬手飯","抗疫小菜","和味","中式","中式粉麵飯","中式飯","黑椒豬手飯","豬"]
["D00129","新鮮椰青","特飮","品味","飲料","無酒精","特飲","新鮮椰青","飲品"]
["D00025","會安炸春捲(4件)","頭盤","品味","越式","越式小菜","越式小菜菜式","會安炸春卷","菜"]
["D02107","會安炸春捲(4件)","抗疫小菜","和味","越式","越式小菜","越式小菜菜式","會安炸春卷","菜"]
["D02107","會安炸春捲(4件)","抗疫小菜","和味","越式","越式小菜","越式小菜菜式","會安炸春卷","菜"]
["D00130","椰汁冰","特飮","品味","飲料","無酒精","特飲","椰汁冰","飲品"]
["D01961","椰青水","特飮","和味","飲料","無酒精","特飲","新鮮椰青","飲品"]
["D02091","滑蛋炒蝦仁飯","抗疫小菜","和味","中式","中式粉麵飯","中式飯","滑蛋蝦仁飯","海鮮"]
["D01440","滑蛋蝦仁","廚師推介","品味","中式","中式小菜","中式小菜菜式","滑蛋蝦仁","海鮮"]
["D02042","滑蛋蝦仁飯","抗疫小菜","品味","中式","中式粉麵飯","中式飯","滑蛋蝦仁飯","海鮮"]
["D02084","滑蛋蝦仁飯","午市套餐","品味","中式","中式粉麵飯","中式飯","滑蛋蝦仁飯","海鮮"]
["D02050","煎烽倉魚","抗疫小菜","和味","中式","中式海鮮","中式海鮮菜式","煎倉魚","海鮮"]
["D01260","煎荷包蛋","全日套餐","品味","西式","西式小食","西式小食菜式","煎荷包蛋","無分類"]
["D00140","蜂蜜柚子茶","熱飮","品味","飲料","無酒精","熱飲","熱蜂蜜柚子茶","飲品"]
["D02089","酱爆豬頸肉飯","抗疫小菜","和味","中式","中式粉麵飯","中式飯","醬爆豬頸肉飯","豬"]
["D00132","綠豆冰","特飮","品味","飲料","無酒精","特飲","綠豆冰","飲品"]
["D01231","腐乳通菜","蔬菜","品味","中式","中式小菜","中式小菜菜式","椒絲腐乳通菜","菜"]
["D01587","蒜子火腩大鱔煲","廚師推介","品味","中式","中式小菜","中式小菜菜式","蒜子火腩大鱔煲","海鮮"]
["D01625","蒜子火腩大鱔煲","厨师推介","和味","中式","中式小菜","中式小菜菜式","蒜子火腩大鱔煲","海鮮"]
["D00068","蒜蓉包(4件)","咖喱","品味","越式","越式麵包","越式麵包菜式","蒜蓉包","包類"]
["D00075","蒜蓉炒時蔬","蔬菜","品味","中式","中式素菜","中式素菜菜式","蒜蓉炒時蔬","菜"]
["D00075","蒜蓉炒時蔬(大)","蔬菜","和味","中式","中式素菜","中式素菜菜式","蒜蓉炒時蔬","菜"]
["D01455","蒜蓉炒時蔬(大)","厨师推介","和味","中式","中式素菜","中式素菜菜式","蒜蓉炒時蔬","菜"]
["D02047","蒜蓉炒時蔬飯","抗疫小菜","品味","中式","中式素菜","中式素菜菜式","蒜蓉炒時蔬飯","菜"]
["D01998","蒸東升魚","海鮮","和味","中式","中式海鮮","中式海鮮菜式","蒸東星魚","海鮮"]
["D01302","蒸倉魚","海鮮","和味","中式","中式海鮮","中式海鮮菜式","豉汁蒸倉魚","海鮮"]
["D00007","蜜汁叉燒(小)","燒味","品味","中式","燒味","淨燒味","蜜汁叉燒","豬"]
["D00008","蜜汁叉燒(例)","燒味","品味","中式","燒味","淨燒味","蜜汁叉燒","豬"]
["D01340","蜜汁叉燒(例)","(新)燒味","品味","中式","燒味","淨燒味","蜜汁叉燒","豬"]
["D01156","賓","熱飮","品味","飲料","無酒精","熱飲","熱利賓納","飲品"]
["D01216","辣椒炒牛肉","廚師推介","品味","中式","中式小菜","中式小菜菜式","辣椒炒牛肉","牛"]
["D01591","辣椒魚頭","海鮮","品味","中式","中式海鮮","中式海鮮菜式","辣椒魚頭","海鮮"]
["D00028","酸辣無骨鳯爪","頭盤","品味","中式","中式頭盤","中式頭盤菜式","酸辣無骨鳯爪","雞"]
["D01091","歐陸扒餐","歐陸扒餐","品味","其他","餐牌其他","套餐","早餐套餐","無分類"]
["D00142","熱香片茶","熱飮","品味","飲料","無酒精","熱飲","熱香片茶","飲品"]
["D00015","蔥油海蜇(例)","燒味","品味","中式","中式頭盤","中式頭盤菜式","蔥油海蜇","海鮮"]
["D01423","蝦餅(4片)","頭盤","和味","越式","越式小菜","越式小菜菜式","越式炸蝦餅","海鮮"]
["D00026","蝦餠紮肉拼蝦片(3件)","頭盤","和味","越式","越式小菜","越式小菜菜式","蝦餠紮肉拼蝦片","雜肉"]
["D01490","豬扒煎蛋飯","全日套餐","和味","西式","西式粉麵飯","西式粉麵飯菜式","豬扒煎蛋飯","豬"]
["D01967","豬扒煎蛋飯","全日套餐","品味","西式","西式粉麵飯","西式粉麵飯菜式","豬扒煎蛋飯","豬"]
["D01414","燒肉一斤180","燒味","品味","中式","燒味","淨燒味","脆皮三層焼腩仔","豬"]
["D01612","燒肉半斤90元","燒味","品味","中式","燒味","淨燒味","脆皮三層焼腩仔","豬"]
["D01207","燒味三拼","燒味","和味","中式","燒味","淨燒味","燒味三拼","雜肉"]
["D01117","燒味雙拼","燒味","品味","中式","燒味","燒味飯","雙拼飯","雜肉"]
["D01291","燒鵝(下裝)","燒味","品味","中式","燒味","淨燒味","燒鵝皇","鵝"]
["D00001","燒鵝皇(1/4隻)","燒味","品味","中式","燒味","淨燒味","燒鵝皇","鵝"]
["D00002","燒鵝皇(半)","燒味","品味","中式","燒味","淨燒味","燒鵝皇","鵝"]
["D01200","燒鵝脾","燒味","品味","中式","燒味","淨燒味","燒鵝皇","鵝"]
["D00077","蕃茄蟹肉湯(有蔥)","湯","品味","越式","越式湯","越式湯菜式","蕃茄蟹肉湯","海鮮"]
["D01189","餐蛋治","包類","品味","西式","西式麵包","西式麵包菜式","餐蛋三文治","包類"]
["D00134","薄荷葉鮮青檸梳打","特飮","品味","飲料","無酒精","特飲","鹹檸七喜","飲品"]
["D00124","薑米菜粒炒飯","素菜/飯/粉","和味","中式","中式粉麵飯","中式飯","薑米菜粒炒飯","菜"]
["D01586","薑蔥魚頭煲","廚師推介","品味","中式","中式小菜","中式小菜菜式","薑蔥魚頭煲","海鮮"]
["D02192","薑蔥蒸完魚","午市套餐","品味","中式","中式海鮮","中式海鮮菜式","薑蔥蒸鯇魚","海鮮"]
["D01619","薯條","頭盤","品味","西式","西式小食","西式小食菜式","薯條","菜"]
["D01588","鮮茄炒蛋","廚師推介","品味","中式","中式小菜","中式小菜菜式","鮮茄炒蛋","菜"]
["D01417","鮮茄蟹肉丸湯檬","全日套餐","品味","越式","檬","湯檬","鮮茄蟹肉丸湯檬","海鮮"]
["D01111","齋啡","熱飮","品味","飲料","無酒精","熱飲","熱齋啡","飲品"]
["D01331","檸底","熱飮","品味","其他","餐牌其他","雜項","雜項","飲品"]
["D01212","藍妹(大支)","特飮","和味","飲料","酒精","酒精款式","藍妹(大支)","酒類"]
["D01444","藍妹(大支)","酒類","品味","飲料","酒精","酒精款式","藍妹(大支)","酒類"]
["D01532","藍妹(大支)","酒類","和味","飲料","酒精","酒精款式","藍妹(大支)","酒類"]
["D02072","蟠瓏鱔","海鮮","和味","中式","中式海鮮","中式海鮮菜式","豉汁蒸鱔","海鮮"]
["D01582","醬爆豬頸肉","廚師推介","品味","中式","中式小菜","中式小菜菜式","醬爆豬頸肉","豬"]
["D02082","醬爆豬頸肉飯","午市套餐","品味","中式","中式粉麵飯","中式飯","醬爆豬頸肉飯","豬"]
["D01197","雙拼治","麥皮早餐","品味","西式","西式麵包","西式麵包菜式","雙拼三文治","包類"]
["D01026","雙拼飯","午市套餐","品味","中式","燒味","燒味飯","雙拼飯","雜肉"]
["D01413","雙拼飯","全日套餐","品味","中式","燒味","燒味飯","雙拼飯","雜肉"]
["D01228","雞扒包餐","三文治","品味","西式","西式麵包","西式麵包菜式","雞扒包","雞"]
["D02137","雞全翼配春卷(2條)","下午茶餐","品味","西式","西式小食","西式小食菜式","雞全翼配春卷","雞"]
["D00249","雞肉串","下午茶小食","和味","越式","越式燒物","越式燒物菜式","焼雞肉串","雞"]
["D01988","雞翼拼豬頸肉飯","全日套餐","品味","西式","西式粉麵飯","西式粉麵飯菜式","雞翼拼豬頸肉飯","雜肉"]
["D02042","鵝腸","頭盤","和味","中式","燒味","淨燒味","鵝腸","鵝"]
["D01125","鵝頭","燒味","品味","中式","燒味","淨燒味","鵝頭","鵝"]
["D00234","鹹蛋半隻","午市套餐","品味","中式","燒味","淨燒味","鹹蛋","鴨"]
["D01146","鹹蛋半隻","全日套餐","品味","中式","燒味","淨燒味","鹹蛋","鴨"]
["D00135","鹹檸七喜","特飮","品味","飲料","無酒精","特飲","鹹檸七喜","飲品"]
["D00125","欖菜薑米炒飯","素菜/飯/粉","品味","中式","中式粉麵飯","中式飯","欖菜薑米炒飯","菜"]
["D01989","欖菜薑米蛋白炒飯","全日套餐","品味","中式","中式粉麵飯","中式飯","欖菜薑米炒飯","菜"]
["D00195","一人套餐","精選套餐","品味","其他","餐牌其他","套餐","午餐套餐","無分類"]
["D01935","臘味炒芥蘭","蔬菜","品味","中式","中式小菜","中式小菜菜式","臘味炒芥蘭","雜肉"]
["D02110","304.沙爹肥牛粉C煲","午市套餐","品味","中式","中式小菜","中式小菜菜式","沙爹肥牛粉絲煲","牛"]
["D02109","303.土尤蒸肉餅飯","午市套餐","品味","中式","中式小菜","中式小菜菜式","土魷蒸肉餅","雜肉"]
["D02113","307.燒味三小拼(叉燒.海蜇.紅腸)","午市套餐","品味","中式","燒味","淨燒味","燒味三拼","雜肉"]
["D02147","301.燒腩仔鮑魚小棠菜","午市套餐","品味","中式","中式小菜","中式小菜菜式","燒腩仔鮑魚小棠菜","雜肉"]
["D02111","305.覽菜肉松四季豆","午市套餐","品味","中式","中式小菜","中式小菜菜式","欖菜肉碎四季豆","雜肉"]
["D02114","308.燒味雙拼(油雞.燒鵝.)","午市套餐","品味","中式","燒味","淨燒味","燒味雙拼","雜肉"]
["D02045","椒鹽鮮魷飯","抗疫小菜","品味","中式","中式粉麵飯","中式飯","椒鹽鮮魷飯","海鮮"]
["D01893","5.牛肉扎肉米線","午市套餐","品味","中式","中式粉麵飯","中式米線","牛肉扎肉米線","牛"]
["D01894","6.豬手豬肚絲湯河","午市套餐","品味","中式","中式粉麵飯","中式河","豬手豬肚絲湯河","豬"]
["D01890","2.蝦餅煎蛋飯","午市套餐","品味","越式","越式粉麵飯","越式飯","蝦餅煎蛋飯","海鮮"]
["D02222","枝竹羊腩煲$198","精選套餐","品味","中式","中式小菜","中式小菜菜式","枝竹羊腩煲","羊"]
["D02224","枝竹羊腩配生菜","精選套餐","品味","中式","中式小菜","中式小菜菜式","枝竹羊腩煲","羊"]
["D01618","臘味炒芥蘭","廚師推介","品味","中式","中式小菜","中式小菜菜式","臘味炒芥蘭","雜肉"]
["D01229","豬扒包餐","三文治","品味","西式","西式麵包","西式麵包菜式","脆脆豬扒包","包類"]
["D02223","枝竹羊腩飯$98","精選套餐","品味","中式","中式粉麵飯","中式飯","枝竹羊腩飯","羊"]
["D02176","309.豉汁涼瓜倉魚","午市套餐","品味","中式","中式海鮮","中式海鮮菜式","豉汁涼瓜倉魚","海鮮"]
["D02205","(704)滑蛋蝦仁飯$78","精選套餐","品味","中式","中式粉麵飯","中式飯","滑蛋蝦仁飯","海鮮"]
["D01892","4.雞扒肉碎飯","午市套餐","品味","西式","西式粉麵飯","西式粉麵飯菜式","雞扒肉碎飯","雞"]
["D01895","7.蝦餅拼春卷撈檬","午市套餐","品味","越式","檬","撈檬","蝦餅拼春卷撈檬","海鮮"]
["D02183","603.豬肉丸拼豬肚絲湯河","午市小食","品味","越式","越式粉麵飯","越式河","豬肉丸拼豬肚絲湯河","豬"]
["D02214","(805)豆腐火腩飯$72","精選套餐","品味","中式","中式粉麵飯","中式飯","豆腐火腩飯","豬"]
["D02099","1.鮮茄三寶湯檬","午市套餐","品味","越式","檬","湯檬","鮮茄三寶湯檬","雜肉"]
["D00022","順化蔗蝦(2件)","頭盤","品味","越式","越式小菜","越式小菜菜式","順化蔗蝦","海鮮"]
["D00033","龍脷魚柳米紙卷(6件)","米紙卷","品味","越式","米紙卷","米紙卷菜式","龍脷魚柳米紙卷","海鮮"]
["D00037","越式扎肉米紙卷(6件)","米紙卷","品味","越式","米紙卷","米紙卷菜式","越式扎肉米紙卷","豬"]
["D00078","蕃茄蟹肉湯(無蔥)","湯","品味","越式","越式湯","越式湯菜式","蕃茄蟹肉湯","湯"]
["D00079","法式蕃茄蟹肉大頭蝦湯(有蔥)","湯","品味","越式","越式湯","越式湯菜式","蕃茄蟹肉湯","湯"]
["D00084","品味湯河粉","湯粉","品味","越式","越式粉麵飯","越式河","品味湯河粉","粉麵飯"]
["D00151","青島啤","酒類","品味","飲料","酒精","酒精款式","青島啤酒(大支)","酒類"]
["D00156","紅酒(瓶)","酒類","品味","飲料","酒精","酒精款式","紅酒","酒類"]
["D00248","ST1豬頸肉串(1串)","下午茶小食","品味","越式","越式燒物","越式燒物菜式","豬頸肉串","豬"]
["D01159","Ｏ７","特飮","品味","飲料","無酒精","特飲","檸七喜","飲品"]
["D01190","腿蛋治","包類","品味","西式","西式麵包","西式麵包菜式","火腿蛋三文治","包類"]
["D01207","燒味三拼","燒味","品味","中式","燒味","淨燒味","燒味三拼","雜肉"]
["D01267","奶醬包","包類","品味","西式","西式麵包","西式麵包菜式","奶醬包","包類"]
["D01278","下)蝦餅扎肉撈檬","下午茶餐","品味","越式","檬","撈檬","蝦餅扎肉撈檬","雜肉"]
["D01281","香茅雞翅 (1隻)","下午茶小食","品味","越式","越式小菜","越式小菜菜式","香茅雞翼","雞"]
["D01296","越式三文治","包類","品味","越式","越式麵包","越式麵包菜式","越式三文治","包類"]
["D01301","煎烽倉魚","海鮮","品味","中式","中式海鮮","中式海鮮菜式","煎倉魚","海鮮"]
["D01302","蒸倉魚",null,"品味","中式","中式海鮮","中式海鮮菜式","蒸倉魚","海鮮"]
["D01312","越式炒金邊粉","炒粉飯","品味","越式","越式粉麵飯","越式其他","越式炒金邊粉","粉麵飯"]
["D01315","冬陰公海鮮飯","炒粉飯","品味","越式","越式粉麵飯","越式飯","冬陰公海鮮飯","海鮮"]
["D01317","越式炒飯","炒粉飯","品味","越式","越式粉麵飯","越式飯","越式炒飯","粉麵飯"]
["D01320","干炒牛河","炒粉飯","品味","中式","中式粉麵飯","中式河","乾炒牛河","牛"]
["D01423","蝦餅(8片)","頭盤","品味","越式","越式小菜","越式小菜菜式","越式炸蝦餅","海鮮"]
["D01446","豉汁蒸鱔","廚師推介","品味","中式","中式海鮮","中式海鮮菜式","豉汁蒸鱔","海鮮"]
["D01485","麻婆豆腐","廚師推介","品味","中式","中式小菜","中式小菜菜式","麻婆豆腐","菜"]
["D01555","131)冬陰公海鮮飯",null,"品味","越式","越式粉麵飯","越式飯","冬陰公海鮮飯","海鮮"]
["D01583","醬爆牛肉","廚師推介","品味","中式","中式小菜","中式小菜菜式","醬爆牛肉","牛"]
["D01596","海皇粉絲雜菜煲","海鮮","品味","中式","中式小菜","中式小菜菜式","海皇粉絲雜菜煲","海鮮"]
["D01674","枝竹羊腩煲","廚師推介","品味","中式","中式小菜","中式小菜菜式","枝竹羊腩煲","羊"]
["D01681","咖哩牛腩配蒜茸包","咖喱","品味","越式","咖喱","咖喱菜式","咖哩牛腩配蒜茸包","牛"]
["D01890","2.蝦餅餐肉飯","午市套餐","品味","越式","越式粉麵飯","越式飯","蝦餅餐肉飯","雜肉"]
["D01892","4.雞扒煎蛋飯","午市套餐","品味","西式","西式粉麵飯","西式粉麵飯菜式","雞扒煎蛋飯","雞"]
["D01892","4.冬蔭公牛肉豬耳絲米線","午市套餐","品味","越式","越式粉麵飯","越式其他","冬蔭公牛肉豬米線","雜肉"]
["D01893","5.豬扒雞翼飯","午市套餐","品味","西式","西式粉麵飯","西式粉麵飯菜式","豬扒雞翼飯","雜肉"]
["D01893","5.香茅牛肉腸仔飯","午市套餐","品味","越式","越式粉麵飯","越式飯","香茅牛肉腸仔飯","雜肉"]
["D01893","5.雞扒餐肉飯","午市套餐","品味","西式","西式粉麵飯","西式粉麵飯菜式","雞扒餐肉飯","雜肉"]
["D01894","6.豬手雞絲湯檬","午市套餐","品味","越式","檬","湯檬","豬手雞絲湯檬","雜肉"]
["D01894","6.豬手扎肉湯河","午市套餐","品味","越式","越式粉麵飯","越式河","豬手扎肉湯河","豬"]
["D01894","6.豬頸肉煎蛋飯","午市套餐","品味","西式","西式粉麵飯","西式粉麵飯菜式","豬頸肉煎蛋飯","豬"]
["D01894","6.豬頸肉蝦餅飯","午市套餐","品味","越式","越式粉麵飯","越式飯","豬頸肉蝦餅飯","雜肉"]
["D01968","乳豬全體","燒味","品味","中式","燒味","淨燒味","乳豬全體","豬"]
["D01975","蝦餅扎肉湯檬","全日套餐","品味","越式","檬","湯檬","蝦餅扎肉湯檬","雜肉"]
["D01976","鮮蝦撈檬","全日套餐","品味","越式","檬","撈檬","鮮蝦撈檬","海鮮"]
["D01983","迷你春卷湯檬",null,"品味","越式","檬","湯檬","春卷湯檬","菜"]
["D01984","雲吞河","全日套餐","品味","中式","中式粉麵飯","中式河","鮮蝦雲吞河","海鮮"]
["D01991","枝竹羊腩飯","廚師推介","品味","中式","中式粉麵飯","中式飯","枝竹羊腩飯","羊"]
["D02039","叉燒炒滑蛋飯","抗疫小菜","品味","中式","中式粉麵飯","中式飯","叉燒炒滑蛋飯","粉麵飯"]
["D02051","馬拉盞時蔬飯","抗疫小菜","品味","越式","越式粉麵飯","越式飯","馬拉盞時蔬飯","粉麵飯"]
["D02099","1.冬蔭公三寶湯檬","午市套餐","品味","越式","檬","湯檬","冬蔭公三寶湯檬","粉麵飯"]
["D02099","1.鮮茄三寶湯米線","午市套餐","品味","越式","越式粉麵飯","越式其他","鮮茄三寶米線","粉麵飯"]
["D02099","1.冬蔭公三寶米線","午市套餐","品味","越式","越式粉麵飯","越式其他","冬陰功三寶米線","粉麵飯"]
["D02100","姜汁芥菜","蔬菜","品味","中式","中式素菜","中式素菜菜式","姜汁芥菜","菜"]
["D02108","302.羅白排骨煲","午市套餐","品味","中式","中式小菜","中式小菜菜式","羅白排骨煲","豬"]
["D02108","302.粟米斑腩飯","午市套餐","品味","中式","中式粉麵飯","中式飯","粟米斑腩飯","海鮮"]
["D02108","302.涼瓜野菌炒牛肉","午市套餐","品味","中式","中式小菜","中式小菜菜式","涼瓜野菌炒牛肉","牛"]
["D02109","303.油鴨髀拼臘味","午市套餐","品味","中式","燒味","淨燒味","油鴨脾拼臘味","雜肉"]
["D02109","303.蝦醬豆卜蒸五花腩","午市套餐","品味","中式","中式小菜","中式小菜菜式","蝦醬豆卜蒸腩片","海鮮"]
["D02109","303.北菇蒸雞飯","午市套餐","品味","中式","中式粉麵飯","中式飯","北菇蒸雞飯","雞"]
["D02109","303.豉汁鳳爪蒸排骨","午市套餐","品味","中式","中式小菜","中式小菜菜式","豉汁鳳爪蒸排骨","雜肉"]
["D02110","304.水煮牛肉鍋","午市套餐","品味","中式","中式小菜","中式小菜菜式","水煮牛肉鍋","牛"]
["D02110","304.椒鹽魚腩","午市套餐","品味","中式","中式海鮮","中式海鮮菜式","椒鹽魚腩","海鮮"]
["D02110","304.雲耳蓮藕片炒鮮魷","午市套餐","品味","中式","中式小菜","中式小菜菜式","雲耳蓮藕片炒鮮魷","海鮮"]
["D02110","304.乾蔥鮑魚雞煲","午市套餐","品味","中式","中式小菜","中式小菜菜式","乾蔥鮑魚雞煲","海鮮"]
["D02111","305.枝竹火腩鮑魚煲","午市套餐","品味","中式","中式小菜","中式小菜菜式","枝竹火腩鮑魚煲","海鮮"]
["D02111","305.虎皮尖椒肉碎","午市套餐","品味","中式","中式小菜","中式小菜菜式","虎皮尖椒肉碎","菜"]
["D02111","305.紅燒豆腐豬肚煲","午市套餐","品味","中式","中式小菜","中式小菜菜式","豆腐豬肚煲","豬"]
["D02111","305.紅燒豆腐豬肚煲",null,"品味","中式","中式小菜","中式小菜菜式","豆腐豬肚煲","豬"]
["D02111","305.咕嚕蝦球","午市套餐","品味","中式","中式小菜","中式小菜菜式","咕嚕蝦球","海鮮"]
["D02112","306.金不換野菌炒豬頸肉","午市套餐","品味","中式","中式小菜","中式小菜菜式","金不換野菌炒豬頸肉","豬"]
["D02112","306.Ⅹ0醬韭菜花炒鮮魷","午市套餐","品味","中式","中式小菜","中式小菜菜式","Ⅹ0醬韭菜花炒鮮魷","海鮮"]
["D02112","306.薑蔥蒸黃花魚","午市套餐","品味","中式","中式海鮮","中式海鮮菜式","薑蔥蒸黃花魚","海鮮"]
["D02112","306.上湯魚滑浸娃娃菜","午市套餐","品味","中式","中式小菜","中式小菜菜式","上湯魚滑浸娃娃菜","菜"]
["D02113","307.燒味三小拼(叉燒.海蜇.青瓜)","午市套餐","品味","中式","燒味","淨燒味","燒味三拼","雜肉"]
["D02114","308.燒味雙拼(腩仔.燒鵝.)","午市套餐","品味","中式","燒味","淨燒味","燒味雙拼","雜肉"]
["D02138","豬扒炒公仔麵","下午茶餐","品味","西式","西式粉麵飯","西式粉麵飯菜式","豬扒炒公仔麵","豬"]
["D02147","301.香辣麻婆豆腐","午市套餐","品味","中式","中式小菜","中式小菜菜式","麻婆豆腐","菜"]
["D02147","301.翠玉瓜炒蝦球","午市套餐","品味","中式","中式小菜","中式小菜菜式","翠玉瓜炒蝦球","海鮮"]
["D02147","301.水煮豬大腸","午市套餐","品味","中式","中式小菜","中式小菜菜式","水煮豬大腸","豬"]
["D02147","301.菜脯肉鬆煎蛋角","午市套餐","品味","中式","中式小菜","中式小菜菜式","菜脯肉鬆煎蛋角","雜肉"]
["D02199","雪山華田","凍飮","品味","飲料","無酒精","凍飲","凍阿華田","飲品"]
["D02202","(701)菠蘿咕嚕肉$68","精選套餐","品味","中式","中式小菜","中式小菜菜式","菠蘿咕嚕肉","豬"]
["D02203","(702)菜心炒牛肉$68","精選套餐","品味","中式","中式小菜","中式小菜菜式","菜心炒牛肉","牛"]
["D02203","(702)菜心炒牛肉$68",null,"品味","中式","中式小菜","中式小菜菜式","菜心炒牛肉","牛"]
["D02204","(703)叉燒炒滑蛋$68","精選套餐","品味","中式","中式小菜","中式小菜菜式","叉燒炒滑蛋","豬"]
["D02205","(704)滑蛋蝦仁飯$68","精選套餐","品味","中式","中式粉麵飯","中式飯","滑蛋蝦仁飯","海鮮"]
["D02207","(705)醬爆豬頸肉飯","精選套餐","品味","中式","中式粉麵飯","中式飯","醬爆豬頸肉飯","豬"]
["D02208","(706)通菜炒鮮魷$78","精選套餐","品味","中式","中式小菜","中式小菜菜式","通菜炒鮮魷","海鮮"]
["D02209","(707)椒鹽脆皮豆$78","精選套餐","品味","中式","中式小菜","中式小菜菜式","椒鹽豆腐","菜"]
["D02210","(801)薑蔥蒸完魚$68","精選套餐","品味","中式","中式小菜","中式海鮮菜式","薑蔥蒸鯇魚","海鮮"]
["D02211","(802)豉汁蒸倉魚$78","精選套餐","品味","中式","中式小菜","中式海鮮菜式","豉汁蒸倉魚","海鮮"]
["D02212","(803)涼瓜火腩煲$68","精選套餐","品味","中式","中式小菜","中式小菜菜式","涼瓜火腩煲","豬"]
["D02212","(803)涼瓜火腩煲$72","精選套餐","品味","中式","中式小菜","中式小菜菜式","涼瓜火腩煲","豬"]
["D02213","(804)蒜子火腩大鱔煲$168","精選套餐","品味","中式","中式小菜","中式小菜菜式","蒜子火腩大鱔煲","海鮮"]
["D02215","(806)薑蔥魚頭煲$72","精選套餐","品味","中式","中式小菜","中式小菜菜式","薑蔥魚頭煲","海鮮"]
["D02216","(807)枝竹豬肚煲$68","精選套餐","品味","中式","中式小菜","中式小菜菜式","枝竹豬肚煲","豬"]
["D02217","(808)肉碎茄子飯$68","精選套餐","品味","中式","中式粉麵飯","中式飯","肉碎茄子飯","雜肉"]
["D02218","明爐烏頭$188","精選套餐","品味","中式","中式海鮮","中式海鮮菜式","明爐烏頭","海鮮"]
["D02219","豉汁蒸鱔$128","精選套餐","品味","中式","中式海鮮","中式海鮮菜式","豉汁蒸鱔","海鮮"]
["D02220","椒鹽鮮魷$78","精選套餐","品味","中式","中式小菜","中式小菜菜式","椒鹽鮮魷","海鮮"]
["D02221","310.油鴨脾拼臘味","午市套餐","品味","中式","燒味","淨燒味","油鴨脾拼臘味","雜肉"]
["D02225","四季豆炒肉碎","精選套餐","品味","中式","中式小菜","中式小菜菜式","四季豆炒肉碎","菜"]
["D02226","炸雲吞餐(6粒)","下午茶餐","品味","中式","中式小菜","中式小菜菜式","炸雲吞","海鮮"]
["D02228","餐肉湯米線","什項","品味","中式","中式粉麵飯","中式米線","餐肉湯米線","粉麵飯"]
["D00035","越式軟殻蟹米紙卷(6件)","米紙卷","品味","越式","米紙卷","米紙卷菜式","香芒軟殻蟹米紙卷","海鮮"]
["D01155","Ｏ賓","熱飮","品味","飲料","無酒精","熱飲","熱檸賓","飲品"]
["D01209","O)白切雞脾飯","全日套餐","品味","中式","燒味","燒味飯","白切雞髀飯","雞"]
["D01215","蒸餾水","特飮","品味","飲料","無酒精","特飲","蒸餾水","飲品"]
["D01225","豬扒包",null,"品味","西式","西式麵包","西式麵包菜式","脆脆豬仔包","包類"]
["D01305","串燒大虎蝦(5隻)","燒物","品味","越式","越式燒物","越式燒物菜式","串燒大虎蝦","海鮮"]
["D01311","金菠蘿海鮮炒飯","炒粉飯","品味","中式","中式粉麵飯","中式飯","菠蘿海鮮炒飯","粉麵飯"]
["D01332","梳打水","特飮","品味","飲料","無酒精","特飲","梳打水","飲品"]
["D01336","紅燒乳鴿(隻)","(新)燒味","品味","中式","燒味","淨燒味","紅燒乳鴿","鴿"]
["D01357","豉油雞脾","(新)燒味","品味","中式","燒味","淨燒味","豉油雞脾","雞"]
["D01557","A14)越式炒飯","(新)全日套餐","品味","越式","越式粉麵飯","越式飯","越式炒飯","粉麵飯"]
["D01597","粟米魚肚羹","湯","品味","中式","中式湯","中式湯菜式","粟米魚肚羹","湯"]
["D01598","豆腐魚頭雜菜湯","湯","品味","中式","中式湯","中式湯菜式","豆腐魚頭雑菜湯","湯"]
["D01702","通菜","蔬菜","品味","中式","中式素菜","中式素菜菜式","清炒通菜","菜"]
["D01954","D4 肉碎茄子煲","（新）小菜套餐","品味","中式","中式小菜","中式小菜菜式","肉碎茄子煲","雜肉"]
["D02101","晚餐F.馬拉盞通菜豬頸肉","午市套餐","品味","越式","越式小菜","越式小菜菜式","馬拉盞通菜豬頸肉","豬"]
["D02177","煎蛋","午市套餐","品味","西式","西式小食","西式小食菜式","煎荷包蛋","雞"]
["D02197","魚柳包餐","三文治","品味","西式","西式麵包","西式麵包菜式","魚柳包","包類"]
["D02229","魚柳三文治","什項","品味","西式","西式麵包","西式麵包菜式","魚柳三文治","包類"]
["D02230","發財豬俐","(新)燒味","品味","中式","中式小菜","中式小菜菜式","發財豬俐","豬"]
["D02231","301.芥菜豆腐肉片鍋","精選套餐","品味","中式","中式小菜","中式小菜菜式","芥菜豆腐肉片鍋","雜肉"]
["D02235","305.虎皮尖椒肉碎","精選套餐","品味","中式","中式小菜","中式小菜菜式","虎皮尖椒肉碎","雜肉"]
["D01890","2.蝦餅雞扒飯","午市套餐","品味","越式","越式粉麵飯","越式飯","蝦餅雞扒飯","粉麵飯"]
["D01892","4.鮮茄雞絲豬肚絲米線","午市套餐","品味","中式","中式粉麵飯","中式米線","鮮茄雞絲豬肚絲米線","粉麵飯"]
["D01892","4.鮮茄牛肉扎肉湯河","午市套餐","品味","越式","越式粉麵飯","越式河","鮮茄牛肉扎肉湯河","粉麵飯"]
["D01892","4..冬蔭公雞絲豬肉丸湯河","午市套餐","品味","越式","越式粉麵飯","越式河","冬蔭公雞絲豬肉丸湯河","粉麵飯"]
["D01893","5.雞扒拼香腸飯","午市套餐","品味","西式","西式粉麵飯","西式粉麵飯菜式","雞扒香腸飯","雜肉"]
["D01893","5.雞扒拼肉碎飯","午市套餐","品味","西式","西式粉麵飯","西式粉麵飯菜式","雞扒肉碎飯","雜肉"]
["D01894","6.香茅牛肉煎蛋飯","午市套餐","品味","越式","越式粉麵飯","越式飯","香茅牛肉煎蛋飯","牛"]
["D01894","6.豬扒餐肉飯","午市套餐","品味","西式","西式粉麵飯","西式粉麵飯菜式","豬扒餐肉飯","雜肉"]
["D01894","6.豬扒雞翼飯","午市套餐","品味","西式","西式粉麵飯","西式粉麵飯菜式","豬扒雞翼飯","雜肉"]
["D02099","1.冬蔭公三寶湯米線","午市套餐","品味","越式","越式粉麵飯","越式其他","冬陰功三寶米線","粉麵飯"]
["D02108","302.節瓜豆卜火腩煲","午市套餐","品味","中式","中式小菜","中式小菜菜式","節瓜豆卜火腩","豬"]
["D02108","302.茄子斑腩煲","午市套餐","品味","中式","中式小菜","中式小菜菜式","茄子班腩煲","海鮮"]
["D02108","302.醬爆西芹肉丁","午市套餐","品味","中式","中式小菜","中式小菜菜式","醬爆西芹肉丁","雜肉"]
["D02109","303.鹹魚蒸肉餅","午市套餐","品味","中式","中式小菜","中式小菜菜式","鹹魚蒸肉餅","雜肉"]
["D02109","303.梅菜扣肉","午市套餐","品味","中式","中式小菜","中式小菜菜式","梅菜扣肉","豬"]
["D02110","304.金銀蛋肉碎浸菜苗","午市套餐","品味","中式","中式小菜","中式小菜菜式","金銀蛋肉碎浸菜苗","菜"]
["D02110","304.臘味炒荷芹","午市套餐","品味","中式","中式小菜","中式小菜菜式","臘味炒荷芹","雜肉"]
["D02111","305.椒絲腐乳通菜炒牛肉","午市套餐","品味","中式","中式小菜","中式小菜菜式","椒絲腐乳通菜炒牛肉","牛"]
["D02111","305.椒絲腐乳通菜炒牛肉",null,"品味","中式","中式小菜","中式小菜菜式","椒絲腐乳通菜炒牛肉","牛"]
["D02111","305.蝦球叉燒炒滑蛋","午市套餐","品味","中式","中式小菜","中式小菜菜式","蝦球叉燒炒滑蛋","雜肉"]
["D02112","306.0者0者芥蘭蝦干煲","午市套餐","品味","中式","中式小菜","中式小菜菜式","啫啫芥蘭蝦干煲","海鮮"]
["D02112","306.冬菜蒸黃花魚","午市套餐","品味","中式","中式海鮮","中式海鮮菜式","冬菜蒸黃花魚","海鮮"]
["D02147","301.胡椒豬肚雞煲","午市套餐","品味","中式","中式小菜","中式小菜菜式","胡椒豬肚雞煲","雜肉"]
["D02147","301.芥菜豆腐肉片鍋","午市套餐","品味","中式","中式小菜","中式小菜菜式","芥菜豆腐肉片鍋","菜"]
["D02147","301.麻辣尖椒炒豬肚","午市套餐","品味","中式","中式小菜","中式小菜菜式","尖椒炒豬肚","豬"]
["D02235","305.蝦球叉燒炒滑蛋","精選套餐","品味","中式","中式小菜","中式小菜菜式","蝦球叉燒炒滑蛋","海鮮"]
["D01893","5.豬頸肉腸仔飯","午市套餐","品味","西式","西式粉麵飯","西式粉麵飯菜式","豬頸肉腸仔飯","雜肉"]
["D01892","4.雞扒煎蛋冬蔭公豬湯檬","午市套餐","品味","越式","檬","湯檬","雞扒煎蛋冬蔭公豬湯檬","雜肉"]
["D02231","301.欖菜肉鬆四季豆","精選套餐","品味","中式","中式小菜","中式小菜菜式","欖菜肉碎四季豆","雜肉"]
["D02235","305.酸菜完魚鍋","精選套餐","品味","中式","中式海鮮","中式海鮮菜式","酸菜鯇魚鍋","海鮮"]
["D02110","304.支竹火腩鮑魚煲","午市套餐","品味","中式","中式小菜","中式小菜菜式","枝竹火腩鮑魚煲","海鮮"]
["D01653","晚市四人套餐","晚市套餐","品味","中式","中式粉麵飯","中式其他","無分類","無分類"]
["D02246","豉汁蒸烏頭$68","午市小食","品味","中式","中式海鮮","中式海鮮菜式","豉汁蒸烏頭","海鮮"]
["D02232","302.茄子斑腩煲","精選套餐","品味","中式","中式小菜","中式小菜菜式","茄子班腩煲","海鮮"]
["D01563","94)蝦餅扎肉湯檬",null,"品味","越式","檬","湯檬","蝦餅扎肉湯檬","雜肉"]
["D02245","豉汁蒸烏頭$88","精選套餐","品味","中式","中式海鮮","中式海鮮菜式","豉汁蒸烏頭","海鮮"]
["D01480","海皇豆腐羹","湯","品味","中式","中式湯","中式湯菜式","海皇豆腐羹","湯"]
["D01592","豉油皇大虎蝦(5隻)","海鮮","品味","中式","中式海鮮","中式海鮮菜式","豉油皇大虎蝦","海鮮"]
["D01566","97)香茅牛肉湯檬",null,"品味","越式","檬","湯檬","香茅牛肉湯檬","牛"]
["D01593","茄汁大虎蝦(5隻)",null,"品味","中式","中式海鮮","中式海鮮菜式","茄汁大虎蝦","海鮮"]
["D01974","蝦餅扎肉撈檬","全日套餐","品味","越式","檬","撈檬","蝦餅扎肉撈檬","雜肉"]
["D01606","96)鮮蝦湯檬",null,"品味","越式","檬","湯檬","鮮蝦湯檬","海鮮"]
["D02242","麥皮","(新)醒晨早餐","品味","西式","西式粉麵飯","西式粉麵飯菜式","麥皮","粉麵飯"]
["D01539","A23)豉油雞脾飯",null,"品味","中式","燒味","燒味飯","豉油雞髀飯","雞"]
["D01239","香茅雞扒",null,"品味","越式","越式小菜","越式小菜菜式","香茅雞扒","雞"]
["D01546","123)越式三寶(豬頸肉，雞翼，扎肉)飯",null,"品味","越式","越式粉麵飯","越式飯","越式三寶飯","雜肉"]
["D01974","蝦餅扎肉撈檬",null,"品味","越式","檬","撈檬","蝦餅扎肉撈檬","雜肉"]
["D01977","鮮蝦湯檬","全日套餐","品味","越式","檬","湯檬","鮮蝦湯檬","海鮮"]
["D01568","100)豬頸肉串湯檬",null,"品味","越式","檬","湯檬","香茅豬頸肉串湯檬","豬"]
["D01579","時菜蝦球",null,"品味","中式","中式小菜","中式小菜菜式","時菜蝦球","海鮮"]
["D02243","豉汁蒸倉魚","精選套餐","品味","中式","中式海鮮","中式海鮮菜式","豉汁蒸倉魚","海鮮"]
["D02233","303.梅菜扣肉","精選套餐","品味","中式","中式小菜","中式小菜菜式","梅菜扣肉","豬"]
["D02072","D11.香茅雞扒","午市套餐","品味","越式","越式小菜","越式小菜菜式","香茅雞扒","雞"]
["D01543","120)香茅雞扒飯",null,"品味","越式","越式粉麵飯","越式飯","香茅雞扒飯","雞"]
["D02236","306.冬菜蒸黃花魚","精選套餐","品味","中式","中式海鮮","中式海鮮菜式","冬菜蒸黃花魚","海鮮"]
["D02244","薑蔥蒸完魚","精選套餐","品味","中式","中式海鮮","中式海鮮菜式","薑蔥蒸鯇魚","海鮮"]
["D02234","304.四川回鍋肉","精選套餐","品味","中式","中式小菜","中式小菜菜式","四川回鍋肉","豬"]
["D02232","302.燒汁野菌炒牛肉","精選套餐","品味","中式","中式小菜","中式小菜菜式","燒汁野菌炒牛肉","牛"]
["D02233","303.南瓜蒸排骨","精選套餐","品味","中式","中式小菜","中式小菜菜式","南瓜蒸排骨","豬"]
["D02264","枝竹豬肚雞煲","精選套餐","品味","中式","中式小菜","中式小菜菜式","枝竹豬肚雞煲","雞"]
["D02259","酸菜烤魚","精選套餐","品味","中式","中式海鮮","中式海鮮菜式","酸菜烤魚","海鮮"]
["D02256","肉碎四季豆","精選套餐","品味","中式","中式小菜","中式小菜菜式","欖菜肉碎四季豆","雜肉"]
["D02255","虎皮尖椒炒牛肉","精選套餐","品味","中式","中式小菜","中式小菜菜式","虎皮尖椒炒牛肉","牛"]
["D02239","309.豉汁涼瓜倉魚","精選套餐","品味","中式","中式海鮮","中式海鮮菜式","豉汁涼瓜倉魚","海鮮"]
["D02238","308.燒味雙拼(油雞.燒鵝.)","精選套餐","品味","中式","燒味","淨燒味","燒味雙拼","雜肉"]
["D01226","西多士","包類","品味","西式","西式麵包","西式麵包菜式","西多士","包類"]
["D02249","馬拉盞時蔬飯","精選套餐","品味","越式","越式粉麵飯","越式飯","馬拉盞時蔬飯","菜"]
["D02248","蒜蓉炒時蔬飯","精選套餐","品味","中式","中式粉麵飯","中式飯","蒜蓉炒時蔬飯","菜"]
["D02260","麻辣烤魚","精選套餐","品味","中式","中式海鮮","中式海鮮菜式","麻辣烤魚","海鮮"]
["D02237","307.燒味三小拼(叉燒.海蜇.燒腩仔)","精選套餐","品味","中式","燒味","淨燒味","燒味三拼","雜肉"]
["D02261","水煮牛肉","精選套餐","品味","中式","中式小菜","中式小菜菜式","水煮牛肉鍋","牛"]
["D02254","剁椒魚頭","精選套餐","品味","中式","中式海鮮","中式海鮮菜式","剁椒魚頭","海鮮"]
["D01486","水煮斑球","海鮮","品味","中式","中式小菜","中式小菜菜式","水煮斑球","海鮮"]
["D02253","荷芹炒臘味","精選套餐","品味","中式","中式小菜","中式小菜菜式","臘味炒荷芹","雜肉"]
["D02280","005.香茅牛肉撈檬",null,"品味","越式","檬","撈檬","香茅牛肉撈檬","牛"]
["D02266","802.茄子豆卜蝦球飯",null,"品味","中式","中式粉麵飯","中式飯","茄子豆卜蝦球飯","海鮮"]
["D02294","8.豉油雞髀飯",null,"品味","中式","燒味","燒味飯","豉油雞髀飯","雞"]
["D02277","002.生牛肉湯河",null,"品味","越式","越式粉麵飯","越式河","河內生牛肉湯河","牛"]
["D02291","5.白切雞飯",null,"品味","中式","燒味","燒味飯","白切雞飯","雞"]
["D01953","D3 通菜炒鮮魷",null,"品味","中式","中式小菜","中式小菜菜式","通菜炒鮮魷","海鮮"]
["D02237","307.燒味三小拼(叉燒.海蜇.紅腸)",null,"品味","中式","燒味","淨燒味","燒味三拼","雜肉"]
["D01893","5.豬頸肉肉碎飯",null,"品味","中式","中式粉麵飯","中式飯","豬頸肉肉碎飯","豬"]
["D02232","302.枝竹涼瓜火腩煲",null,"品味","中式","中式小菜","中式小菜菜式","枝竹涼瓜火腩煲","豬"]
["D02231","301.家鄉蓮藕煎肉餅",null,"品味","中式","中式小菜","中式小菜菜式","家鄉蓮藕煎肉餅","豬"]
["D02234","304.麻婆雞粒豆腐",null,"品味","中式","中式小菜","中式小菜菜式","麻婆雞粒豆腐","雞"]
["D02233","303.XO醬豆卜蒸腩片",null,"品味","中式","中式小菜","中式小菜菜式","XO醬豆卜蒸腩片","豬"]
["D01892","4.豬扒煎蛋冬蔭公米線",null,"品味","越式","越式粉麵飯","越式其他","豬扒煎蛋冬蔭公米線","豬"]
["D02235","305.椒絲腐乳通菜炒牛肉",null,"品味","中式","中式小菜","中式小菜菜式","椒絲腐乳通菜炒牛肉","牛"]
["D02183","603.咖喱牛腩飯",null,"品味","中式","中式粉麵飯","中式飯","咖喱牛腩飯","牛"]
["D02200","馬來炒貴刁",null,"品味","中式","中式粉麵飯","中式其他","馬来炒貴刁","粉麵飯"]
["D02227","魚柳湯米線",null,"品味","中式","中式粉麵飯","中式米線","魚柳湯米線","海鮮"," "]
["D01994","3.蜜汁叉燒飯",null,"品味","中式","燒味","燒味飯","蜜汁叉燒飯","豬"]
["D02268","804.燒汁炒肥牛飯",null,"品味","中式","中式粉麵飯","中式飯","燒汁炒肥牛飯","牛"]
["D01992","1.明爐燒鵝飯",null,"品味","中式","燒味","燒味飯","明爐燒鵝飯","鵝"]
["D02007","例湯",null,"品味","中式","中式湯","中式湯菜式","例湯","湯"]
["D02284","海蜇燻蹄飯",null,"品味","中式","燒味","燒味飯","海蜇燻蹄飯","雜肉"]
["D01995","4.豉油雞飯",null,"品味","中式","燒味","燒味飯","豉油雞飯","雞"]
["D01993","2.脆皮燒腩仔飯",null,"品味","中式","燒味","燒味飯","脆皮燒腩仔飯","豬"]
["D02001","雪碧",null,"品味","飲料","無酒精","特飲","雪碧","飲品"]
["D00157","白酒(瓶)",null,"品味","飲料","酒精","酒精款式","白酒(瓶)","酒類"]
["D02279","004.蝦餅扎肉撈檬",null,"品味","越式","檬","撈檬","蝦餅扎肉撈檬","雜肉"]
["D01996","5.白切雞飯",null,"品味","中式","燒味","燒味飯","白切雞飯","雞"]
["D02000","可樂",null,"品味","飲料","無酒精","特飲","可樂","飲品"]
["D02275","608.叉燒油雞飯",null,"品味","中式","燒味","燒味飯","叉燒油雞飯","雜肉"]
["D02273","606.雞翼腸仔飯",null,"品味","西式","西式粉麵飯","西式粉麵飯菜式","雞翼腸仔飯","雜肉",null," "]
["D02184","604.叉燒煎蛋飯",null,"品味","中式","中式粉麵飯","中式飯","叉燒煎蛋飯","豬"]
["D02274","607.豬頸肉煎蛋飯",null,"品味","西式","西式粉麵飯","西式粉麵飯菜式","豬頸肉煎蛋飯","豬"]
["D02270","806.豬頸肉金邊粉",null,"品味","越式","越式粉麵飯","越式其他","豬頸肉金邊粉","豬"]
["D02281","006.肉碎伴太陽蛋飯",null,"品味","越式","越式粉麵飯","越式飯","肉碎伴太陽蛋飯","豬"]
["D02269","805.星州炒米粉",null,"品味","中式","中式粉麵飯","中式其他","星州炒米粉","粉麵飯",null," "]
["D02272","808.燒腩仔切雞飯",null,"品味","中式","燒味","燒味飯","燒腩仔切雞飯","雜肉"]
["D02290","4.豉油雞飯",null,"品味","中式","燒味","燒味飯","豉油雞飯","雞"]
["D02297","可樂",null,"品味","飲料","無酒精","特飲","可樂","飲品"]
["D02292","6.海蜇燻蹄飯",null,"品味","中式","燒味","燒味飯","海蜇燻蹄飯","雜肉"]
["D02295","例湯",null,"品味","中式","中式湯","中式湯菜式","例湯","湯"]
["D02283","008.雞翼拼豬頸肉飯",null,"品味","西式","西式粉麵飯","西式粉麵飯菜式","雞翼拼豬頸肉飯","雜肉"]
["D02287","1.明爐燒鵝飯",null,"品味","中式","燒味","燒味飯","明爐燒鵝飯","鵝"]
["D02289","3.蜜汁叉燒飯",null,"品味","中式","燒味","燒味飯","蜜汁叉燒飯","豬"]
["D02267","803.鹹蛋蒸肉餅飯",null,"品味","中式","中式粉麵飯","中式飯","鹹蛋蒸肉餅飯","豬"]
["D02271","807.x0醬揚州炒飯",null,"品味","中式","中式粉麵飯","中式飯","x0醬揚州炒飯","粉麵飯"]
["D02293","7.白切雞髀飯",null,"品味","中式","燒味","燒味飯","白切雞髀飯","雞"]
["D02282","\u007f007.豬扒煎蛋飯",null,"品味","西式","西式粉麵飯","西式粉麵飯菜式","豬扒煎蛋飯","豬"]
["D01987","雞扒煎蛋飯",null,"品味","西式","西式粉麵飯","西式粉麵飯菜式","雞扒餐肉飯","雞"]
["D02288","2.脆皮燒腩仔飯",null,"品味","中式","燒味","燒味飯","脆皮燒腩仔飯","豬",null," "]
["D02258","油鴨脾臘味拼盤(小)",null,"品味","中式","中式小菜","中式小菜菜式","油鴨脾臘味拼盤","雜肉"]
["D02265","801.咖喱海鮮炒飯",null,"品味","中式","中式粉麵飯","中式飯","咖喱海鮮炒飯","海鮮"]
["D02133","240.奶油豬",null,"品味","西式","西式麵包","西式麵包菜式","奶油豬仔包","包類"," "]
["D01894","6.香茅牛肉腸仔飯",null,"品味","越式","越式粉麵飯","越式飯","香茅牛肉腸仔飯","雜肉"]
["D01891","3.咖喱豬扒飯",null,"品味","中式","中式粉麵飯","中式飯","咖喱豬扒飯","豬"]
["D01893","5.豬頸肉餐肉飯",null,"品味","西式","西式粉麵飯","西式粉麵飯菜式","豬頸肉餐肉飯","豬"]
["D01892","4.雞扒煎蛋鮮茄米粉",null,"品味","西式","西式粉麵飯","西式粉麵飯菜式","雞扒煎蛋鮮茄米粉","雞"]
["D02274","607.雞扒煎蛋飯",null,"品味","西式","西式粉麵飯","西式粉麵飯菜式","雞扒煎蛋飯","雞",null,null,null," "]
["D02182","602.香茅牛肉煎蛋飯",null,"品味","越式","越式粉麵飯","越式飯","香茅牛肉煎蛋飯","牛",null," "]
["D02267","鹹蛋蒸肉餅飯$68",null,"品味","中式","中式粉麵飯","中式飯","鹹蛋蒸肉餅飯","豬"]
["D02265","枝竹羊腩飯$98",null,"品味","中式","中式粉麵飯","中式飯","枝竹羊腩飯","羊"]
["D02183","603.肉碎茄子飯",null,"品味","中式","中式粉麵飯","中式飯","肉碎茄子飯","雜肉"]
["D02275","608.香茅豬扒撈檬",null,"品味","越式","檬","撈檬","香茅豬扒撈檬","豬"]
["D02273","606.肉碎餐肉飯",null,"品味","越式","越式粉麵飯","越式飯","肉碎餐肉飯","豬",null,null," "]
["D02271","虎皮尖椒炒牛肉飯$78",null,"品味","中式","中式粉麵飯","中式飯","虎皮尖椒炒牛肉飯","牛"]
["D01890","2.豬頸肉蝦餅飯",null,"品味","越式","越式粉麵飯","越式飯","豬頸肉蝦餅飯","雜肉"]
["D00110","香茅豬扒飯",null,"品味","越式","越式粉麵飯","越式飯","香茅豬扒飯","豬"]
["D01893","5.豬扒腸仔飯",null,"品味","西式","西式粉麵飯","西式粉麵飯菜式","豬扒腸仔飯","豬"]
["D01891","3.咖喱雞扒飯",null,"品味","中式","中式粉麵飯","中式飯","咖喱雞扒飯","雞"]
["D02299","虎皮尖椒炒牛肉",null,"品味","中式","中式小菜","中式小菜菜式","虎皮尖椒炒牛肉","牛"]
["D01892","4.豬頸肉煎蛋鮮茄河粉",null,"品味","西式","西式粉麵飯","西式粉麵飯菜式","豬頸肉煎蛋鮮茄河粉","豬"]
["D01894","6.香葉肉碎扎肉飯",null,"品味","越式","越式粉麵飯","越式飯","香葉肉碎扎肉飯","豬"]
["D02270","油鴨脾臘味飯$98",null,"品味","中式","中式粉麵飯","中式飯","油鴨脾臘味飯","雜肉"]
["D02257","油鴨脾臘味拼盤(大)",null,"品味","中式","中式小菜","中式小菜菜式","油鴨脾臘味拼盤","雜肉"]
["D02183","603.欖菜肉碎四季豆飯",null,"品味","中式","中式粉麵飯","中式飯","欖菜肉碎四季豆飯","雜肉"]
["D02182","602.咖喱魚柳飯",null,"品味","中式","中式粉麵飯","中式飯","咖喱魚柳飯","海鮮"]
["D02273","606.豬頸肉餐肉飯",null,"品味","西式","西式粉麵飯","西式粉麵飯菜式","豬頸肉餐肉飯","豬"]
["D02043","豆腐火腩飯",null,"品味","中式","中式粉麵飯","中式飯","豆腐火腩飯","豬"]
["D02275","608.香茅雞扒撈檬",null,"品味","越式","檬","撈檬","香茅雞扒撈檬","雞"]
["D02274","607.雞翼煎蛋飯",null,"品味","越式","越式粉麵飯","越式飯","香茅雞翼煎蛋飯","雞"]
["D02184","604.燒肉鹹蛋飯",null,"品味","中式","燒味","燒味飯","燒肉鹹蛋飯","雜肉"]
["D01892","4.冬蔭公雞扒煎蛋河粉",null,"品味","越式","越式粉麵飯","越式河","冬蔭公雞扒煎蛋河粉","雜肉"]
["D01890","2.蝦餅腸仔飯",null,"品味","越式","越式粉麵飯","越式飯","蝦餅腸仔飯","雜肉"]
["D02040","醬爆豬頸肉飯",null,"品味","中式","中式粉麵飯","中式飯","醬爆豬頸肉飯","豬"]
["D02268","豉汁蒸魚頭飯$78",null,"品味","中式","中式粉麵飯","中式飯","豉汁蒸魚頭飯","海鮮"]
["D01892","4.冬蔭公豬扒煎蛋米線","午市套餐","品味","越式","越式粉麵飯","越式其他","豬扒煎蛋冬蔭公米線","豬"]
["D02302","鹹蛋蒸肉餅","午市小食","品味","中式","中式小菜","中式小菜菜式","鹹蛋蒸肉餅","豬"]
["D02307","叉燒拼油雞飯","午市小食","品味","中式","燒味","燒味飯","叉燒油雞飯","雜肉"]
["D02306","豬扒餐肉飯","午市小食","品味","西式","西式粉麵飯","西式粉麵飯菜式","豬扒餐肉飯","豬"]
["D02304","茄子倉魚","午市小食","品味","中式","中式海鮮","中式海鮮菜式","茄子倉魚","海鮮"]
["D01951","D1 菠蘿咕嚕肉","（新）小菜套餐","品味","中式","中式小菜","中式小菜菜式","菠蘿咕嚕肉","豬"]
["C00601","豬利",null,"品味","中式","中式小菜","中式小菜菜式","豬利","豬"]
["D02241","雲吞4粒","(新)醒晨早餐","品味","中式","中式粉麵飯","中式其他","雲吞4粒","海鮮"]
["D02083","醬爆牛肉飯","午市套餐","品味","中式","中式粉麵飯","中式飯","醬爆牛肉飯","牛"]
["D02269","剁椒魚頭飯$138","（新）小菜套餐","品味","中式","中式粉麵飯","中式飯","剁椒魚頭飯","海鮮"]
["D01960","D10 馬拉盞炒菜","（新）小菜套餐","品味","越式","越式素菜","越式素菜菜式","馬拉盞炒菜","菜"]
["D01892","4.鮮茄雞扒煎蛋米線","午市套餐","品味","越式","越式粉麵飯","越式其他","鮮茄雞扒煎蛋米線","雞"]
["D01893","5.豬頸肉煎蛋飯","午市套餐","品味","越式","越式粉麵飯","越式飯","豬頸肉煎蛋飯","豬"]
["D01894","6.香茅牛肉拼肉碎飯","午市套餐","品味","越式","越式粉麵飯","越式飯","香茅牛肉拼肉碎飯","雜肉"]
["D01341","玫瑰豉油雞(半)","(新)燒味","品味","中式","燒味","淨燒味","玫瑰豉油雞","雞"]
["D02274","607.豬頸肉拼春卷撈檬","午市小食","品味","越式","檬","撈檬","豬頸肉拼春卷撈檬","豬"]
["D02275","608.三寶湯河(牛肉.扎肉.豬肚絲",null,"品味","越式","越式粉麵飯","越式河","越式三寶湯河","雜肉"]
["D02185","605.滑蛋叉燒飯",null,"品味","中式","中式粉麵飯","中式飯","叉燒炒滑蛋飯","豬"]
["D02182","602.蝦餅肉碎飯","午市小食","品味","越式","越式粉麵飯","越式飯","蝦餅肉碎飯","雜肉"]
["D02184","604.豬頸肉煎蛋飯","午市小食","品味","越式","越式粉麵飯","越式飯","豬頸肉煎蛋飯","豬"]
["D02183","603.雞扒餐肉飯","午市小食","品味","西式","西式粉麵飯","西式粉麵飯菜式","雞扒餐肉飯","雜肉"]
["D02273","606.豬肚絲豬肉丸米線","午市小食","品味","越式","越式粉麵飯","越式其他","豬肚絲豬肉丸米線","豬"]
["D02275","608.三寶湯河(牛肉.扎肉.豬肚絲","午市小食","品味","越式","越式粉麵飯","越式河","越式三寶湯河","雜肉"]
["D02185","605.滑蛋叉燒飯","午市小食","品味","中式","中式粉麵飯","中式飯","叉燒炒滑蛋飯","豬"]
["D02273","606.豬肚絲豬肉丸米線",null,"品味","越式","越式粉麵飯","越式其他","豬肚絲豬肉丸米線","豬"]
["D02184","604.咖喱牛腩飯","午市小食","和味","中式","中式粉麵飯","中式飯","咖喱牛腩飯","牛"]
["D02185","605.蝦仁滑蛋飯","午市小食","品味","中式","中式粉麵飯","中式飯","滑蛋蝦仁飯","海鮮"]
["D02183","603.豬扒腸仔飯","午市小食","品味","西式","西式粉麵飯","西式粉麵飯菜式","豬扒腸仔飯","豬"]
["D02273","606.豬肚絲扎肉米線","午市小食","品味","越式","越式粉麵飯","越式其他","豬肚絲扎肉米線","豬"]
["D02273","606.豬肚絲扎肉米線",null,"品味","越式","越式粉麵飯","越式其他","豬肚絲扎肉米線","豬"]
["D02323","涼瓜肉碎煎蛋","（新）小菜套餐","品味","中式","中式小菜","中式小菜菜式","涼瓜肉碎煎蛋","豬"]
["D02316","薯仔牛柳粒$78","（新）小菜套餐","品味","中式","中式小菜","中式小菜菜式","薯仔牛柳粒","牛"]
["D02321","西蘭花炒蝦球$82","（新）小菜套餐","品味","中式","中式小菜","中式小菜菜式","西蘭花炒蝦球","海鮮"]
["D02313","滑蛋蝦仁飯$78","（新）小菜套餐","品味","中式","中式粉麵飯","中式飯","滑蛋蝦仁飯","海鮮"]
["D02325","豉汁蒸倉魚","（新）小菜套餐","品味","中式","中式海鮮","中式海鮮菜式","豉汁蒸倉魚","海鮮"]
["D01027","焼鵝","燒味","品味","中式","燒味","淨燒味","燒鵝皇","鵝"]
["D01028","焼腩仔","燒味","品味","中式","燒味","淨燒味","脆皮三層焼腩仔","豬"]
["D01029","叉焼","燒味","品味","中式","燒味","淨燒味","蜜汁叉燒","豬"]
["D02315","菠蘿咕嚕肉$68","（新）小菜套餐","品味","中式","中式小菜","中式小菜菜式","菠蘿咕嚕肉","豬"]
["D02324","涼瓜豬肚煲","（新）小菜套餐","品味","中式","中式小菜","中式小菜菜式","涼瓜豬肚煲","豬"]
["D02317","香茅豬扒(1份)","（新）小菜套餐","品味","越式","越式小菜","越式小菜菜式","香茅豬扒","豬"]
["D02327","時菜炒牛肉","（新）小菜套餐","品味","中式","中式小菜","中式小菜菜式","時菜炒牛肉","牛"]
["D02322","茄子枝竹煲","（新）小菜套餐","品味","中式","中式小菜","中式小菜菜式","茄子枝竹煲","菜"]
["D01380","酸辣無骨鳯爪","(新)小食","品味","中式","中式頭盤","中式頭盤菜式","酸辣無骨鳯爪","雞"]
["D02311","南乳豬手(大)","（新）小菜套餐","品味","中式","中式小菜","中式小菜菜式","南乳豬手","豬"]
["D01403","火腩豆腐煲","(新)推介","品味","中式","中式小菜","中式小菜菜式","豆腐火腩煲","豬"]
["D02312","鹹蛋蒸肉餅","（新）小菜套餐","品味","中式","中式小菜","中式小菜菜式","鹹蛋蒸肉餅","豬"]
["D02326","香辣雞粒豆腐","（新）小菜套餐","品味","中式","中式小菜","中式小菜菜式","香辣雞粒豆腐","雞"]
["D02320","西蘭花炒鮮魷$82","（新）小菜套餐","品味","中式","中式小菜","中式小菜菜式","西蘭花炒鮮魷","海鮮"]
["D02318","香茅豬頸肉(1份)","（新）小菜套餐","品味","越式","越式小菜","越式小菜菜式","香茅豬頸肉","豬"]
["D02328","一人套餐","（新）小菜套餐","品味","其他","餐牌其他","雜項","一人套餐","無分類"]
["D02296","外賣盒","（新）小菜套餐","品味","其他","餐牌其他","雜項","外賣盒","無分類"]
["D02319","欖菜肉碎四季豆","（新）小菜套餐","品味","中式","中式小菜","中式小菜菜式","欖菜肉碎四季豆","雜肉"]
[null,null,null,null,null,null," "]
[]
[]
[null,null,null,null,null," "]
[null," ",null,null," "]
[null,null,null,null,null," "]
[]
[]
[null,null,null,null,null,null," "]

{"sheet":"MENU MASTER","index":2,"n_rows":122,"n_cols":62,"rows_kept":122,"cut":false,"hidden":false,"merged":[]}
["Level 1","Level 2",null,null,null,null,null,null,null,"Level 3","Level 4"]
["主類別",null,null,null,null,null,null,null,null,"中式 ",null,null,null,null,null,null,null,null,null,null,null,null,null,null,null,null,null,"西式",null,null,null,null,null,"越式",null,null,null,null,null,null,null,null,null,null,null,null,null,null,null,null,null,null,null,null,null,null,"飲料"]
["中式","中式","西式","越式","飲料","其他","餐牌其他","套餐","雜項","中式頭盤","中式頭盤菜式","燒味","淨燒味","燒味飯","中式小菜","中式小菜菜式","中式海鮮","中式海鮮菜式","中式素菜","中式素菜菜式","中式粉麵飯","中式飯","中式河","中式米線","中式其他","中式湯","中式湯菜式","西式小食","西式小食菜式","西式麵包","西式麵包菜式","西式粉麵飯","西式粉麵飯菜式","越式小菜","越式小菜菜式","越式燒物","越式燒物菜式","越式海鮮","越式海鮮菜式","咖喱","咖喱菜式","越式素菜","越式素菜菜式","米紙卷","米紙卷菜式","檬","撈檬","湯檬","越式麵包","越式麵包菜式","越式粉麵飯","越式飯","越式河","越式其他","越式湯","越式湯菜式","酒精","酒精款式","無酒精","凍飲","熱飲","特飲"]
["西式","中式頭盤","西式小食","越式小菜","酒精","餐牌其他","套餐","早餐套餐","雜項","中式頭盤菜式","手拍青瓜","淨燒味","白切農場雞","明爐燒鵝飯","中式小菜菜式","XO\u007f醬雜菇炒蝦球\u007f","中式海鮮菜式","剁椒魚頭","中式素菜菜式","灼時蔬","中式飯","白飯","牛肉拼豬肉丸湯河","牛肉拼豬手米線","淨湯粉","中式湯菜式","例湯","西式小食菜式","煎荷包蛋","西式麵包菜式","菠蘿油","西式粉麵飯菜式","豬扒煎蛋飯","越式小菜菜式","越式炸香蕉","越式燒物菜式","香茅串焼雞肉","越式海鮮菜式","椒鹽軟殻蟹","咖喱菜式","咖喱牛腩鍋","越式素菜菜式","牙車快","米紙卷菜式","香芒軟殻蟹米紙卷","撈檬","鮮蝦撈檬","冬蔭公三寶湯檬","越式麵包菜式","蒜蓉包","越式飯","金菠羅海鮮炒飯","牛肉拼豬肉丸湯河","越式炒金邊粉","越式湯菜式","蕃茄蟹肉湯","酒精款式","紅酒","凍飲","凍咖啡","熱蜂蜜柚子茶","新鮮椰青"]
["越式","燒味","西式麵包","越式燒物","無酒精",null,"雜項","午餐套餐","一人套餐",null,"和味三小拼(海蜇.叉燒.青瓜)","燒味飯","白切雞脾","明爐燒鵝髀飯",null,"XO\u007f醬雜菇炒雞球\u007f",null,"明爐烏頭",null,"灼菜芯","中式河","叉燒鹹蛋飯","油雞湯河","雪菜肉碎豬肉丸米線","和味焼鵝濑",null,"豆腐魚頭雑菜湯",null,"薯條",null,"菠蘿包",null,"豬扒餐肉飯",null,"越式炸蝦餅",null,"香茅串焼牛肉",null,"湄公河大頭蝦",null,"咖喱軟殼蟹鍋",null,"馬拉盞炒通菜",null,"香茅豬頸肉米紙卷","湯檬","香茅牛肉撈檬","香茅牛肉湯檬",null,"越式豬頸肉三文治","越式河","香茅牛肉飯","牛肉拼豬肚絲湯河","馬拉盞野菌炒金邊粉","法式蕃茄蟹肉大頭蝦湯",null,null,"藍妹(大支)","熱飲","凍齋啡","熱香片茶","椰汁冰"]
["飲料","中式小菜","西式粉麵飯","越式海鮮",null,null,null,"晚餐套餐","外賣盒",null,"涼伴豬耳絲",null,"玫瑰豉油雞","脆皮燒腩仔飯",null,"叉燒炒滑蛋",null,"果皮蒸泥孟",null,"蒜蓉炒時蔬","中式米線","叉燒炒滑蛋飯","乾炒牛河","豬扒拼春卷米線","馬来炒貴刁",null,"粟米魚肚羹",null,"炸雞中翼配薯條",null,"脆脆豬仔包",null,"豬頸肉煎蛋飯",null,"蝦餠紮肉拼蝦片",null,"香茅串燒豬頸肉",null,"水煮鯇魚",null,"咖喱雑菜鍋",null,"馬拉盞時蔬",null,"焼大虎蝦米紙卷",null,"香茅牛肉豬耳絲撈檬","香茅豬頸肉串湯檬",null,"越式三文治","越式其他","香茅牛肉煎蛋飯","冬陰功湯三寶湯河","冬陰功三寶米線",null,null,null,"二鍋頭(細)","特飲","凍檸啡","越南滴漏咖啡","紅豆冰"]
["其他","中式海鮮",null,"咖喱",null,null,null,null,null,null,"涼伴豬肚絲",null,"豉油雞脾","蜜汁叉燒飯",null,"土魷蒸肉餅",null,"烤鯇魚",null,"清炒時蔬","中式其他","田園菜粒炒飯","乾炒雑菜河粉","豬肉丸雪菜米線","雪菜肉碎拼紅腸米粉",null,"海皇豆腐羹",null,"炸魚柳薯條",null,"奶油豬仔包",null,"雞扒飯",null,"迷你拼盤",null,"香茅串焼拼盤",null,null,null,"咖哩牛腩配蒜茸包",null,"馬拉盞炒菜",null,"香茅牛肉米紙卷",null,"香茅豬頸肉串撈檬","香茅雞扒湯檬",null,"扎肉包",null,"香茅牛肉餐肉飯","冬陰功湯河","鮮茄三寶米線",null,null,null,"青島啤酒(大支)",null,"凍奶茶","熱咖啡","綠豆冰"]
[" ","中式素菜",null,"越式素菜",null,null,null,null,null,null,"陳醋雲耳",null,"燒鵝皇","白切雞飯",null,"水煮斑球",null,"豉汁蒸盲魚曹",null,"清炒雑菜",null,"肉碎茄子飯","豉油皇野菌炒河粉","牛肉扎肉米線","米粉",null,null,null,"雞全翼配蒜蓉包",null,"脆脆豬扒包",null,"午餐肉肉碎飯",null,"迷你春卷",null,"串焼大虎蝦",null,null,null,null,null,null,null,"西堤素菜米紙卷",null,"香茅雞扒拼春卷撈檬","蝦餅扎肉湯檬",null,null,null,"香茅豬扒飯","和味皇牌湯河","豬扒拼春卷米線",null,null,null,"白酒(瓶)",null,"凍鴛鴦","熱齋啡","三色冰"]
[" ","中式粉麵飯",null,"米紙卷",null,null,null,null,null,null,"酸辣無骨鳯爪",null,"燒鵝脾","白切雞髀飯",null,"冬瓜火腩煲",null,"豉汁蒸倉魚",null,"郊外油菜",null,"豆腐火腩飯","豉油雞湯河粉","餐肉湯米線","無分類",null,null,null,"雞全翼配春卷",null,"雞扒包",null,"薯仔雞脾飯",null,"會安炸春卷",null,"焼雞肉串",null,null,null,null,null,null,null,"龍脷魚柳米紙卷",null,"香茅雞翼撈檬","蝦餅湯檬",null,null,null,"香茅雞扒拼餐肉飯","河內生牛肉湯河","越式雙拼麵",null,null,null,null,null,"凍檸檬茶","熱檸啡","菠蘿冰"]
[" ","中式湯",null,"檬",null,null,null,null,null,null,"蔥油海蜇",null,"鵝頭","豉油雞飯",null,"尖椒炒豬肚",null,"豉汁蒸烏頭",null,"姜汁芥菜",null,"咖喱牛腩飯","雪菜肉碎拼雲吞河","鮮茄雞絲豬肚絲米線","星州炒米粉",null,null,null,"豬肉串配薯條",null,"油占包",null,"雞扒餐肉飯",null,"雞全翼配春卷",null,"豬頸肉串",null,null,null,null,null,null,null,"越式扎肉米紙卷",null,"迷你春卷撈檬","豬肉丸拼豬肚絲湯檬",null,null,null,"香茅雞扒煎蛋飯","河內熟牛肉湯河","冬蔭公牛肉豬米線",null,null,null,null,null,"凍檸檬水","熱奶茶","芒果涼粉冰"]
[" ",null,null,"越式麵包",null,null,null,null,null,null,null,null,"紅燒乳鴿","豉油雞髀飯",null,"肉碎茄子煲",null,"豉汁蒸魚頭",null,"灼白菜",null,"南乳豬手飯","雪菜豬耳絲湯河","魚柳湯米線","雲吞4粒",null,null,null,"牛肉串配薯條",null,"奶醬包",null,"雞翼拼豬頸肉飯",null,"法式牛油雞翼",null,"串燒大虎蝦",null,null,null,null,null,null,null,null,null,"蝦餅扎肉撈檬","豬肉丸拼雞絲湯檬",null,null,null,"香茅雞扒飯","河内雞絲湯河","豬扒煎蛋冬蔭公米線",null,null,null,null,null,"凍檸蜜","熱鴛鴦","珍多冰"]
[null,null,null,"越式粉麵飯",null,null,null,null,null,null,null," ","脆皮三層焼腩仔","雙拼飯",null,"西芹雲耳炒雞柳",null,"豉汁蒸鱔",null,"清炒通菜",null,"海皇豆腐飯","雪菜豬肚絲湯河",null,null,null,null,null,"雞肉串配薯條",null,"蛋三文治",null,"雞翼煎蛋飯",null,"香茅雞翼",null,null,null,null,null,null,null,null,null,null,null,"蝦餅拼春卷撈檬","豬肉丸雞絲湯檬",null,null,null,"香茅雞翼煎蛋飯","品味湯河粉","豬頸肉金邊粉",null,null,null,null,null,"凍檸賓","熱檸檬茶","薄荷葉鮮青檸梳打"]
[null,null,null,"越式湯",null,null,null,null,null,null,null,null,"蜜汁叉燒","燒味三寶飯",null,"沙嗲金菇肥牛粉絲煲",null,"豉油皇大虎蝦",null,null,null,"海皇蛋白炒飯","豬手牛肉湯河",null,null,null,null,null,null,null,"炒蛋三文治",null,"叉燒炒滑蛋飯",null,"香茅豬扒",null,null,null,null,null,null,null,null,null,null,null,"蝦餅拼豬扒撈檬","豬頸肉拼春卷湯檬",null,null,null,"香葉肉碎伴太陽蛋飯","香茅豬扒河","鮮茄雞扒煎蛋米線",null,null,null,null,null,"凍檸樂","熱檸檬水","鹹檸七喜"]
[null,null,null,null,null,null,null,null,null,null,null,null,"燒味三拼","燒味四寶飯",null,"豆豉凌魚油麥菜",null,"椒鹽虎蝦",null,null,null,"涼瓜牛肉飯","豬扒炒河",null,null,null,null,null,null,null,"餐蛋三文治",null,"腸仔餐肉煎蛋公仔麵",null,"香茅雞扒"," ",null,null,null,null,null,null,null,null,null,null,"豬扒雞絲撈檬","鮮茄豬肉丸扎肉湯檬",null,null,null,"馬拉盞時蔬飯","香茅豬扒拼春卷河","豬肚絲豬肉丸米線",null,null,null,null,null,"凍阿華田","熱檸蜜","可樂"]
[null,null,null,null,null,null,null,null,null,null,null,null,"燒味四寶飯","海蜇燻蹄飯",null,"豆豉凌魚油麥菜炒扎肉",null,"煎倉魚",null,null,null,"通菜炒鮮魷飯","豬肚絲拼豬肉丸湯河",null,null,null,null,null,null,null,"雙拼三文治",null,"午餐肉煎蛋公仔麵",null,"順化蔗蝦",null,null,null,null,null,null,null,null,null,null,null,"豬頸肉拼扎肉撈檬","鮮茄蟹肉丸湯檬",null,null,null,"越式三拼飯","香茅豬扒湯河","豬肚絲扎肉米線"," ",null,null,null,null,"凍好立克","熱檸賓","無糖可樂"]
[null,null,null,null,null,null,null,null,null,null,null,null,"燒味雙拼","燻蹄飯",null,"豆腐火腩煲",null,"蒸東星魚",null,null,null,"揚州炒飯","鮮蝦雲吞河",null,null,null,null,null,null,null,"公司三文治",null,"豬扒炒公仔麵",null,"馬拉盞通菜豬頸肉",null,null,null,null,null,null,null,null,null,null,null,"豬頸肉拼春卷撈檬","雞扒拼春卷湯檬",null,null,null,"越式三寶飯","香茅雞扒湯河",null," ",null,null,null,null,"凍巧克力","熱檸樂","雪碧"]
[null,null,null,null,null,null,null,null,null,null,null,null,"鹹蛋","叉燒油雞飯",null,"豆腐魚腩煲",null,"辣椒魚頭",null,null,null,"椒鹽鮮魷飯","牛肉拼豬手湯河",null,null,null,null,null,null,null,"奶油多",null,"雞扒炒公仔麵",null,"香茅豬頸肉",null,null,null,null,null,null," ",null,null,null,null,"雞扒拼春卷撈檬","春卷湯檬",null,null,null,"越式炒飯","迷你春卷湯河",null,null,null,null,null,null,"凍杏雙","熱阿華田","梳打水"]
[null,null,null,null,null,null,null,null,null,null,null,null,"迷你拼盤","燒腩仔切雞飯",null,"咖哩豬扒鍋",null,"鮑魚拼鮑片",null,null,null,"菜心炒牛肉飯","豬手豬肚絲湯河",null,null,null,null,null,null,null,"雙拼多士",null,"豬頸肉炒公仔麵",null,null,null,null,null,null,null,null,null,null,null,null,null,"雞絲扎肉芝麻醬撈檬","豬手雞絲湯檬",null,null,null,"蝦餅肉碎飯","越式三寶湯河",null,null,null,null,null,null,"凍菜蜜","熱好立克","檸七喜"]
[null,null,null,null,null,null,null,null,null,null,null,null,"乳豬全體","燒肉鹹蛋飯",null,"咖哩雞鍋",null,"薑蔥蒸黃花魚",null,null,null,"菠蘿咕嚕肉飯",null,null,null,null,null,null,null,null,"西多士",null,"叉燒煎蛋通粉"," ",null,null,null,null,null,null,null,null,null,null,null,null,"香茅豬扒撈檬","鮮茄三寶湯檬",null,null,null,"蝦餅拼餐肉飯","越南扎肉湯河",null,null,null,null,null,null,"凍利賓納","熱巧克力","蒸餾水"]
[null,null,null,null,null,null,null,null,null,null,null,null,null,null,null,"枝竹豆卜火腩飯",null,"薑蔥蒸鯇魚",null,null,null,"菠蘿海鮮炒飯",null,null,null,null,null," ",null,null,"火腿蛋三文治",null,"雞絲煎蛋通粉",null,null,null,null,null,null,null,null," ",null,null,null,null,"香茅雞扒撈檬","雞扒煎蛋冬蔭公豬湯檬",null,null,null,"豬頸肉飯","豬肉丸拼豬肚絲湯河",null,null,null,null,null,null,"凍柚子蜜","熱柚子蜜"]
[null,null,null,null,null,null,null,null,null,null,null,null,null,null,null,"枝竹豬肚煲",null,"豉汁涼瓜倉魚",null,null,null,"黑椒豬手飯",null,null,null,null,null," ",null,null,"魚柳包",null,"雞扒肉碎飯"," ",null,null,null,null,null,null,null,null,null,null,null,null,null,"鮮蝦湯檬",null,null,null,"餐肉肉碎飯","豬肚絲拼扎肉湯河",null,null,null,null,null,null,"凍紅豆咖啡","熱紅豆咖啡"]
[null,null,null,null,null,null,null,null,null,null,null,null,null,null,null,"虎皮尖椒肉碎",null,"椒鹽魚腩",null,null,null,"滑蛋蝦仁飯",null,null,null," ",null,null,null,null,"魚柳三文治",null,"豬扒雞翼飯"," ",null,null,null,null,null,null,null,null,null,null,null,null,null,null,null,null,null,"欖菜薑米蛋白炒飯","豬肚絲豬肉丸湯河",null,null,null,null,null,null,"凍紅豆奶茶","熱紅豆奶茶"]
[null,null,null,null,null,null,null,null,null,null,null,null," ",null,null,"青瓜雲耳炒牛肉",null,"蒸倉魚",null,null,null,"蒜蓉炒時蔬飯",null,null,null,null,null,null,null,null,null,null,"雞扒煎蛋飯",null,null,null,null,null,null,null,null,null,null,null,null," ",null,null,null,null,null,"蝦餅煎蛋飯","鮮茄三寶湯河",null,null,null,null,null,null,null,"杏仁霜"]
[null,null,null,null,null,null,null,null,null,null,null,null,null,null,null,"南瓜蒸排骨",null,"冬菜蒸黃花魚",null,null,null,"薑米菜粒炒飯",null,null,null,null,null,null,null,null,null," ","雞扒香腸飯",null,null,null,null,null,null,null,null,null,null,null,null," ",null,null,null,null,null,"豬頸肉蝦餅飯","雞扒拼春卷湯河",null,null,null,null,null,null,null,"熱利賓納"]
[null,null,null,null,null,null,null,null,null,null,null,null,null,null,null,"紅青椒炒牛肉",null,"酸菜鯇魚鍋",null,null,null,"醬爆豬頸肉飯",null,null,null,null,null,null,null,null,null,null,"豬頸肉腸仔飯",null,null,null,null,null,null,null,null,null,null,null,null," ",null,null,null,null,null,"香茅牛肉腸仔飯","雞絲扎肉河",null,null,null,null,null,null,null,"熱菜蜜"]
[null,null,null,null,null,null,null,null,null,null,null,null,null,null,null,"茄子班腩煲",null,"茄汁大虎蝦",null,null,null,"欖菜薑米炒飯",null,null,null,null,null,null,null,null,null,null,"麥皮",null,null,null,null,null,null," ",null,null,null,null,null,null,null,null,null,null,null,"蝦餅餐肉飯","豬手扎肉湯河"]
[null,null,null,null,null,null,null,null,null,null,null,null,null,null,null,"時菜炒斑球",null,"酸菜烤魚",null,null,null,"枝竹羊腩飯",null,null,null,null,null,null,null,null,null,null,"雞翼腸仔飯",null,null,null,null,null,null," ",null,null,null," ",null,null,null,null,null,null,null,"冬陰公海鮮飯","鮮茄牛肉扎肉湯河"]
[null,null,null,null,null,null,null,null,null,null,null,null,null,null,null,"海皇豆腐煲",null,"麻辣烤魚",null,null,null,"北菇蒸雞飯",null,null,null,null,null,null,null,null,null,null,"豬頸肉餐肉飯",null,null,null,null,null,null," ",null,null,null," ",null,null,null,null,null,null,null,"蝦餅雞扒飯","冬蔭公雞絲豬肉丸湯河"]
[null,null,null,null,null,null,null,null,null,null,null,null,null,null,null,"海皇粉絲雑菜煲"," ","茄子倉魚",null,null,null,"粟米斑腩飯",null,null,null,null,null,null,null,null,null,null,"雞扒煎蛋鮮茄米粉",null,null,null,null,null,null," ",null,null,null,null,null,null,null,null,null,null,null,"肉碎伴太陽蛋飯","冬蔭公雞扒煎蛋河粉"]
[null,null,null,null,null,null,null,null,null,null,null,null,null,null,null,"粉絲海皇雜菜煲"," ",null,null,null,null,"茄子豆卜蝦球飯",null,null,null,null,null,null,null,null,null,null,"豬扒腸仔飯",null,null,null,null,null,null," ",null,null,null,null,null,null,null,null,null,null,null,"肉碎餐肉飯"]
[null,null,null,null,null,null,null,null,null,null,null,null,null,null,null,"涼瓜火腩煲"," ",null,null,null,null,"豬頸肉肉碎飯",null,null,null,null,null,null,null,null,null,null,"豬頸肉煎蛋鮮茄河粉",null,null,null,null,null,null," ",null,null,null,null,null,null,null,null,null,null,null,"香葉肉碎扎肉飯"]
[null,null,null,null,null,null,null,null,null,null,null,null,null,null,null,"涼瓜煎蛋",null,null,null,null,null,"燒汁炒肥牛飯",null,null,null,null,null,null,null,null,null,null,null,null,null,null,null,null,null," ",null,null,null,null,null,null,null,null,null,null,null,"蝦餅腸仔飯",null,null," "]
[null,null,null,null,null,null,null,null,null,null,null,null,null,null,null,"淨雲吞",null,null,null,null,null,"叉燒煎蛋飯",null,null,null,null,null,null,null,null,null,null," "," ",null,null,null,null,null,null,null,null,null,null,null,null,null,null,null,null,null,"豬頸肉煎蛋飯"]
[null,null,null,null,null,null,null,null,null,null,null,null,null,null,null,"豉椒涼瓜炒鮮魷",null,null,null,null,null,"鹹蛋蒸肉餅飯",null,null,null,null,null,null,null,null,null,null,null,null,null,null,null,null,null,null,null,null,null,null,null,null,null,null,null,null,null,"香茅牛肉拼肉碎飯"]
[null,null,null,null,null,null,null,null,null,null,null,null,null,null,null,"通菜炒鮮魷",null,null,null,null,null,"x0醬揚州炒飯"," ",null,null,null,null,null,null," ",null,null,null,null,null,null,null,null,null,null,null,null,null," "]
[null,null,null,null,null,null,null,null,null,null,null,null,null,null,null,"麻婆豆腐",null,null,null,null,null,"咖喱海鮮炒飯",null,null,null,null,null,null,null,null,null,null,null,null,null,null,null,null,null,null,null,null,null," "]
[null,null,null,null,null,null,null,null,null,null,null,null,null,null,null,"麻辣豆角炒肥牛",null,null,null,null,null,"咖喱豬扒飯",null,null,null,null,null,null,null,null,null,null,null,null,null,null,null,null,null,null,null,null,null," "]
[null,null,null,null,null,null,null,null,null,null,null,null,null,null,null,"啫啫通菜蝦乾煲",null,null,null,null,null,"虎皮尖椒炒牛肉飯",null,null,null," "]
[null,null,null,null,null,null,null,null,null,null,null,null,null,null,null,"椒絲腐乳通菜",null,null,null,null,null,"咖喱雞扒飯",null," "]
[null,null,null,null,null,null,null,null,null,null,null,null,null,null,null,"椒鹽豆腐",null,null,null,null,null,"油鴨脾臘味飯",null,null,null,null,null,null,null,null,null,null,null,null,null,null,null,null,null,null,null," "]
[null,null,null,null,null,null,null,null,null,null,null,null,null,null,null,"椒鹽脆皮豆腐",null,null,null,null,null,"欖菜肉碎四季豆飯",null,null,null,null,null,null,null,null,null,null,null,null,null,null,null,null,null,null,null," "]
[null,null,null,null,null,null,null,null,null,null,null,null,null,null,null,"椒鹽鮮魷",null,null,null,null,null,"咖喱魚柳飯"]
[null,null,null,null,null,null,null,null,null,null,null,null,null,null,null,"粟米魚柳",null,null,null,null,null,"豉汁蒸魚頭飯"]
[null,null,null,null,null,null,null,null,null,null,null,null,null,null,null,"菜心炒牛肉",null,null,null,null,null,"醬爆牛肉飯"]
[null,null,null,null,null,null,null,null,null,null,null,null,null,null,null,"菠蘿生炒骨",null,null,null,null,null,"剁椒魚頭飯"]
[null,null,null,null,null,null,null,null,null,null,null,null,null,null,null,"菠蘿咕嚕肉"]
[null,null,null,null,null,null,null,null,null,null,null,null,null,null,null,"雲吞雞煲"]
[null,null,null,null,null,null,null,null,null,null,null,null,null,null,null,"滑蛋蝦仁"]
[null,null,null,null,null,null,null,null,null,null,null,null,null,null,null,"節瓜排骨煲"]
[null,null,null,null,null,null,null,null,null,null,null,null,null,null,null,"翠玉瓜炒蝦球"]
[null,null,null,null,null,null,null,null,null,null,null,null,null,null,null,"腐乳通菜"]
[null,null,null,null,null,null,null,null,null,null,null,null,null,null,null,"蒜子火腩大鱔煲"]
[null,null,null,null,null,null,null,null,null,null,null,null,null,null,null,"蒜心炒蝦球"]
[null,null,null,null,null,null,null,null,null,null,null,null,null,null,null,"辣椒炒牛肉"]
[null,null,null,null,null,null,null,null,null,null,null,null,null,null,null,"蝦醬豆卜蒸腩片"]
[null,null,null,null,null,null,null,null,null,null,null,null,null,null,null,"蝦醬通菜炒牛肉"]
[null,null,null,null,null,null,null,null,null,null,null,null,null,null,null,"薑蔥魚腩枝竹煲"]
[null,null,null,null,null,null,null,null,null,null,null,null,null,null,null,"薑蔥魚頭煲"]
[null,null,null,null,null,null,null,null,null,null,null,null,null,null,null,"鮮茄牛肉"]
[null,null,null,null,null,null,null,null,null,null,null,null,null,null,null,"鮮茄炒蛋"]
[null,null,null,null,null,null,null,null,null,null,null,null,null,null,null,"鮮茄蛋牛肉"]
[null,null,null,null,null,null,null,null,null,null,null,null,null,null,null,"蟲草花蒸雞"]
[null,null,null,null,null,null,null,null,null,null,null,null,null,null,null,"醬爆蝦球"]
[null,null,null,null,null,null,null,null,null,null,null,null,null,null,null,"醬爆豬頸肉"]
[null,null,null,null,null,null,null,null,null,null,null,null,null,null,null,"鵝腸"]
[null,null,null,null,null,null,null,null,null,null,null,null,null,null,null,"鹹蛋蒸肉餅"]
[null,null,null,null,null,null,null,null,null,null,null,null,null,null,null,"欖菜肉碎四季豆"]
[null,null,null,null,null,null,null,null,null,null,null,null,null,null,null,"臘味炒芥蘭"]
[null,null,null,null,null,null,null,null,null,null,null,null,null,null,null,"沙爹肥牛粉絲煲"]
[null,null,null,null,null,null,null,null,null,null,null,null,null,null,null,"燒腩仔鮑魚小棠菜"]
[null,null,null,null,null,null,null,null,null,null,null,null,null,null,null,"枝竹羊腩煲"]
[null,null,null,null,null,null,null,null,null,null,null,null,null,null,null,"炸雲吞",null," "]
[null,null,null,null,null,null,null,null,null,null,null,null,null,null,null,"四季豆炒肉碎"]
[null,null,null,null,null,null,null,null,null,null,null,null,null,null,null,"菜脯肉鬆煎蛋角"]
[null,null,null,null,null,null,null,null,null,null,null,null,null,null,null,"水煮豬大腸"]
[null,null,null,null,null,null,null,null,null,null,null,null,null,null,null,"上湯魚滑浸娃娃菜"]
[null,null,null,null,null,null,null,null,null,null,null,null,null,null,null,"Ⅹ0醬韭菜花炒鮮魷"]
[null,null,null,null,null,null,null,null,null,null,null,null,null,null,null,"金不換野菌炒豬頸肉"]
[null,null,null,null,null,null,null,null,null,null,null,null,null,null,null,"咕嚕蝦球"]
[null,null,null,null,null,null,null,null,null,null,null,null,null,null,null,"豆腐豬肚煲"]
[null,null,null,null,null,null,null,null,null,null,null,null,null,null,null,"枝竹火腩鮑魚煲"]
[null,null,null,null,null,null,null,null,null,null,null,null,null,null,null,"乾蔥鮑魚雞煲"]
[null,null,null,null,null,null,null,null,null,null,null,null,null,null,null,"雲耳蓮藕片炒鮮魷"]
[null,null,null,null,null,null,null,null,null,null,null,null,null,null,null,"水煮牛肉鍋"]
[null,null,null,null,null,null,null,null,null,null,null,null,null,null,null,"豉汁鳳爪蒸排骨"]
[null,null,null,null,null,null,null,null,null,null,null,null,null,null,null,"涼瓜野菌炒牛肉"]
[null,null,null,null,null,null,null,null,null,null,null,null,null,null,null,"羅白排骨煲"]
[null,null,null,null,null,null,null,null,null,null,null,null,null,null,null,"海皇粉絲雜菜煲"]
[null,null,null,null,null,null,null,null,null,null,null,null,null,null,null,"醬爆牛肉"]
[null,null,null,null,null,null,null,null,null,null,null,null,null,null,null,"芥菜豆腐肉片鍋"]
[null,null,null,null,null,null,null,null,null,null,null,null,null,null,null,"胡椒豬肚雞煲"]
[null,null,null,null,null,null,null,null,null,null,null,null,null,null,null,"啫啫芥蘭蝦干煲"]
[null,null,null,null,null,null,null,null,null,null,null,null,null,null,null,"蝦球叉燒炒滑蛋"]
[null,null,null,null,null,null,null,null,null,null,null,null,null,null,null,"椒絲腐乳通菜炒牛肉"]
[null,null,null,null,null,null,null,null,null,null,null,null,null,null,null,"臘味炒荷芹"]
[null,null,null,null,null,null,null,null,null,null,null,null,null,null,null,"金銀蛋肉碎浸菜苗"]
[null,null,null,null,null,null,null,null,null,null,null,null,null,null,null,"梅菜扣肉"]
[null,null,null,null,null,null,null,null,null,null,null,null,null,null,null,"鹹魚蒸肉餅"]
[null,null,null,null,null,null,null,null,null,null,null,null,null,null,null,"醬爆西芹肉丁"]
[null,null,null,null,null,null,null,null,null,null,null,null,null,null,null,"節瓜豆卜火腩"]
[null,null,null,null,null,null,null,null,null,null,null,null,null,null,null,"發財豬俐"]
[null,null,null,null,null,null,null,null,null,null,null,null,null,null,null,"時菜蝦球"]
[null,null,null,null,null,null,null,null,null,null,null,null,null,null,null,"四川回鍋肉"]
[null,null,null,null,null,null,null,null,null,null,null,null,null,null,null,"燒汁野菌炒牛肉"]
[null,null,null,null,null,null,null,null,null,null,null,null,null,null,null,"枝竹豬肚雞煲"]
[null,null,null,null,null,null,null,null,null,null,null,null,null,null,null,"虎皮尖椒炒牛肉"]
[null,null,null,null,null,null,null,null,null,null,null,null,null,null,null,"枝竹涼瓜火腩煲"]
[null,null,null,null,null,null,null,null,null,null,null,null,null,null,null,"家鄉蓮藕煎肉餅"]
[null,null,null,null,null,null,null,null,null,null,null,null,null,null,null,"麻婆雞粒豆腐"]
[null,null,null,null,null,null,null,null,null,null,null,null,null,null," ","XO醬豆卜蒸腩片"]
[null,null,null,null,null,null,null,null,null,null,null,null,null,null,null,"油鴨脾拼臘味"]
[null,null,null,null,null,null,null,null,null,null,null,null,null,null,null,"油鴨脾臘味拼盤"]
[null,null,null,null,null,null,null,null,null,null,null,null,null,null,null,"豬利"]
[null,null,null,null,null,null,null,null,null,null,null,null,null,null,null,"涼瓜肉碎煎蛋"]
[null,null,null,null,null,null,null,null,null,null,null,null,null,null,null,"薯仔牛柳粒"]
[null,null,null,null,null,null,null,null,null,null,null,null,null,null,null,"西蘭花炒蝦球"]
[null,null,null,null,null,null,null,null,null,null,null,null,null,null,null,"涼瓜豬肚煲"]
[null,null,null,null,null,null,null,null,null,null,null,null,null,null,null,"時菜炒牛肉"]
[null,null,null,null,null,null,null,null,null,null,null,null,null,null,null,"茄子枝竹煲"]
[null,null,null,null,null,null,null,null,null,null,null,null,null,null,null,"南乳豬手"]
[null,null,null,null,null,null,null,null,null,null,null,null,null,null,null,"香辣雞粒豆腐"]
[null,null,null,null,null,null,null,null,null,null,null,null,null,null,null,"西蘭花炒鮮魷"]

{"sheet":"FOOD TYPE MASTER","index":3,"n_rows":20,"n_cols":2,"rows_kept":20,"cut":false,"hidden":false,"merged":[]}
[]
[]
[null,"食材分類"]
[null,"無分類"]
[null,"豬"]
[null,"牛"]
[null,"羊"]
[null,"雞"]
[null,"鴨"]
[null,"鵝"]
[null,"鴿"]
[null,"雜肉"]
[null,"海鮮"]
[null,"菜"]
[null,"飲品"]
[null,"酒類"]
[null,"包類"]
[null,"粉麵飯"]
[null,"湯"]
[null,"無分類"]

{"sheet":"工作表1","index":4,"n_rows":58,"n_cols":8,"rows_kept":58,"cut":false,"hidden":false,"merged":[]}
["品味","D02274","607.豬頸肉拼春卷撈檬","午市小食",null,{"$f":"LOOKUP(1,0/((FoodItem[菜品編號]=B1)*(FoodItem[字號]=A1)),FoodItem[菜品編號])","v":"D02274"},{"$f":"LOOKUP(1,0/((FoodItem[菜品編號]=B1)*(FoodItem[字號]=A1)),FoodItem[食品名])","v":"607.豬頸肉拼春卷撈檬"},{"$f":"LOOKUP(1,0/((FoodItem[菜品編號]=B1)*(FoodItem[字號]=A1)),FoodItem[食品類別])","v":"午市小食"}]
["品味","D02275","608.三寶湯河(牛肉.扎肉.豬肚絲",null,null,{"$f":"LOOKUP(1,0/((FoodItem[菜品編號]=B2)*(FoodItem[字號]=A2)),FoodItem[菜品編號])","v":"D02275"},{"$f":"LOOKUP(1,0/((FoodItem[菜品編號]=B2)*(FoodItem[字號]=A2)),FoodItem[食品名])","v":"608.三寶湯河(牛肉.扎肉.豬肚絲"},{"$f":"LOOKUP(1,0/((FoodItem[菜品編號]=B2)*(FoodItem[字號]=A2)),FoodItem[食品類別])","v":"午市小食"}]
["品味","D02185","605.滑蛋叉燒飯",null,null,{"$f":"LOOKUP(1,0/((FoodItem[菜品編號]=B3)*(FoodItem[字號]=A3)),FoodItem[菜品編號])","v":"D02185"},{"$f":"LOOKUP(1,0/((FoodItem[菜品編號]=B3)*(FoodItem[字號]=A3)),FoodItem[食品名])","v":"605.蝦仁滑蛋飯"},{"$f":"LOOKUP(1,0/((FoodItem[菜品編號]=B3)*(FoodItem[字號]=A3)),FoodItem[食品類別])","v":"午市小食"}]
["品味","D02182","602.蝦餅肉碎飯","午市小食",null,{"$f":"LOOKUP(1,0/((FoodItem[菜品編號]=B4)*(FoodItem[字號]=A4)),FoodItem[菜品編號])","v":"D02182"},{"$f":"LOOKUP(1,0/((FoodItem[菜品編號]=B4)*(FoodItem[字號]=A4)),FoodItem[食品名])","v":"602.蝦餅肉碎飯"},{"$f":"LOOKUP(1,0/((FoodItem[菜品編號]=B4)*(FoodItem[字號]=A4)),FoodItem[食品類別])","v":"午市小食"}]
["品味","D02184","604.豬頸肉煎蛋飯","午市小食",null,{"$f":"LOOKUP(1,0/((FoodItem[菜品編號]=B5)*(FoodItem[字號]=A5)),FoodItem[菜品編號])","v":"D02184"},{"$f":"LOOKUP(1,0/((FoodItem[菜品編號]=B5)*(FoodItem[字號]=A5)),FoodItem[食品名])","v":"604.豬頸肉煎蛋飯"},{"$f":"LOOKUP(1,0/((FoodItem[菜品編號]=B5)*(FoodItem[字號]=A5)),FoodItem[食品類別])","v":"午市小食"}]
["品味","D02183","603.雞扒餐肉飯","午市小食",null,{"$f":"LOOKUP(1,0/((FoodItem[菜品編號]=B6)*(FoodItem[字號]=A6)),FoodItem[菜品編號])","v":"D02183"},{"$f":"LOOKUP(1,0/((FoodItem[菜品編號]=B6)*(FoodItem[字號]=A6)),FoodItem[食品名])","v":"603.豬扒腸仔飯"},{"$f":"LOOKUP(1,0/((FoodItem[菜品編號]=B6)*(FoodItem[字號]=A6)),FoodItem[食品類別])","v":"午市小食"}]
["品味","D02273","606.豬肚絲豬肉丸米線","午市小食",null,{"$f":"LOOKUP(1,0/((FoodItem[菜品編號]=B7)*(FoodItem[字號]=A7)),FoodItem[菜品編號])","v":"D02273"},{"$f":"LOOKUP(1,0/((FoodItem[菜品編號]=B7)*(FoodItem[字號]=A7)),FoodItem[食品名])","v":"606.豬肚絲扎肉米線"},{"$f":"LOOKUP(1,0/((FoodItem[菜品編號]=B7)*(FoodItem[字號]=A7)),FoodItem[食品類別])","v":0}]
["品味","D02275","608.三寶湯河(牛肉.扎肉.豬肚絲","午市小食",null,{"$f":"LOOKUP(1,0/((FoodItem[菜品編號]=B8)*(FoodItem[字號]=A8)),FoodItem[菜品編號])","v":"D02275"},{"$f":"LOOKUP(1,0/((FoodItem[菜品編號]=B8)*(FoodItem[字號]=A8)),FoodItem[食品名])","v":"608.三寶湯河(牛肉.扎肉.豬肚絲"},{"$f":"LOOKUP(1,0/((FoodItem[菜品編號]=B8)*(FoodItem[字號]=A8)),FoodItem[食品類別])","v":"午市小食"}]
["品味","D02185","605.滑蛋叉燒飯","午市小食",null,{"$f":"LOOKUP(1,0/((FoodItem[菜品編號]=B9)*(FoodItem[字號]=A9)),FoodItem[菜品編號])","v":"D02185"},{"$f":"LOOKUP(1,0/((FoodItem[菜品編號]=B9)*(FoodItem[字號]=A9)),FoodItem[食品名])","v":"605.蝦仁滑蛋飯"},{"$f":"LOOKUP(1,0/((FoodItem[菜品編號]=B9)*(FoodItem[字號]=A9)),FoodItem[食品類別])","v":"午市小食"}]
["品味","D02273","606.豬肚絲豬肉丸米線",null,null,{"$f":"LOOKUP(1,0/((FoodItem[菜品編號]=B10)*(FoodItem[字號]=A10)),FoodItem[菜品編號])","v":"D02273"},{"$f":"LOOKUP(1,0/((FoodItem[菜品編號]=B10)*(FoodItem[字號]=A10)),FoodItem[食品名])","v":"606.豬肚絲扎肉米線"},{"$f":"LOOKUP(1,0/((FoodItem[菜品編號]=B10)*(FoodItem[字號]=A10)),FoodItem[食品類別])","v":0}]
["品味","D02184","604.咖喱牛腩飯","午市小食",null,{"$f":"LOOKUP(1,0/((FoodItem[菜品編號]=B11)*(FoodItem[字號]=A11)),FoodItem[菜品編號])","v":"D02184"},{"$f":"LOOKUP(1,0/((FoodItem[菜品編號]=B11)*(FoodItem[字號]=A11)),FoodItem[食品名])","v":"604.豬頸肉煎蛋飯"},{"$f":"LOOKUP(1,0/((FoodItem[菜品編號]=B11)*(FoodItem[字號]=A11)),FoodItem[食品類別])","v":"午市小食"}]
["品味","D02185","605.蝦仁滑蛋飯","午市小食",null,{"$f":"LOOKUP(1,0/((FoodItem[菜品編號]=B12)*(FoodItem[字號]=A12)),FoodItem[菜品編號])","v":"D02185"},{"$f":"LOOKUP(1,0/((FoodItem[菜品編號]=B12)*(FoodItem[字號]=A12)),FoodItem[食品名])","v":"605.蝦仁滑蛋飯"},{"$f":"LOOKUP(1,0/((FoodItem[菜品編號]=B12)*(FoodItem[字號]=A12)),FoodItem[食品類別])","v":"午市小食"}]
["品味","D02183","603.豬扒腸仔飯","午市小食",null,{"$f":"LOOKUP(1,0/((FoodItem[菜品編號]=B13)*(FoodItem[字號]=A13)),FoodItem[菜品編號])","v":"D02183"},{"$f":"LOOKUP(1,0/((FoodItem[菜品編號]=B13)*(FoodItem[字號]=A13)),FoodItem[食品名])","v":"603.豬扒腸仔飯"},{"$f":"LOOKUP(1,0/((FoodItem[菜品編號]=B13)*(FoodItem[字號]=A13)),FoodItem[食品類別])","v":"午市小食"}]
["品味","D02273","606.豬肚絲扎肉米線","午市小食",null,{"$f":"LOOKUP(1,0/((FoodItem[菜品編號]=B14)*(FoodItem[字號]=A14)),FoodItem[菜品編號])","v":"D02273"},{"$f":"LOOKUP(1,0/((FoodItem[菜品編號]=B14)*(FoodItem[字號]=A14)),FoodItem[食品名])","v":"606.豬肚絲扎肉米線"},{"$f":"LOOKUP(1,0/((FoodItem[菜品編號]=B14)*(FoodItem[字號]=A14)),FoodItem[食品類別])","v":0}]
["品味","D02273","606.豬肚絲扎肉米線",null,null,{"$f":"LOOKUP(1,0/((FoodItem[菜品編號]=B15)*(FoodItem[字號]=A15)),FoodItem[菜品編號])","v":"D02273"},{"$f":"LOOKUP(1,0/((FoodItem[菜品編號]=B15)*(FoodItem[字號]=A15)),FoodItem[食品名])","v":"606.豬肚絲扎肉米線"},{"$f":"LOOKUP(1,0/((FoodItem[菜品編號]=B15)*(FoodItem[字號]=A15)),FoodItem[食品類別])","v":0}]
["品味","D02323","涼瓜肉碎煎蛋","（新）小菜套餐",null,{"$f":"LOOKUP(1,0/((FoodItem[菜品編號]=#REF!)*(FoodItem[字號]=A16)),FoodItem[菜品編號])","v":{"$error":"#N/A"}},{"$f":"LOOKUP(1,0/((FoodItem[菜品編號]=#REF!)*(FoodItem[字號]=A16)),FoodItem[食品名])","v":{"$error":"#N/A"}},{"$f":"LOOKUP(1,0/((FoodItem[菜品編號]=#REF!)*(FoodItem[字號]=A16)),FoodItem[食品類別])","v":{"$error":"#N/A"}}]
["品味","D02316","薯仔牛柳粒$78","（新）小菜套餐",null,{"$f":"LOOKUP(1,0/((FoodItem[菜品編號]=B16)*(FoodItem[字號]=A17)),FoodItem[菜品編號])","v":"D02323"},{"$f":"LOOKUP(1,0/((FoodItem[菜品編號]=B16)*(FoodItem[字號]=A17)),FoodItem[食品名])","v":"涼瓜肉碎煎蛋"},{"$f":"LOOKUP(1,0/((FoodItem[菜品編號]=B16)*(FoodItem[字號]=A17)),FoodItem[食品類別])","v":"（新）小菜套餐"}]
["品味","D02321","西蘭花炒蝦球$82","（新）小菜套餐",null,{"$f":"LOOKUP(1,0/((FoodItem[菜品編號]=B17)*(FoodItem[字號]=A18)),FoodItem[菜品編號])","v":"D02316"},{"$f":"LOOKUP(1,0/((FoodItem[菜品編號]=B17)*(FoodItem[字號]=A18)),FoodItem[食品名])","v":"薯仔牛柳粒$78"},{"$f":"LOOKUP(1,0/((FoodItem[菜品編號]=B17)*(FoodItem[字號]=A18)),FoodItem[食品類別])","v":"（新）小菜套餐"}]
["品味","D02313","滑蛋蝦仁飯$78","（新）小菜套餐",null,{"$f":"LOOKUP(1,0/((FoodItem[菜品編號]=B18)*(FoodItem[字號]=A19)),FoodItem[菜品編號])","v":"D02321"},{"$f":"LOOKUP(1,0/((FoodItem[菜品編號]=B18)*(FoodItem[字號]=A19)),FoodItem[食品名])","v":"西蘭花炒蝦球$82"},{"$f":"LOOKUP(1,0/((FoodItem[菜品編號]=B18)*(FoodItem[字號]=A19)),FoodItem[食品類別])","v":"（新）小菜套餐"}]
["品味","D02325","豉汁蒸倉魚","（新）小菜套餐",null,{"$f":"LOOKUP(1,0/((FoodItem[菜品編號]=B19)*(FoodItem[字號]=A20)),FoodItem[菜品編號])","v":"D02313"},{"$f":"LOOKUP(1,0/((FoodItem[菜品編號]=B19)*(FoodItem[字號]=A20)),FoodItem[食品名])","v":"滑蛋蝦仁飯$78"},{"$f":"LOOKUP(1,0/((FoodItem[菜品編號]=B19)*(FoodItem[字號]=A20)),FoodItem[食品類別])","v":"（新）小菜套餐"}]
["品味","D01027","焼鵝","燒味",null,{"$f":"LOOKUP(1,0/((FoodItem[菜品編號]=B20)*(FoodItem[字號]=A21)),FoodItem[菜品編號])","v":"D02325"},{"$f":"LOOKUP(1,0/((FoodItem[菜品編號]=B20)*(FoodItem[字號]=A21)),FoodItem[食品名])","v":"豉汁蒸倉魚"},{"$f":"LOOKUP(1,0/((FoodItem[菜品編號]=B20)*(FoodItem[字號]=A21)),FoodItem[食品類別])","v":"（新）小菜套餐"}]
["品味","D01028","焼腩仔","燒味",null,{"$f":"LOOKUP(1,0/((FoodItem[菜品編號]=B21)*(FoodItem[字號]=A22)),FoodItem[菜品編號])","v":"D01027"},{"$f":"LOOKUP(1,0/((FoodItem[菜品編號]=B21)*(FoodItem[字號]=A22)),FoodItem[食品名])","v":"焼鵝"},{"$f":"LOOKUP(1,0/((FoodItem[菜品編號]=B21)*(FoodItem[字號]=A22)),FoodItem[食品類別])","v":"燒味"}]
["品味","D01029","叉焼","燒味",null,{"$f":"LOOKUP(1,0/((FoodItem[菜品編號]=B22)*(FoodItem[字號]=A23)),FoodItem[菜品編號])","v":"D01028"},{"$f":"LOOKUP(1,0/((FoodItem[菜品編號]=B22)*(FoodItem[字號]=A23)),FoodItem[食品名])","v":"焼腩仔"},{"$f":"LOOKUP(1,0/((FoodItem[菜品編號]=B22)*(FoodItem[字號]=A23)),FoodItem[食品類別])","v":"燒味"}]
["品味","D02315","菠蘿咕嚕肉$68","（新）小菜套餐",null,{"$f":"LOOKUP(1,0/((FoodItem[菜品編號]=B23)*(FoodItem[字號]=A24)),FoodItem[菜品編號])","v":"D01029"},{"$f":"LOOKUP(1,0/((FoodItem[菜品編號]=B23)*(FoodItem[字號]=A24)),FoodItem[食品名])","v":"叉焼"},{"$f":"LOOKUP(1,0/((FoodItem[菜品編號]=B23)*(FoodItem[字號]=A24)),FoodItem[食品類別])","v":"燒味"}]
["品味","D02324","涼瓜豬肚煲","（新）小菜套餐",null,{"$f":"LOOKUP(1,0/((FoodItem[菜品編號]=B24)*(FoodItem[字號]=A25)),FoodItem[菜品編號])","v":"D02315"},{"$f":"LOOKUP(1,0/((FoodItem[菜品編號]=B24)*(FoodItem[字號]=A25)),FoodItem[食品名])","v":"菠蘿咕嚕肉$68"},{"$f":"LOOKUP(1,0/((FoodItem[菜品編號]=B24)*(FoodItem[字號]=A25)),FoodItem[食品類別])","v":"（新）小菜套餐"}]
["品味","D02317","香茅豬扒(1份)","（新）小菜套餐",null,{"$f":"LOOKUP(1,0/((FoodItem[菜品編號]=B25)*(FoodItem[字號]=A26)),FoodItem[菜品編號])","v":"D02324"},{"$f":"LOOKUP(1,0/((FoodItem[菜品編號]=B25)*(FoodItem[字號]=A26)),FoodItem[食品名])","v":"涼瓜豬肚煲"},{"$f":"LOOKUP(1,0/((FoodItem[菜品編號]=B25)*(FoodItem[字號]=A26)),FoodItem[食品類別])","v":"（新）小菜套餐"}]
["品味","D02327","時菜炒牛肉","（新）小菜套餐",null,{"$f":"LOOKUP(1,0/((FoodItem[菜品編號]=B26)*(FoodItem[字號]=A27)),FoodItem[菜品編號])","v":"D02317"},{"$f":"LOOKUP(1,0/((FoodItem[菜品編號]=B26)*(FoodItem[字號]=A27)),FoodItem[食品名])","v":"香茅豬扒(1份)"},{"$f":"LOOKUP(1,0/((FoodItem[菜品編號]=B26)*(FoodItem[字號]=A27)),FoodItem[食品類別])","v":"（新）小菜套餐"}]
["品味","D02322","茄子枝竹煲","（新）小菜套餐",null,{"$f":"LOOKUP(1,0/((FoodItem[菜品編號]=B27)*(FoodItem[字號]=A28)),FoodItem[菜品編號])","v":"D02327"},{"$f":"LOOKUP(1,0/((FoodItem[菜品編號]=B27)*(FoodItem[字號]=A28)),FoodItem[食品名])","v":"時菜炒牛肉"},{"$f":"LOOKUP(1,0/((FoodItem[菜品編號]=B27)*(FoodItem[字號]=A28)),FoodItem[食品類別])","v":"（新）小菜套餐"}]
["品味","D01380","酸辣無骨鳯爪","(新)小食",null,{"$f":"LOOKUP(1,0/((FoodItem[菜品編號]=B28)*(FoodItem[字號]=A29)),FoodItem[菜品編號])","v":"D02322"},{"$f":"LOOKUP(1,0/((FoodItem[菜品編號]=B28)*(FoodItem[字號]=A29)),FoodItem[食品名])","v":"茄子枝竹煲"},{"$f":"LOOKUP(1,0/((FoodItem[菜品編號]=B28)*(FoodItem[字號]=A29)),FoodItem[食品類別])","v":"（新）小菜套餐"}]
["品味","D02311","南乳豬手(大)","（新）小菜套餐",null,{"$f":"LOOKUP(1,0/((FoodItem[菜品編號]=B29)*(FoodItem[字號]=A30)),FoodItem[菜品編號])","v":"D01380"},{"$f":"LOOKUP(1,0/((FoodItem[菜品編號]=B29)*(FoodItem[字號]=A30)),FoodItem[食品名])","v":"酸辣無骨鳯爪"},{"$f":"LOOKUP(1,0/((FoodItem[菜品編號]=B29)*(FoodItem[字號]=A30)),FoodItem[食品類別])","v":"(新)小食"}]
["品味","D01403","火腩豆腐煲","(新)推介",null,{"$f":"LOOKUP(1,0/((FoodItem[菜品編號]=B30)*(FoodItem[字號]=A31)),FoodItem[菜品編號])","v":"D02311"},{"$f":"LOOKUP(1,0/((FoodItem[菜品編號]=B30)*(FoodItem[字號]=A31)),FoodItem[食品名])","v":"南乳豬手(大)"},{"$f":"LOOKUP(1,0/((FoodItem[菜品編號]=B30)*(FoodItem[字號]=A31)),FoodItem[食品類別])","v":"（新）小菜套餐"}]
["品味","D02312","鹹蛋蒸肉餅","（新）小菜套餐",null,{"$f":"LOOKUP(1,0/((FoodItem[菜品編號]=B31)*(FoodItem[字號]=A32)),FoodItem[菜品編號])","v":"D01403"},{"$f":"LOOKUP(1,0/((FoodItem[菜品編號]=B31)*(FoodItem[字號]=A32)),FoodItem[食品名])","v":"火腩豆腐煲"},{"$f":"LOOKUP(1,0/((FoodItem[菜品編號]=B31)*(FoodItem[字號]=A32)),FoodItem[食品類別])","v":"(新)推介"}]
["品味","D02326","香辣雞粒豆腐","（新）小菜套餐",null,{"$f":"LOOKUP(1,0/((FoodItem[菜品編號]=B32)*(FoodItem[字號]=A33)),FoodItem[菜品編號])","v":"D02312"},{"$f":"LOOKUP(1,0/((FoodItem[菜品編號]=B32)*(FoodItem[字號]=A33)),FoodItem[食品名])","v":"鹹蛋蒸肉餅"},{"$f":"LOOKUP(1,0/((FoodItem[菜品編號]=B32)*(FoodItem[字號]=A33)),FoodItem[食品類別])","v":"（新）小菜套餐"}]
["品味","D02320","西蘭花炒鮮魷$82","（新）小菜套餐",null,{"$f":"LOOKUP(1,0/((FoodItem[菜品編號]=B33)*(FoodItem[字號]=A34)),FoodItem[菜品編號])","v":"D02326"},{"$f":"LOOKUP(1,0/((FoodItem[菜品編號]=B33)*(FoodItem[字號]=A34)),FoodItem[食品名])","v":"香辣雞粒豆腐"},{"$f":"LOOKUP(1,0/((FoodItem[菜品編號]=B33)*(FoodItem[字號]=A34)),FoodItem[食品類別])","v":"（新）小菜套餐"}]
["品味","D02318","香茅豬頸肉(1份)","（新）小菜套餐",null,{"$f":"LOOKUP(1,0/((FoodItem[菜品編號]=B34)*(FoodItem[字號]=A35)),FoodItem[菜品編號])","v":"D02320"},{"$f":"LOOKUP(1,0/((FoodItem[菜品編號]=B34)*(FoodItem[字號]=A35)),FoodItem[食品名])","v":"西蘭花炒鮮魷$82"},{"$f":"LOOKUP(1,0/((FoodItem[菜品編號]=B34)*(FoodItem[字號]=A35)),FoodItem[食品類別])","v":"（新）小菜套餐"}]
["品味","D02328","一人套餐","（新）小菜套餐",null,{"$f":"LOOKUP(1,0/((FoodItem[菜品編號]=B35)*(FoodItem[字號]=A36)),FoodItem[菜品編號])","v":"D02318"},{"$f":"LOOKUP(1,0/((FoodItem[菜品編號]=B35)*(FoodItem[字號]=A36)),FoodItem[食品名])","v":"香茅豬頸肉(1份)"},{"$f":"LOOKUP(1,0/((FoodItem[菜品編號]=B35)*(FoodItem[字號]=A36)),FoodItem[食品類別])","v":"（新）小菜套餐"}]
["品味","D02296","外賣盒","（新）小菜套餐",null,{"$f":"LOOKUP(1,0/((FoodItem[菜品編號]=B36)*(FoodItem[字號]=A37)),FoodItem[菜品編號])","v":"D02328"},{"$f":"LOOKUP(1,0/((FoodItem[菜品編號]=B36)*(FoodItem[字號]=A37)),FoodItem[食品名])","v":"一人套餐"},{"$f":"LOOKUP(1,0/((FoodItem[菜品編號]=B36)*(FoodItem[字號]=A37)),FoodItem[食品類別])","v":"（新）小菜套餐"}]
["品味","D02319","欖菜肉碎四季豆","（新）小菜套餐",null,{"$f":"LOOKUP(1,0/((FoodItem[菜品編號]=B37)*(FoodItem[字號]=A38)),FoodItem[菜品編號])","v":"D02296"},{"$f":"LOOKUP(1,0/((FoodItem[菜品編號]=B37)*(FoodItem[字號]=A38)),FoodItem[食品名])","v":"外賣盒"},{"$f":"LOOKUP(1,0/((FoodItem[菜品編號]=B37)*(FoodItem[字號]=A38)),FoodItem[食品類別])","v":"（新）小菜套餐"}]
["品味",null,null,null,null,{"$f":"LOOKUP(1,0/((FoodItem[菜品編號]=B38)*(FoodItem[字號]=A39)),FoodItem[菜品編號])","v":"D02319"},{"$f":"LOOKUP(1,0/((FoodItem[菜品編號]=B38)*(FoodItem[字號]=A39)),FoodItem[食品名])","v":"欖菜肉碎四季豆"},{"$f":"LOOKUP(1,0/((FoodItem[菜品編號]=B38)*(FoodItem[字號]=A39)),FoodItem[食品類別])","v":"（新）小菜套餐"}]
["品味",null,null,null,null,{"$f":"LOOKUP(1,0/((FoodItem[菜品編號]=B98)*(FoodItem[字號]=A40)),FoodItem[菜品編號])","v":{"$error":"#N/A"}},{"$f":"LOOKUP(1,0/((FoodItem[菜品編號]=B98)*(FoodItem[字號]=A40)),FoodItem[食品名])","v":{"$error":"#N/A"}},{"$f":"LOOKUP(1,0/((FoodItem[菜品編號]=B98)*(FoodItem[字號]=A40)),FoodItem[食品類別])","v":{"$error":"#N/A"}}]
["品味",null,null,null,null,{"$f":"LOOKUP(1,0/((FoodItem[菜品編號]=B99)*(FoodItem[字號]=A41)),FoodItem[菜品編號])","v":{"$error":"#N/A"}},{"$f":"LOOKUP(1,0/((FoodItem[菜品編號]=B99)*(FoodItem[字號]=A41)),FoodItem[食品名])","v":{"$error":"#N/A"}},{"$f":"LOOKUP(1,0/((FoodItem[菜品編號]=B99)*(FoodItem[字號]=A41)),FoodItem[食品類別])","v":{"$error":"#N/A"}}]
["品味",null,null,null,null,{"$f":"LOOKUP(1,0/((FoodItem[菜品編號]=B100)*(FoodItem[字號]=A42)),FoodItem[菜品編號])","v":{"$error":"#N/A"}},{"$f":"LOOKUP(1,0/((FoodItem[菜品編號]=B100)*(FoodItem[字號]=A42)),FoodItem[食品名])","v":{"$error":"#N/A"}},{"$f":"LOOKUP(1,0/((FoodItem[菜品編號]=B100)*(FoodItem[字號]=A42)),FoodItem[食品類別])","v":{"$error":"#N/A"}}]
["品味",null,null,null,null,{"$f":"LOOKUP(1,0/((FoodItem[菜品編號]=B101)*(FoodItem[字號]=A43)),FoodItem[菜品編號])","v":{"$error":"#N/A"}},{"$f":"LOOKUP(1,0/((FoodItem[菜品編號]=B101)*(FoodItem[字號]=A43)),FoodItem[食品名])","v":{"$error":"#N/A"}},{"$f":"LOOKUP(1,0/((FoodItem[菜品編號]=B101)*(FoodItem[字號]=A43)),FoodItem[食品類別])","v":{"$error":"#N/A"}}]
["品味",null,null,null,null,{"$f":"LOOKUP(1,0/((FoodItem[菜品編號]=B102)*(FoodItem[字號]=A44)),FoodItem[菜品編號])","v":{"$error":"#N/A"}},{"$f":"LOOKUP(1,0/((FoodItem[菜品編號]=B102)*(FoodItem[字號]=A44)),FoodItem[食品名])","v":{"$error":"#N/A"}},{"$f":"LOOKUP(1,0/((FoodItem[菜品編號]=B102)*(FoodItem[字號]=A44)),FoodItem[食品類別])","v":{"$error":"#N/A"}}]
["品味",null,null,null,null,{"$f":"LOOKUP(1,0/((FoodItem[菜品編號]=B103)*(FoodItem[字號]=A45)),FoodItem[菜品編號])","v":{"$error":"#N/A"}},{"$f":"LOOKUP(1,0/((FoodItem[菜品編號]=B103)*(FoodItem[字號]=A45)),FoodItem[食品名])","v":{"$error":"#N/A"}},{"$f":"LOOKUP(1,0/((FoodItem[菜品編號]=B103)*(FoodItem[字號]=A45)),FoodItem[食品類別])","v":{"$error":"#N/A"}}]
["品味",null,null,null,null,{"$f":"LOOKUP(1,0/((FoodItem[菜品編號]=B104)*(FoodItem[字號]=A46)),FoodItem[菜品編號])","v":{"$error":"#N/A"}},{"$f":"LOOKUP(1,0/((FoodItem[菜品編號]=B104)*(FoodItem[字號]=A46)),FoodItem[食品名])","v":{"$error":"#N/A"}},{"$f":"LOOKUP(1,0/((FoodItem[菜品編號]=B104)*(FoodItem[字號]=A46)),FoodItem[食品類別])","v":{"$error":"#N/A"}}]
["品味",null,null,null,null,{"$f":"LOOKUP(1,0/((FoodItem[菜品編號]=B105)*(FoodItem[字號]=A47)),FoodItem[菜品編號])","v":{"$error":"#N/A"}},{"$f":"LOOKUP(1,0/((FoodItem[菜品編號]=B105)*(FoodItem[字號]=A47)),FoodItem[食品名])","v":{"$error":"#N/A"}},{"$f":"LOOKUP(1,0/((FoodItem[菜品編號]=B105)*(FoodItem[字號]=A47)),FoodItem[食品類別])","v":{"$error":"#N/A"}}]
["品味",null,null,null,null,{"$f":"LOOKUP(1,0/((FoodItem[菜品編號]=B106)*(FoodItem[字號]=A48)),FoodItem[菜品編號])","v":{"$error":"#N/A"}},{"$f":"LOOKUP(1,0/((FoodItem[菜品編號]=B106)*(FoodItem[字號]=A48)),FoodItem[食品名])","v":{"$error":"#N/A"}},{"$f":"LOOKUP(1,0/((FoodItem[菜品編號]=B106)*(FoodItem[字號]=A48)),FoodItem[食品類別])","v":{"$error":"#N/A"}}]
["品味",null,null,null,null,{"$f":"LOOKUP(1,0/((FoodItem[菜品編號]=B107)*(FoodItem[字號]=A49)),FoodItem[菜品編號])","v":{"$error":"#N/A"}},{"$f":"LOOKUP(1,0/((FoodItem[菜品編號]=B107)*(FoodItem[字號]=A49)),FoodItem[食品名])","v":{"$error":"#N/A"}},{"$f":"LOOKUP(1,0/((FoodItem[菜品編號]=B107)*(FoodItem[字號]=A49)),FoodItem[食品類別])","v":{"$error":"#N/A"}}]
["品味",null,null,null,null,{"$f":"LOOKUP(1,0/((FoodItem[菜品編號]=B108)*(FoodItem[字號]=A50)),FoodItem[菜品編號])","v":{"$error":"#N/A"}},{"$f":"LOOKUP(1,0/((FoodItem[菜品編號]=B108)*(FoodItem[字號]=A50)),FoodItem[食品名])","v":{"$error":"#N/A"}},{"$f":"LOOKUP(1,0/((FoodItem[菜品編號]=B108)*(FoodItem[字號]=A50)),FoodItem[食品類別])","v":{"$error":"#N/A"}}]
["品味",null,null,null,null,{"$f":"LOOKUP(1,0/((FoodItem[菜品編號]=B109)*(FoodItem[字號]=A51)),FoodItem[菜品編號])","v":{"$error":"#N/A"}},{"$f":"LOOKUP(1,0/((FoodItem[菜品編號]=B109)*(FoodItem[字號]=A51)),FoodItem[食品名])","v":{"$error":"#N/A"}},{"$f":"LOOKUP(1,0/((FoodItem[菜品編號]=B109)*(FoodItem[字號]=A51)),FoodItem[食品類別])","v":{"$error":"#N/A"}}]
["品味",null,null,null,null,{"$f":"LOOKUP(1,0/((FoodItem[菜品編號]=B110)*(FoodItem[字號]=A52)),FoodItem[菜品編號])","v":{"$error":"#N/A"}},{"$f":"LOOKUP(1,0/((FoodItem[菜品編號]=B110)*(FoodItem[字號]=A52)),FoodItem[食品名])","v":{"$error":"#N/A"}},{"$f":"LOOKUP(1,0/((FoodItem[菜品編號]=B110)*(FoodItem[字號]=A52)),FoodItem[食品類別])","v":{"$error":"#N/A"}}]
["品味",null,null,null,null,{"$f":"LOOKUP(1,0/((FoodItem[菜品編號]=B111)*(FoodItem[字號]=A53)),FoodItem[菜品編號])","v":{"$error":"#N/A"}},{"$f":"LOOKUP(1,0/((FoodItem[菜品編號]=B111)*(FoodItem[字號]=A53)),FoodItem[食品名])","v":{"$error":"#N/A"}},{"$f":"LOOKUP(1,0/((FoodItem[菜品編號]=B111)*(FoodItem[字號]=A53)),FoodItem[食品類別])","v":{"$error":"#N/A"}}]
["品味",null,null,null,null,{"$f":"LOOKUP(1,0/((FoodItem[菜品編號]=B112)*(FoodItem[字號]=A54)),FoodItem[菜品編號])","v":{"$error":"#N/A"}},{"$f":"LOOKUP(1,0/((FoodItem[菜品編號]=B112)*(FoodItem[字號]=A54)),FoodItem[食品名])","v":{"$error":"#N/A"}},{"$f":"LOOKUP(1,0/((FoodItem[菜品編號]=B112)*(FoodItem[字號]=A54)),FoodItem[食品類別])","v":{"$error":"#N/A"}}]
["品味",null,null,null,null,{"$f":"LOOKUP(1,0/((FoodItem[菜品編號]=B113)*(FoodItem[字號]=A55)),FoodItem[菜品編號])","v":{"$error":"#N/A"}},{"$f":"LOOKUP(1,0/((FoodItem[菜品編號]=B113)*(FoodItem[字號]=A55)),FoodItem[食品名])","v":{"$error":"#N/A"}},{"$f":"LOOKUP(1,0/((FoodItem[菜品編號]=B113)*(FoodItem[字號]=A55)),FoodItem[食品類別])","v":{"$error":"#N/A"}}]
["品味",null,null,null,null,{"$f":"LOOKUP(1,0/((FoodItem[菜品編號]=B114)*(FoodItem[字號]=A56)),FoodItem[菜品編號])","v":{"$error":"#N/A"}},{"$f":"LOOKUP(1,0/((FoodItem[菜品編號]=B114)*(FoodItem[字號]=A56)),FoodItem[食品名])","v":{"$error":"#N/A"}},{"$f":"LOOKUP(1,0/((FoodItem[菜品編號]=B114)*(FoodItem[字號]=A56)),FoodItem[食品類別])","v":{"$error":"#N/A"}}]
["品味",null,null,null,null,{"$f":"LOOKUP(1,0/((FoodItem[菜品編號]=B115)*(FoodItem[字號]=A57)),FoodItem[菜品編號])","v":{"$error":"#N/A"}},{"$f":"LOOKUP(1,0/((FoodItem[菜品編號]=B115)*(FoodItem[字號]=A57)),FoodItem[食品名])","v":{"$error":"#N/A"}},{"$f":"LOOKUP(1,0/((FoodItem[菜品編號]=B115)*(FoodItem[字號]=A57)),FoodItem[食品類別])","v":{"$error":"#N/A"}}]
["品味",null,null,null,null,{"$f":"LOOKUP(1,0/((FoodItem[菜品編號]=B116)*(FoodItem[字號]=A58)),FoodItem[菜品編號])","v":{"$error":"#N/A"}},{"$f":"LOOKUP(1,0/((FoodItem[菜品編號]=B116)*(FoodItem[字號]=A58)),FoodItem[食品名])","v":{"$error":"#N/A"}},{"$f":"LOOKUP(1,0/((FoodItem[菜品編號]=B116)*(FoodItem[字號]=A58)),FoodItem[食品類別])","v":{"$error":"#N/A"}}]